Directorate,Department,Expenditure Type,Ref.Doc.1,Vendor Name,Expenditure Amount (exc VAT),Payment Date,"Comment from
Database:
Publish/ Exclude/ Publish-Redact Name"
Delivery Units,Assurance,Training,1024005402,CHARTERED INST. INTERNAL AUDITORS,"5,600.00",24/04/2023,PUBLISH
Delivery Units,Assurance,Legal and Court Fees,1023959701,Canford Audio Limited,252.00,14/04/2023,PUBLISH
Delivery Units,Assurance,Subscriptions,1023636601,TAMESIDE METROPOLITAN BOROUGH COUNC,"1,700.00",12/04/2023,PUBLISH
Delivery Units,Strategy and Resources,Subscriptions,1024137302,LONDON COUNCILS,"53,941.00",24/04/2023,PUBLISH
Delivery Units,Strategy and Resources,Subscriptions,1024139002,LONDON COUNCILS,"108,017.00",24/04/2023,PUBLISH
Delivery Units,Strategy and Resources,Other Services,1024317701,ITJL,299.25,27/04/2023,PUBLISH
Delivery Units,Strategy and Resources,Other Establishments - Third P,0080065084,GLA LEVIES,"50,633.80",12/04/2023,PUBLISH
Delivery Units,Strategy and Resources,Grant Payments,1024005802,CITY OF LONDON,"73,886.00",14/04/2023,PUBLISH
Delivery Units,Strategy and Resources,Other Establishments - Third P,0080065530,ENVIRONMENT AGENCY,"90,498.61",26/04/2023,PUBLISH
Delivery Units,Strategy and Resources,Other Services,0080064948,North London Waste Authority ,"897,737.00",11/04/2023,PUBLISH
Delivery Units,Strategy and Resources,Other Establishments - Third P,0080065294,LEE VALLEY REGIONAL PARK AUTH.,"32,407.20",19/04/2023,PUBLISH
Delivery Units,Customer and Place,Other Agencies - Third Party P,1023242302,THE BARNETGROUP LIMITED,"176,565.47",04/04/2023,PUBLISH
Delivery Units,Customer and Place,Private Contractors - Third Pa,1023242802,THE BARNETGROUP LIMITED,"1,776,170.00",04/04/2023,PUBLISH
Delivery Units,Customer and Place,Other Awards,1023244202,THE BARNETGROUP LIMITED,"310,516.97",04/04/2023,PUBLISH
Delivery Units,Customer and Place,Professional Services,1023813402,THE BARNETGROUP LIMITED,"343,760.00",12/04/2023,PUBLISH
Delivery Units,Customer and Place,Ttl IT & Comms,1023813902,THE BARNETGROUP LIMITED,"92,971.00",12/04/2023,PUBLISH
Delivery Units,Customer and Place,Miscellaneous Expenses,1023936102,THE BARNETGROUP LIMITED,"12,587.74",14/04/2023,PUBLISH
Delivery Units,Customer and Place,Building Repairs & Maintenance,1023936202,THE BARNETGROUP LIMITED,"8,635.01",14/04/2023,PUBLISH
Delivery Units,Customer and Place,Professional Services,1023936302,THE BARNETGROUP LIMITED,"122,920.61",14/04/2023,PUBLISH
Delivery Units,Customer and Place,Other Services,1023936401,THE BARNETGROUP LIMITED,"296,411.00",14/04/2023,PUBLISH
Delivery Units,Customer and Place,Miscellaneous Expenses,1023937302,THE BARNETGROUP LIMITED,"9,646.94",14/04/2023,PUBLISH
Delivery Units,Customer and Place,Miscellaneous Expenses,1023937402,THE BARNETGROUP LIMITED,"13,639.04",14/04/2023,PUBLISH
Delivery Units,Customer and Place,Miscellaneous Expenses,1023937502,THE BARNETGROUP LIMITED,"9,292.50",14/04/2023,PUBLISH
Delivery Units,Customer and Place,Miscellaneous Expenses,1023940502,THE BARNETGROUP LIMITED,"3,140.04",14/04/2023,PUBLISH
Delivery Units,Customer and Place,Miscellaneous Expenses,1024025202,THE BARNETGROUP LIMITED,"1,588.20",17/04/2023,PUBLISH
Delivery Units,Customer and Place,Miscellaneous Expenses,1024025702,THE BARNETGROUP LIMITED,"1,500.00",17/04/2023,PUBLISH
Delivery Units,Customer and Place,Professional Services,1023813602,THE BARNETGROUP LIMITED,"31,111.00",12/04/2023,PUBLISH
Delivery Units,Strategy and Resources,EBS Funding,0050066660,Marian Eastwood Boffa,200.00,05/04/2023,PUBLISH
DELUNITS,Regional Enterprise,Legal and Court Fees,0080065162,Seddons Law LLP,"16,003.40",17/04/2023,PUBLISH
DELUNITS,Regional Enterprise,Professional Services,1023959401,IDOX SOFTWARE LIMITED,550.00,14/04/2023,PUBLISH
DELUNITS,Regional Enterprise,Professional Services,1023989301,PeopleScout Limited,400.64,14/04/2023,PUBLISH
DELUNITS,Regional Enterprise,Professional Services,1024313301,PeopleScout Limited,229.81,27/04/2023,PUBLISH
DELUNITS,Regional Enterprise,Professional Services,1024314101,PeopleScout Limited,324.71,27/04/2023,PUBLISH
DELUNITS,Regional Enterprise,Professional Services,1024314301,PeopleScout Limited,"1,254.78",27/04/2023,PUBLISH
DELUNITS,Regional Enterprise,Professional Services,1024315701,Greenspace Information for Greater Londo,"1,500.00",27/04/2023,PUBLISH
Delivery Units,Customer and Place,Building Repairs & Maintenance,1017545203,AJS Ltd,"1,405.60",13/04/2023,PUBLISH
Delivery Units,Customer and Place,Building Repairs & Maintenance,1018235203,EVAC & CHAIR INTERNATIONAL LTD,160.00,13/04/2023,PUBLISH
Delivery Units,Customer and Place,Building Repairs & Maintenance,1018273203,EVAC & CHAIR INTERNATIONAL LTD,95.00,13/04/2023,PUBLISH
Delivery Units,Customer and Place,Building Repairs & Maintenance,1018386703,EVAC & CHAIR INTERNATIONAL LTD,95.00,13/04/2023,PUBLISH
Delivery Units,Customer and Place,Building Repairs & Maintenance,1019312103,AJS Ltd,208.00,13/04/2023,PUBLISH
Delivery Units,Customer and Place,Building Repairs & Maintenance,1019313203,AJS Ltd,"1,251.20",13/04/2023,PUBLISH
Delivery Units,Customer and Place,Building Repairs & Maintenance,1019313903,AJS Ltd,456.00,13/04/2023,PUBLISH
Delivery Units,Customer and Place,Building Repairs & Maintenance,1020020803,AJS Ltd,"1,078.40",13/04/2023,PUBLISH
Delivery Units,Customer and Place,Building Repairs & Maintenance,1020023003,AJS Ltd,176.00,13/04/2023,PUBLISH
Delivery Units,Customer and Place,Building Repairs & Maintenance,1020023103,AJS Ltd,344.00,13/04/2023,PUBLISH
Delivery Units,Customer and Place,Building Repairs & Maintenance,1020023303,AJS Ltd,504.00,13/04/2023,PUBLISH
Delivery Units,Customer and Place,Building Repairs & Maintenance,1020023903,AJS Ltd,304.00,13/04/2023,PUBLISH
Delivery Units,Customer and Place,Building Repairs & Maintenance,1020025003,AJS Ltd,400.00,13/04/2023,PUBLISH
Delivery Units,Customer and Place,Building Repairs & Maintenance,1020025103,AJS Ltd,248.96,13/04/2023,PUBLISH
Delivery Units,Customer and Place,Building Repairs & Maintenance,1020025303,AJS Ltd,870.00,13/04/2023,PUBLISH
Delivery Units,Customer and Place,Building Repairs & Maintenance,1023628702,S W Bruce & Co Ltd,50.00,11/04/2023,PUBLISH
Delivery Units,Customer and Place,Building Repairs & Maintenance,1023629902,S W Bruce & Co Ltd,50.00,11/04/2023,PUBLISH
Delivery Units,Customer and Place,Building Repairs & Maintenance,1023632402,Elite Entrance Systems Ltd,195.00,06/04/2023,PUBLISH
Delivery Units,Customer and Place,Building Repairs & Maintenance,1023637302,Integrated Water Services Ltd,"3,383.14",11/04/2023,PUBLISH
Delivery Units,Customer and Place,Building Repairs & Maintenance,1023639002,Integrated Water Services Ltd,"3,208.15",06/04/2023,PUBLISH
Delivery Units,Customer and Place,Building Repairs & Maintenance,1023699802,Integrated Water Services Ltd,58.33,27/04/2023,PUBLISH
Delivery Units,Customer and Place,Other Services,1023732902,WATES PROPERTY SERVICES LTD,"8,743.75",11/04/2023,PUBLISH
Delivery Units,Customer and Place,Building Repairs & Maintenance,1023736302,S W Bruce & Co Ltd,88.00,11/04/2023,PUBLISH
Delivery Units,Customer and Place,Building Repairs & Maintenance,1023736802,S W Bruce & Co Ltd,163.00,11/04/2023,PUBLISH
Delivery Units,Customer and Place,Building Repairs & Maintenance,1023930601,Integrated Water Services Ltd,"6,564.77",14/04/2023,PUBLISH
Delivery Units,Customer and Place,Building Repairs & Maintenance,1023935302,WATES PROPERTY SERVICES LTD,"1,712.50",18/04/2023,PUBLISH
Delivery Units,Customer and Place,Other Services,1023935502,WATES PROPERTY SERVICES LTD,"1,276.75",18/04/2023,PUBLISH
Delivery Units,Customer and Place,Building Repairs & Maintenance,1023966602,Integrated Water Services Ltd,58.33,25/04/2023,PUBLISH
Delivery Units,Customer and Place,Building Repairs & Maintenance,1023967602,Integrated Water Services Ltd,58.33,25/04/2023,PUBLISH
Delivery Units,Customer and Place,Building Repairs & Maintenance,1023968502,Integrated Water Services Ltd,58.33,25/04/2023,PUBLISH
Delivery Units,Customer and Place,Building Repairs & Maintenance,1023973102,S W Bruce & Co Ltd,75.00,18/04/2023,PUBLISH
Delivery Units,Customer and Place,Other Services,1024059501,Murphy Geospatial UK Ltd,425.00,18/04/2023,PUBLISH
Delivery Units,Childrens Service DSG,Professional Services,1024103301,BARNET EDUCATION AND LEARNING,"111,000.00",19/04/2023,PUBLISH
Delivery Units,Childrens Family Services,Professional Services,1024323301,OXFORD COMPUTER CONSULTANTS,"6,314.00",27/04/2023,PUBLISH
Delivery Units,Childrens Service DSG,Other Establishments - Third P,0050067042,PARKFIELD ACADEMY,"1,179.23",14/04/2023,PUBLISH
Delivery Units,Childrens Service DSG,Other Establishments - Third P,0050067048,THE HYDE EF ACADEMY,563.38,14/04/2023,PUBLISH
Delivery Units,Childrens Service DSG,Other Establishments - Third P,0050067111,BROADFIELDS ACADEMY,879.85,14/04/2023,PUBLISH
Delivery Units,Childrens Service DSG,Other Services,0050067314,Little Lamps Nursery Ltd,"1,921.00",27/04/2023,PUBLISH
Delivery Units,Childrens Service DSG,Other Services,0050067315,Tinky's Day Nursery,"3,073.00",27/04/2023,PUBLISH
Delivery Units,Childrens Service DSG,Other Services,0050067316,ABRACADABRA PRE-SCHOOL NURSERY,666.00,27/04/2023,PUBLISH
Delivery Units,Childrens Service DSG,Other Services,0050067317,Perfect Start Montessori,"1,152.00",27/04/2023,PUBLISH
Delivery Units,Childrens Service DSG,Other Services,0050067318,Mara Nursery,635.00,27/04/2023,PUBLISH
Delivery Units,Childrens Service DSG,Other Services,0050067320,MONKEY PUZZLE DAY NURSERY,599.00,27/04/2023,PUBLISH
Delivery Units,Childrens Service DSG,Other Services,0050067321,Little Lamps Nursery Ltd,"1,588.00",27/04/2023,PUBLISH
Delivery Units,Childrens Service DSG,Other Services,0050067322,Abracadabra Preschool Nursery,"1,032.00",27/04/2023,PUBLISH
Delivery Units,Childrens Service DSG,Other Services,0050067323,BELFIELD MONTESSORI,"1,571.00",27/04/2023,PUBLISH
Delivery Units,Childrens Service DSG,Other Services,0050067324,Happy Tots,794.00,27/04/2023,PUBLISH
Delivery Units,Childrens Service DSG,Other Services,0050067325,Aplomb Day Nursery,"2,305.00",27/04/2023,PUBLISH
Delivery Units,Childrens Service DSG,Other Services,0050067326,Perfect Start Montessori,"1,588.00",27/04/2023,PUBLISH
Delivery Units,Childrens Service DSG,Other Services,0050067327,ABRACADABRA PRE-SCHOOL NURSERY,"1,191.00",27/04/2023,PUBLISH
Delivery Units,Childrens Service DSG,Other Services,0050067328,THE LITTLE LEARNERS MONTESSORI LTD,"1,383.00",27/04/2023,PUBLISH
Delivery Units,Childrens Service DSG,Other Services,0050067329,ABRACADABRA PRE-SCHOOL NURSERY,"1,536.00",27/04/2023,PUBLISH
Delivery Units,Childrens Service DSG,Other Services,0050067330,NAGILA PRE-SCHOOL,"1,588.00",27/04/2023,PUBLISH
Delivery Units,Childrens Service DSG,Other Services,0050067331,WEST HENDON PRE-SCHOOL,"1,536.00",27/04/2023,PUBLISH
Delivery Units,Childrens Service DSG,Other Services,0050067332,Aplomb Day Nursery,"3,175.00",27/04/2023,PUBLISH
Delivery Units,Childrens Service DSG,Other Services,0050067333,Abracadabra Preschool Nursery,"1,588.00",27/04/2023,PUBLISH
Delivery Units,Childrens Service DSG,Other Services,0050067334,JOEL DAY NURSERY,"1,152.00",27/04/2023,PUBLISH
Delivery Units,Childrens Service DSG,Other Services,0050067335,Unity Montessori Nursery,"1,536.00",27/04/2023,PUBLISH
Delivery Units,Childrens Service DSG,Other Services,0050067336,Cherry Blossoms Childcare Ltd,"1,588.00",27/04/2023,PUBLISH
Delivery Units,Childrens Service DSG,Other Services,0050067337,Mara Nursery,615.00,27/04/2023,PUBLISH
Delivery Units,Childrens Service DSG,Other Services,0050067338,BEAUFORT PARK NURSERY,"1,536.00",27/04/2023,PUBLISH
Delivery Units,Childrens Service DSG,Other Services,0050067339,TORAH VODAAS PRIMARY SCHOOL,"1,588.00",27/04/2023,PUBLISH
Delivery Units,Childrens Service DSG,Other Services,0050067340,MONKEY PUZZLE DAY NURSERY,"3,175.00",27/04/2023,PUBLISH
Delivery Units,Childrens Service DSG,Other Services,0050067341,SPARKLER'S  NURSERY,"2,305.00",27/04/2023,PUBLISH
Delivery Units,Childrens Service DSG,Other Services,0050067342,FOUNTAIN MONTESSORI PRE-SCHOOL,"1,191.00",27/04/2023,PUBLISH
Delivery Units,Childrens Service DSG,Other Services,0050067343,Cherry Blossoms Childcare Ltd,"1,536.00",27/04/2023,PUBLISH
Delivery Units,Childrens Service DSG,Other Services,0050067344,GAN MENACHEM,"1,571.00",27/04/2023,PUBLISH
Delivery Units,Childrens Service DSG,Other Services,0050067345,ABRACADABRA PRE-SCHOOL NURSERY,"2,381.00",27/04/2023,PUBLISH
Delivery Units,Childrens Service DSG,Other Services,0050067346,FOUNTAIN MONTESSORI PRE-SCHOOL,"1,229.00",27/04/2023,PUBLISH
Delivery Units,Childrens Service DSG,Other Services,0050067319,Apple Day Nursery,"1,270.00",27/04/2023,PUBLISH
Delivery Units,Childrens Service DSG,Education CFR Funding Advances,0020065406,BEIS SOROH SCHNEIRER,"22,276.65",26/04/2023,PUBLISH
Delivery Units,Childrens Service DSG,Education CFR Funding Advances,0020065409,BROADFIELDS ACADEMY,"12,467.88",26/04/2023,PUBLISH
Delivery Units,Childrens Service DSG,Education CFR Funding Advances,0020065414,Claremont Primary School Academy,"6,410.04",26/04/2023,PUBLISH
Delivery Units,Childrens Service DSG,Education CFR Funding Advances,0020065420,Finchley Yochien,"4,930.80",26/04/2023,PUBLISH
Delivery Units,Childrens Service DSG,Education CFR Funding Advances,0020065427,INDEPENDENT JEWISH DAY SCHOOL,"10,530.78",26/04/2023,PUBLISH
Delivery Units,Childrens Service DSG,Education CFR Funding Advances,0020065428,The Mill Hill Foundation,"3,698.10",26/04/2023,PUBLISH
Delivery Units,Childrens Service DSG,Education CFR Funding Advances,0020065433,Millbrook Park Primary School,"13,806.24",26/04/2023,PUBLISH
Delivery Units,Childrens Service DSG,Education CFR Funding Advances,0020065437,PARKFIELD ACADEMY,"21,202.44",26/04/2023,PUBLISH
Delivery Units,Childrens Service DSG,Education CFR Funding Advances,0020065438,Peninim Primary School,"18,243.96",26/04/2023,PUBLISH
Delivery Units,Childrens Service DSG,Education CFR Funding Advances,0020065449,Summerside Primary Academy,"10,865.37",26/04/2023,PUBLISH
Delivery Units,Childrens Service DSG,Education CFR Funding Advances,0020065451,THE HYDE EF ACADEMY,"24,724.44",26/04/2023,PUBLISH
Delivery Units,Childrens Service DSG,Private Contractors - Third Pa,0080064570,LITTLE LEO'S NURSERY,344.56,17/04/2023,PUBLISH
Delivery Units,Childrens Service DSG,Private Contractors - Third Pa,0080065052,PARKFIELD ACADEMY,"1,245.60",12/04/2023,PUBLISH
Delivery Units,Childrens Family Services,Other Services,1024065401,LEE SECURITY LONDON LIMITED,77.00,18/04/2023,PUBLISH
Delivery Units,Childrens Family Services,Cleaning and domestic material,1024067001,Cleantec Services Ltd,"1,397.80",18/04/2023,PUBLISH
Delivery Units,Childrens Family Services,Other Agencies - Third Party P,1024180201,COMMUNITY PRODUCTS (UK) LTD,192.00,21/04/2023,PUBLISH
Delivery Units,Childrens Family Services,Cleaning and domestic material,1023399403,Norse Commercial Services Ltd,639.16,17/04/2023,PUBLISH
Delivery Units,Childrens Family Services,Other Agencies - Third Party P,1024207601,Non Stop Action,"2,520.00",24/04/2023,PUBLISH
Delivery Units,Childrens Family Services,Other Agencies - Third Party P,1024141501,KENT COUNTY COUNCIL (KCS),767.54,20/04/2023,PUBLISH
Delivery Units,Childrens Family Services,Cleaning and domestic material,1023393603,Norse Commercial Services Ltd,479.51,17/04/2023,PUBLISH
Delivery Units,Childrens Family Services,Water Services,1023961001,2468 LTD,95.21,14/04/2023,PUBLISH
Delivery Units,Childrens Family Services,Gas,1024206202,KENT COUNTY COUNCIL (KCS),850.71,24/04/2023,PUBLISH
Delivery Units,Childrens Family Services,Contract Cleaning,1023931301,Norse Commercial Services Ltd,795.17,14/04/2023,PUBLISH
Delivery Units,Childrens Family Services,Equipment and Materials Purcha,1024250201,G.B.HOLDINGS LTD,57.65,25/04/2023,PUBLISH
Delivery Units,Childrens Family Services,Other Energy,1023700402,KENT COUNTY COUNCIL (KCS),165.53,05/04/2023,PUBLISH
Delivery Units,Childrens Family Services,Other Energy,1024248202,KENT COUNTY COUNCIL (KCS),173.93,26/04/2023,PUBLISH
Delivery Units,Childrens Family Services,Other Services,1022742903,WATES PROPERTY SERVICES LTD,"2,964.50",06/04/2023,PUBLISH
Delivery Units,Childrens Family Services,Other Services,1023147003,BLUE 9 SECURITY LIMITED,"2,161.32",04/04/2023,PUBLISH
Delivery Units,Childrens Family Services,Other Services,1023585501,BLUE 9 SECURITY LIMITED,"1,952.16",04/04/2023,PUBLISH
Delivery Units,Childrens Family Services,Other Services,1023644201,BLUE 9 SECURITY LIMITED,313.74,04/04/2023,PUBLISH
Delivery Units,Childrens Family Services,Electricity,1023743201,Enron Estates Ltd,"2,500.00",04/04/2023,PUBLISH
Delivery Units,Childrens Family Services,Other Services,1023744201,BLUE 9 SECURITY LIMITED,278.88,04/04/2023,PUBLISH
Delivery Units,Childrens Family Services,Other Services,1023758201,BLUE 9 SECURITY LIMITED,"2,405.34",04/04/2023,PUBLISH
Delivery Units,Childrens Family Services,Other Services,1023758401,BLUE 9 SECURITY LIMITED,"2,213.61",04/04/2023,PUBLISH
Delivery Units,Childrens Family Services,Other Services,1023925801,BLUE 9 SECURITY LIMITED,"2,067.45",14/04/2023,PUBLISH
Delivery Units,Childrens Family Services,Other Services,1023926501,BLUE 9 SECURITY LIMITED,"1,917.30",14/04/2023,PUBLISH
Delivery Units,Childrens Family Services,Other Services,1023927501,BLUE 9 SECURITY LIMITED,104.58,14/04/2023,PUBLISH
Delivery Units,Childrens Family Services,Other Services,1023927601,BLUE 9 SECURITY LIMITED,"1,934.73",14/04/2023,PUBLISH
Delivery Units,Childrens Family Services,Advertising,1023929901,GOOD IMPRESSIONS (LONDON) LIMITED,120.00,14/04/2023,PUBLISH
Delivery Units,Childrens Family Services,Other Services,1024347801,1ST CONTAINERS UK LIMITED,31.00,28/04/2023,PUBLISH
Delivery Units,Childrens Family Services,Furniture-Purchase-Repair,1021056201,Herts FullStop,-736.44,20/04/2023,PUBLISH
Delivery Units,Childrens Family Services,Publications,0080065512,TV Licensing,"2,226.00",27/04/2023,PUBLISH
Delivery Units,Childrens Family Services,Books-CDs-Audio-Video,1023741102,OVERDRIVE,"52,704.00",11/04/2023,PUBLISH
Delivery Units,Childrens Family Services,Books-CDs-Audio-Video,1023983301,Bolinda Uk Ltd,"50,000.00",14/04/2023,PUBLISH
Delivery Units,Childrens Family Services,Cleaning and domestic material,1022558702,Herts FullStop,111.95,20/04/2023,PUBLISH
Delivery Units,Childrens Family Services,Other Services,1023783902,Kisharon Limited,"2,081.66",11/04/2023,PUBLISH
Delivery Units,Childrens Family Services,Cleaning and domestic material,1022866303,Norse Commercial Services Ltd,"2,121.70",04/04/2023,PUBLISH
Delivery Units,Childrens Family Services,Laundry and Dry Cleaning,1023935701,PHS GROUP LTD,271.60,14/04/2023,PUBLISH
Delivery Units,Childrens Family Services,Other Services,1023937801,Norse Commercial Services Ltd,-10.00,25/04/2023,PUBLISH
Delivery Units,Childrens Family Services,Other Services,1021998303,Norse Commercial Services Ltd,61.10,04/04/2023,PUBLISH
Delivery Units,Childrens Family Services,Cleaning and domestic material,1022866203,Norse Commercial Services Ltd,"2,403.40",04/04/2023,PUBLISH
Delivery Units,Childrens Family Services,Electricity,1024249101,Enron Estates Ltd,"2,500.00",25/04/2023,PUBLISH
Delivery Units,Childrens Family Services,Cleaning and domestic material,1022863403,Norse Commercial Services Ltd,479.51,04/04/2023,PUBLISH
Delivery Units,Childrens Family Services,Cleaning and domestic material,1022863203,Norse Commercial Services Ltd,"1,057.93",04/04/2023,PUBLISH
Delivery Units,Childrens Family Services,Laundry and Dry Cleaning,1023934001,PHS GROUP LTD,133.93,14/04/2023,PUBLISH
Delivery Units,Childrens Family Services,Other Services,1023936601,Norse Commercial Services Ltd,-10.00,25/04/2023,PUBLISH
Delivery Units,Childrens Family Services,Cleaning and domestic material,1024107101,Herts FullStop,34.17,20/04/2023,PUBLISH
Delivery Units,Childrens Family Services,Cleaning and domestic material,1022864003,Norse Commercial Services Ltd,479.01,04/04/2023,PUBLISH
Delivery Units,Childrens Family Services,Other Services,1023937001,Norse Commercial Services Ltd,-10.00,25/04/2023,PUBLISH
Delivery Units,Childrens Family Services,Cleaning and domestic material,1022864303,Norse Commercial Services Ltd,640.00,04/04/2023,PUBLISH
Delivery Units,Childrens Family Services,Other Services,1023743601,Norse Commercial Services Ltd,-10.00,25/04/2023,PUBLISH
Delivery Units,Childrens Family Services,Cleaning and domestic material,1022867403,Norse Commercial Services Ltd,479.51,04/04/2023,PUBLISH
Delivery Units,Childrens Family Services,Other Services,1023936501,Norse Commercial Services Ltd,-10.00,25/04/2023,PUBLISH
Delivery Units,Childrens Family Services,Cleaning and domestic material,1022862703,Norse Commercial Services Ltd,638.74,04/04/2023,PUBLISH
Delivery Units,Childrens Family Services,Other Services,1023934801,Norse Commercial Services Ltd,-10.00,25/04/2023,PUBLISH
Delivery Units,Strategy and Resources,Advertising,1023389302,GOOD IMPRESSIONS (LONDON) LIMITED,120.00,04/04/2023,PUBLISH
Delivery Units,Strategy and Resources,Advertising,1023392802,GOOD IMPRESSIONS (LONDON) LIMITED,210.00,06/04/2023,PUBLISH
Delivery Units,Strategy and Resources,Advertising,1023393102,GOOD IMPRESSIONS (LONDON) LIMITED,210.00,06/04/2023,PUBLISH
Delivery Units,Strategy and Resources,Advertising,1023393802,GOOD IMPRESSIONS (LONDON) LIMITED,180.00,04/04/2023,PUBLISH
Delivery Units,Strategy and Resources,Advertising,1023395402,GOOD IMPRESSIONS (LONDON) LIMITED,540.00,06/04/2023,PUBLISH
Delivery Units,Strategy and Resources,Advertising,1023396402,GOOD IMPRESSIONS (LONDON) LIMITED,180.00,06/04/2023,PUBLISH
Delivery Units,Strategy and Resources,Training,1023595202,Hot Seat,"1,475.00",04/04/2023,PUBLISH
Delivery Units,Strategy and Resources,Advertising,1023689102,GOOD IMPRESSIONS (LONDON) LIMITED,340.00,04/04/2023,PUBLISH
Delivery Units,Strategy and Resources,Advertising,1023692402,GOOD IMPRESSIONS (LONDON) LIMITED,690.00,04/04/2023,PUBLISH
Delivery Units,Strategy and Resources,Publications,1023985701,Monica Wells Photography Ltd,300.00,14/04/2023,PUBLISH
Delivery Units,Strategy and Resources,Equipment and Materials Purcha,1024015601,Letterbox Distribution.com,"19,927.50",14/04/2023,PUBLISH
Delivery Units,Assurance,Postage,1024144501,ROYAL MAIL GROUP LIMITED,394.98,20/04/2023,PUBLISH
Delivery Units,Assurance,Postage,1024144601,ROYAL MAIL GROUP LIMITED,159.50,20/04/2023,PUBLISH
Delivery Units,Assurance,Postage,1024144701,ROYAL MAIL GROUP LIMITED,606.80,20/04/2023,PUBLISH
Delivery Units,Assurance,Postage,1024144801,ROYAL MAIL GROUP LIMITED,8.20,20/04/2023,PUBLISH
Delivery Units,Assurance,Postage,1024145401,ROYAL MAIL GROUP LIMITED,131.08,20/04/2023,PUBLISH
Delivery Units,Assurance,Postage,1024145501,ROYAL MAIL GROUP LIMITED,85.50,20/04/2023,PUBLISH
Delivery Units,Assurance,Postage,1024145701,ROYAL MAIL GROUP LIMITED,85.26,20/04/2023,PUBLISH
Delivery Units,Assurance,Postage,1024145901,ROYAL MAIL GROUP LIMITED,246.50,20/04/2023,PUBLISH
Delivery Units,Assurance,Postage,1024146001,ROYAL MAIL GROUP LIMITED,575.94,20/04/2023,PUBLISH
Delivery Units,Assurance,Postage,1024146301,ROYAL MAIL GROUP LIMITED,"1,749.22",20/04/2023,PUBLISH
Delivery Units,Customer and Place,Equipment and Materials Purcha,1024027701,POSTURITE LTD,"1,002.70",17/04/2023,PUBLISH
Delivery Units,Customer and Place,Clothing - Uniforms,1024205802,NEXT BUSINESS TO BUSINESS,"2,340.00",24/04/2023,PUBLISH
Delivery Units,Customer and Place,Professional Services,1024249602,STOPFORD INFORMATIONSYSTEMSLTD,260.00,26/04/2023,PUBLISH
Delivery Units,Assurance,Printing-Contract,1024320601,Civica Election Services Limit,"7,712.51",27/04/2023,PUBLISH
Delivery Units,Assurance,Professional Services,1023937701,Kromers Ltd,"9,200.00",14/04/2023,PUBLISH
Delivery Units,Assurance,Professional Services,1023938001,Kromers Ltd,"4,800.00",14/04/2023,PUBLISH
Delivery Units,Assurance,Advertising,1024142601,Association of Democratic Services Offic,960.00,20/04/2023,PUBLISH
Delivery Units,Assurance,Training,1023808602,National Association of Civic Officers,450.00,11/04/2023,PUBLISH
Delivery Units,Assurance,Miscellaneous Expenses,1024352301,CHARTWELLS,552.95,28/04/2023,PUBLISH
Delivery Units,Assurance,Printing-Contract,1023583801,PeopleScout Limited,773.93,04/04/2023,PUBLISH
Delivery Units,Assurance,Training,1023942401,Governance Training and Consul,"1,335.00",14/04/2023,PUBLISH
Delivery Units,Assurance,Training,1023943101,Governance Training and Consul,895.00,14/04/2023,PUBLISH
Delivery Units,Assurance,Equipment and Materials Purcha,1023975401,ISS Mediclean,60.00,14/04/2023,PUBLISH
Delivery Units,Childrens Family Services,Professional Services,0070183239,ASEND,130.00,05/04/2023,PUBLISH
Delivery Units,Customer and Place,Equipment and Materials Purcha,1023784201,SSI SCHAEFER LTD,"4,972.50",05/04/2023,PUBLISH
Delivery Units,Customer and Place,Equipment and Materials Purcha,1023927101,STORM ENVIRONMENTAL LTD,"9,339.00",14/04/2023,PUBLISH
Delivery Units,Customer and Place,Training,1023395101,SKILLS TRAINING CENTRE LTD,330.00,25/04/2023,PUBLISH
Delivery Units,Customer and Place,Clothing - Protective Clothing,1023740302,SMI INT Group Ltd,22.85,06/04/2023,PUBLISH
Delivery Units,Customer and Place,Clothing - Protective Clothing,1023740802,SMI INT Group Ltd,22.85,06/04/2023,PUBLISH
Delivery Units,Customer and Place,Clothing - Protective Clothing,1023741402,SMI INT Group Ltd,35.09,06/04/2023,PUBLISH
Delivery Units,Customer and Place,Clothing - Protective Clothing,1023741802,SMI INT Group Ltd,35.09,06/04/2023,PUBLISH
Delivery Units,Customer and Place,Clothing - Protective Clothing,1023741902,SMI INT Group Ltd,35.09,06/04/2023,PUBLISH
Delivery Units,Customer and Place,Clothing - Protective Clothing,1023742102,SMI INT Group Ltd,22.85,06/04/2023,PUBLISH
Delivery Units,Customer and Place,Clothing - Protective Clothing,1023742202,SMI INT Group Ltd,19.19,06/04/2023,PUBLISH
Delivery Units,Customer and Place,Clothing - Protective Clothing,1023742602,SMI INT Group Ltd,49.00,06/04/2023,PUBLISH
Delivery Units,Customer and Place,Clothing - Protective Clothing,1023743002,SMI INT Group Ltd,35.09,06/04/2023,PUBLISH
Delivery Units,Customer and Place,Clothing - Protective Clothing,1023744102,SMI INT Group Ltd,35.09,06/04/2023,PUBLISH
Delivery Units,Customer and Place,Clothing - Protective Clothing,1023744602,SMI INT Group Ltd,35.09,06/04/2023,PUBLISH
Delivery Units,Customer and Place,Clothing - Protective Clothing,1023744802,SMI INT Group Ltd,35.09,06/04/2023,PUBLISH
Delivery Units,Customer and Place,Clothing - Protective Clothing,1023745102,SMI INT Group Ltd,33.62,06/04/2023,PUBLISH
Delivery Units,Customer and Place,Clothing - Protective Clothing,1023745402,SMI INT Group Ltd,22.33,06/04/2023,PUBLISH
Delivery Units,Customer and Place,Clothing - Protective Clothing,1023747002,SMI INT Group Ltd,114.20,06/04/2023,PUBLISH
Delivery Units,Customer and Place,Clothing - Protective Clothing,1023753002,SMI INT Group Ltd,35.09,06/04/2023,PUBLISH
Delivery Units,Customer and Place,Clothing - Protective Clothing,1023753202,SMI INT Group Ltd,35.09,06/04/2023,PUBLISH
Delivery Units,Customer and Place,Clothing - Protective Clothing,1023753502,SMI INT Group Ltd,22.85,06/04/2023,PUBLISH
Delivery Units,Customer and Place,Clothing - Protective Clothing,1023753602,SMI INT Group Ltd,34.37,06/04/2023,PUBLISH
Delivery Units,Customer and Place,Clothing - Protective Clothing,1023753702,SMI INT Group Ltd,35.09,06/04/2023,PUBLISH
Delivery Units,Customer and Place,Clothing - Protective Clothing,1023753802,SMI INT Group Ltd,35.09,06/04/2023,PUBLISH
Delivery Units,Customer and Place,Clothing - Protective Clothing,1023754102,SMI INT Group Ltd,35.09,06/04/2023,PUBLISH
Delivery Units,Customer and Place,Clothing - Protective Clothing,1023754702,SMI INT Group Ltd,35.09,06/04/2023,PUBLISH
Delivery Units,Customer and Place,Clothing - Protective Clothing,1023754902,SMI INT Group Ltd,33.62,06/04/2023,PUBLISH
Delivery Units,Customer and Place,Clothing - Protective Clothing,1023755002,SMI INT Group Ltd,21.38,06/04/2023,PUBLISH
Delivery Units,Customer and Place,Clothing - Protective Clothing,1023755102,SMI INT Group Ltd,35.09,06/04/2023,PUBLISH
Delivery Units,Customer and Place,Clothing - Protective Clothing,1023755802,SMI INT Group Ltd,21.38,06/04/2023,PUBLISH
Delivery Units,Customer and Place,Clothing - Protective Clothing,1023756302,SMI INT Group Ltd,21.38,06/04/2023,PUBLISH
Delivery Units,Customer and Place,Clothing - Protective Clothing,1023756602,SMI INT Group Ltd,33.62,06/04/2023,PUBLISH
Delivery Units,Customer and Place,Clothing - Protective Clothing,1023756702,SMI INT Group Ltd,35.09,06/04/2023,PUBLISH
Delivery Units,Customer and Place,Clothing - Protective Clothing,1023757102,SMI INT Group Ltd,15.90,06/04/2023,PUBLISH
Delivery Units,Customer and Place,Clothing - Protective Clothing,1023757302,SMI INT Group Ltd,22.85,06/04/2023,PUBLISH
Delivery Units,Customer and Place,Clothing - Protective Clothing,1023757502,SMI INT Group Ltd,33.62,06/04/2023,PUBLISH
Delivery Units,Customer and Place,Clothing - Protective Clothing,1023757702,SMI INT Group Ltd,33.62,06/04/2023,PUBLISH
Delivery Units,Customer and Place,Training,1023929601,SKILLS TRAINING CENTRE LTD,"6,000.00",14/04/2023,PUBLISH
Delivery Units,Customer and Place,Clothing - Protective Clothing,1023941002,SMI INT Group Ltd,12.24,26/04/2023,PUBLISH
Delivery Units,Customer and Place,Clothing - Protective Clothing,1023941502,SMI INT Group Ltd,12.24,26/04/2023,PUBLISH
Delivery Units,Customer and Place,Clothing - Protective Clothing,1023941602,SMI INT Group Ltd,22.85,26/04/2023,PUBLISH
Delivery Units,Customer and Place,Clothing - Protective Clothing,1023941702,SMI INT Group Ltd,33.62,26/04/2023,PUBLISH
Delivery Units,Customer and Place,Clothing - Protective Clothing,1023941902,SMI INT Group Ltd,35.09,26/04/2023,PUBLISH
Delivery Units,Customer and Place,Clothing - Protective Clothing,1023942002,SMI INT Group Ltd,19.19,26/04/2023,PUBLISH
Delivery Units,Customer and Place,Clothing - Protective Clothing,1023942102,SMI INT Group Ltd,35.09,26/04/2023,PUBLISH
Delivery Units,Customer and Place,Clothing - Protective Clothing,1023942202,SMI INT Group Ltd,19.19,26/04/2023,PUBLISH
Delivery Units,Customer and Place,Clothing - Protective Clothing,1023942502,SMI INT Group Ltd,19.19,26/04/2023,PUBLISH
Delivery Units,Customer and Place,Clothing - Protective Clothing,1023942602,SMI INT Group Ltd,21.38,26/04/2023,PUBLISH
Delivery Units,Customer and Place,Clothing - Protective Clothing,1023943002,SMI INT Group Ltd,35.09,26/04/2023,PUBLISH
Delivery Units,Customer and Place,Clothing - Protective Clothing,1023943302,SMI INT Group Ltd,12.24,26/04/2023,PUBLISH
Delivery Units,Customer and Place,Clothing - Protective Clothing,1023943402,SMI INT Group Ltd,35.09,26/04/2023,PUBLISH
Delivery Units,Customer and Place,Clothing - Protective Clothing,1023943602,SMI INT Group Ltd,22.85,26/04/2023,PUBLISH
Delivery Units,Customer and Place,Clothing - Protective Clothing,1023944102,SMI INT Group Ltd,50.47,26/04/2023,PUBLISH
Delivery Units,Customer and Place,Clothing - Protective Clothing,1023944202,SMI INT Group Ltd,33.62,26/04/2023,PUBLISH
Delivery Units,Customer and Place,Clothing - Protective Clothing,1023944302,SMI INT Group Ltd,35.09,26/04/2023,PUBLISH
Delivery Units,Customer and Place,Clothing - Protective Clothing,1023944402,SMI INT Group Ltd,33.62,26/04/2023,PUBLISH
Delivery Units,Customer and Place,Clothing - Protective Clothing,1023944602,SMI INT Group Ltd,35.09,26/04/2023,PUBLISH
Delivery Units,Customer and Place,Clothing - Protective Clothing,1023944902,SMI INT Group Ltd,35.09,26/04/2023,PUBLISH
Delivery Units,Customer and Place,Clothing - Protective Clothing,1023945102,SMI INT Group Ltd,12.24,26/04/2023,PUBLISH
Delivery Units,Customer and Place,Clothing - Protective Clothing,1023945202,SMI INT Group Ltd,22.85,26/04/2023,PUBLISH
Delivery Units,Customer and Place,Clothing - Protective Clothing,1023945502,SMI INT Group Ltd,12.24,26/04/2023,PUBLISH
Delivery Units,Customer and Place,Clothing - Protective Clothing,1023996002,SMI INT Group Ltd,10.08,26/04/2023,PUBLISH
Delivery Units,Customer and Place,Clothing - Protective Clothing,1024056902,SMI INT Group Ltd,18.66,20/04/2023,PUBLISH
Delivery Units,Customer and Place,Clothing - Protective Clothing,1024057402,SMI INT Group Ltd,"1,446.15",20/04/2023,PUBLISH
Delivery Units,Customer and Place,Clothing - Protective Clothing,1024068302,SMI INT Group Ltd,55.98,20/04/2023,PUBLISH
Delivery Units,Customer and Place,Clothing - Protective Clothing,1024068602,SMI INT Group Ltd,52.50,20/04/2023,PUBLISH
Delivery Units,Customer and Place,Clothing - Protective Clothing,1024109401,SMI INT Group Ltd,35.09,20/04/2023,PUBLISH
Delivery Units,Customer and Place,Clothing - Protective Clothing,1024206602,SMI INT Group Ltd,23.70,25/04/2023,PUBLISH
Delivery Units,Customer and Place,General Office Expenses,1024300701,Banner Group Limited,478.94,26/04/2023,PUBLISH
Delivery Units,Customer and Place,Training,1024316501,SKILLS TRAINING CENTRE LTD,"9,350.00",27/04/2023,PUBLISH
Delivery Units,Customer and Place,Publications,1023741201,NEWSQUEST (LONDON) LIMITED,69.30,04/04/2023,PUBLISH
Delivery Units,Customer and Place,Rubbish Collection,1024313601,LARAC Ltd,445.00,27/04/2023,PUBLISH
Delivery Units,Customer and Place,Equipment and Materials Purcha,1023996802,SMI INT Group Ltd,383.30,20/04/2023,PUBLISH
Delivery Units,Adults and Health,Ttl IT & Comms,1023748601,Access UK Ltd,"9,067.50",04/04/2023,PUBLISH
Delivery Units,Adults and Health,Software Licences & Support,1023759101,Access UK Ltd,"1,389.75",04/04/2023,PUBLISH
Delivery Units,Adults and Health,Consultants Fees,1023746801,Highbroom Consultancy Limited trading as,"9,875.00",04/04/2023,PUBLISH
Delivery Units,Public Health,Health authorities - Third Par,1023629802,Central & North West London NHS FT,"1,801.32",06/04/2023,PUBLISH
Delivery Units,Public Health,Health authorities - Third Par,1004338801,Barking Havering Redbridge NHS Trust,-69.00,11/04/2023,PUBLISH
Delivery Units,Public Health,Health authorities - Third Par,1023631202,Barking Havering Redbridge NHS Trust,126.00,11/04/2023,PUBLISH
Delivery Units,Public Health,Health authorities - Third Par,1021898403,CENTRAL LONDONCOMMUNITY HEALTHCARE,48.54,18/04/2023,PUBLISH
Delivery Units,Public Health,Health authorities - Third Par,1023993102,London North West Healthcare NHS Trust,"5,286.45",14/04/2023,PUBLISH
Delivery Units,Public Health,Health authorities - Third Par,1023997102,Homerton University Hospital,"2,322.33",14/04/2023,PUBLISH
Delivery Units,Public Health,Other Services,1023925601,GOOD IMPRESSIONS (LONDON) LIMITED,660.00,14/04/2023,PUBLISH
Delivery Units,Adults and Health,Other Services,1023941302,KMCA Consultancy Services Ltd,"1,545.60",14/04/2023,PUBLISH
Delivery Units,Adults and Health,Other Services,1023941402,Akras Solutions Limited,"6,384.00",14/04/2023,PUBLISH
Delivery Units,Adults and Health,Other Services,1023942801,Action First Assessment Ltd,"4,015.00",14/04/2023,PUBLISH
Delivery Units,Adults and Health,Other Transfer Payments to Soc,1024301202,Psychiatric Services North East Limited,341.49,27/04/2023,PUBLISH
Delivery Units,Adults and Health,Professional Services,1024032701,Rethink Mental Illness,202.01,17/04/2023,PUBLISH
Delivery Units,Adults and Health,Other Services,1022075703,D.A. Languages Ltd,51.75,25/04/2023,PUBLISH
Delivery Units,Adults and Health,Other Services,1022078803,D.A. Languages Ltd,124.50,25/04/2023,PUBLISH
Delivery Units,Adults and Health,Other Services,1023700102,POSTURITE LTD,75.00,04/04/2023,PUBLISH
Delivery Units,Adults and Health,Other Transfer Payments to Soc,1024183902,BACK CARE SOLUTIONS LIMITED,300.00,24/04/2023,PUBLISH
Delivery Units,Adults and Health,Other Agencies - Third Party P,0090577518,BENSLOW MANAGEMENT COMPANY LIMITED,"4,124.57",18/04/2023,PUBLISH
Delivery Units,Adults and Health,Other Agencies - Third Party P,0090577562,AUTUMN GARDENS,"3,440.00",20/04/2023,PUBLISH
Delivery Units,Adults and Health,Other Agencies - Third Party P,0090577586,AUTUMN GARDENS,"4,800.00",20/04/2023,PUBLISH
Delivery Units,Adults and Health,Other Agencies - Third Party P,0090577587,AUTUMN GARDENS,"4,800.00",20/04/2023,PUBLISH
Delivery Units,Adults and Health,Other Agencies - Third Party P,0090577588,AUTUMN GARDENS,"4,800.00",20/04/2023,PUBLISH
Delivery Units,Adults and Health,Other Agencies - Third Party P,0090578123,ASPEN VILLAGES LTD,"2,780.66",21/04/2023,PUBLISH
Delivery Units,Adults and Health,Other Agencies - Third Party P,0090579814,CARLTON COURT (TLC GROUP),"6,800.00",26/04/2023,PUBLISH
Delivery Units,Adults and Health,Other Agencies - Third Party P,0090579826,CARLTON COURT (TLC GROUP),"6,000.00",26/04/2023,PUBLISH
Delivery Units,Adults and Health,Other Agencies - Third Party P,0090579872,CARLTON COURT (TLC GROUP),"4,363.24",26/04/2023,PUBLISH
Delivery Units,Adults and Health,Other Agencies - Third Party P,0090579885,CARLTON COURT (TLC GROUP),"30,000.00",26/04/2023,PUBLISH
Delivery Units,Adults and Health,Other Agencies - Third Party P,0090580122,CARLTON COURT (TLC GROUP),"4,363.24",26/04/2023,PUBLISH
Delivery Units,Adults and Health,Other Agencies - Third Party P,0090580136,CARLTON COURT (TLC GROUP),"34,750.00",26/04/2023,PUBLISH
Delivery Units,Adults and Health,Other Agencies - Third Party P,0090573050,St Matthews Limited,"6,324.00",11/04/2023,PUBLISH
Delivery Units,Adults and Health,Other Agencies - Third Party P,0090573062,NIGHTINGALE HOUSE,"36,467.14",11/04/2023,PUBLISH
Delivery Units,Adults and Health,Other Agencies - Third Party P,0090573065,FERNBANK NURSING HOME.,"17,051.55",11/04/2023,PUBLISH
Delivery Units,Adults and Health,Other Agencies - Third Party P,0090573066,FERNBANK NURSING HOME.,"5,092.68",11/04/2023,PUBLISH
Delivery Units,Adults and Health,Other Agencies - Third Party P,0090573071,Cedars Care Home (Southend) Ltd,"4,400.00",11/04/2023,PUBLISH
Delivery Units,Adults and Health,Other Agencies - Third Party P,0090573072,Cedars Care Home (Southend) Ltd,"4,400.00",11/04/2023,PUBLISH
Delivery Units,Adults and Health,Other Agencies - Third Party P,0090573073,Cedars Care Home (Southend) Ltd,"3,614.29",11/04/2023,PUBLISH
Delivery Units,Adults and Health,Other Agencies - Third Party P,0090573172,Barchester Healthcare Limited,"6,421.43",11/04/2023,PUBLISH
Delivery Units,Adults and Health,Other Agencies - Third Party P,0090573173,Barchester Healthcare Limited,"5,800.00",11/04/2023,PUBLISH
Delivery Units,Adults and Health,Other Agencies - Third Party P,0090573660,Athena Care Homes (Gaywood) Limited,"6,000.00",11/04/2023,PUBLISH
Delivery Units,Adults and Health,Other Agencies - Third Party P,0090575381,NIGHTINGALE HOUSE,"4,218.21",14/04/2023,PUBLISH
Delivery Units,Adults and Health,Other Agencies - Third Party P,0090575386,Stamford Nursing Centre,"4,317.86",14/04/2023,PUBLISH
Delivery Units,Adults and Health,Other Agencies - Third Party P,0090575430,TORRINGTON HOMES,"4,071.43",14/04/2023,PUBLISH
Delivery Units,Adults and Health,Other Agencies - Third Party P,0090576439,Victoria Care Centre,"3,038.66",17/04/2023,PUBLISH
Delivery Units,Adults and Health,Other Agencies - Third Party P,0090577473,Topcare Ltd,"5,142.86",18/04/2023,PUBLISH
Delivery Units,Adults and Health,Other Agencies - Third Party P,0090577482,Chalfont Lodge (Barchester Healthcare Ho,"5,960.61",18/04/2023,PUBLISH
Delivery Units,Adults and Health,Other Agencies - Third Party P,0090577486,HUSKARDS NEW CARE LTD,"2,366.70",18/04/2023,PUBLISH
Delivery Units,Adults and Health,Other Agencies - Third Party P,0090577500,St Matthews Limited,"3,719.70",18/04/2023,PUBLISH
Delivery Units,Adults and Health,Other Agencies - Third Party P,0090577501,Barchester Healthcare,"6,857.14",18/04/2023,PUBLISH
Delivery Units,Adults and Health,Other Agencies - Third Party P,0090577502,Barchester Healthcare,"6,000.00",18/04/2023,PUBLISH
Delivery Units,Adults and Health,Other Agencies - Third Party P,0090577503,Barchester Healthcare,"5,571.43",18/04/2023,PUBLISH
Delivery Units,Adults and Health,Other Agencies - Third Party P,0090577505,Barchester Healthcare,"6,000.00",18/04/2023,PUBLISH
Delivery Units,Adults and Health,Other Agencies - Third Party P,0090577511,Milford Lodge Residential Home,"4,071.43",18/04/2023,PUBLISH
Delivery Units,Adults and Health,Other Agencies - Third Party P,0090577514,WESTMINSTER HEALTH CARE LTD,"4,707.17",18/04/2023,PUBLISH
Delivery Units,Adults and Health,Other Agencies - Third Party P,0090577515,WESTMINSTER HEALTH CARE LTD,"4,393.36",18/04/2023,PUBLISH
Delivery Units,Adults and Health,Other Agencies - Third Party P,0090577539,WESTMINSTER HEALTH CARE LTD,"2,435.01",18/04/2023,PUBLISH
Delivery Units,Adults and Health,Other Agencies - Third Party P,0090577540,WESTMINSTER HEALTH CARE LTD,"4,912.04",18/04/2023,PUBLISH
Delivery Units,Adults and Health,Other Agencies - Third Party P,0090577541,WESTMINSTER HEALTH CARE LTD,"2,878.57",18/04/2023,PUBLISH
Delivery Units,Adults and Health,Other Agencies - Third Party P,0090577542,WESTMINSTER HEALTH CARE LTD,"4,926.34",18/04/2023,PUBLISH
Delivery Units,Adults and Health,Other Agencies - Third Party P,0090577543,WESTMINSTER HEALTH CARE LTD,"5,273.59",18/04/2023,PUBLISH
Delivery Units,Adults and Health,Other Agencies - Third Party P,0090577544,WESTMINSTER HEALTH CARE LTD,"5,273.59",18/04/2023,PUBLISH
Delivery Units,Adults and Health,Other Agencies - Third Party P,0090577545,WESTMINSTER HEALTH CARE LTD,"2,199.36",18/04/2023,PUBLISH
Delivery Units,Adults and Health,Other Agencies - Third Party P,0090577546,WESTMINSTER HEALTH CARE LTD,"4,436.68",18/04/2023,PUBLISH
Delivery Units,Adults and Health,Other Agencies - Third Party P,0090577547,WESTMINSTER HEALTH CARE LTD,"2,600.00",18/04/2023,PUBLISH
Delivery Units,Adults and Health,Other Agencies - Third Party P,0090577548,WESTMINSTER HEALTH CARE LTD,"4,449.60",18/04/2023,PUBLISH
Delivery Units,Adults and Health,Other Agencies - Third Party P,0090577549,WESTMINSTER HEALTH CARE LTD,"4,763.24",18/04/2023,PUBLISH
Delivery Units,Adults and Health,Other Agencies - Third Party P,0090577581,Candlewood House Care Home,"8,317.76",20/04/2023,PUBLISH
Delivery Units,Adults and Health,Other Agencies - Third Party P,0090578127,DMP Healthcare (Ogilvy) Ltd,"4,071.43",21/04/2023,PUBLISH
Delivery Units,Adults and Health,Other Agencies - Third Party P,0090578132,Oakland Primecare Ltd t/a Elsyng House,"7,085.71",21/04/2023,PUBLISH
Delivery Units,Adults and Health,Other Agencies - Third Party P,0090578134,MEERA NURSING HOME LIMITED,"3,857.14",21/04/2023,PUBLISH
Delivery Units,Adults and Health,Other Agencies - Third Party P,0090578135,Oakland Primecare Ltd t/a Elsyng House,"7,085.71",21/04/2023,PUBLISH
Delivery Units,Adults and Health,Other Agencies - Third Party P,0090578136,Oakland Primecare Ltd t/a Elsyng House,"6,400.00",21/04/2023,PUBLISH
Delivery Units,Adults and Health,Other Agencies - Third Party P,0090578137,Oakland Primecare Ltd t/a Elsyng House,"6,857.14",21/04/2023,PUBLISH
Delivery Units,Adults and Health,Other Agencies - Third Party P,0090578138,Oakland Primecare Ltd t/a Elsyng House,"7,611.43",21/04/2023,PUBLISH
Delivery Units,Adults and Health,Other Agencies - Third Party P,0090578153,WILSMERE HOUSE CARE CENTRE,"4,818.73",21/04/2023,PUBLISH
Delivery Units,Adults and Health,Other Agencies - Third Party P,0090579625,Candlewood House Care Home,"17,700.00",25/04/2023,PUBLISH
Delivery Units,Adults and Health,Other Agencies - Third Party P,0090579626,Candlewood House Care Home,"9,000.00",25/04/2023,PUBLISH
Delivery Units,Adults and Health,Other Agencies - Third Party P,0090579665,ASHTON LODGE CARE CENTRE,"3,552.00",26/04/2023,PUBLISH
Delivery Units,Adults and Health,Other Agencies - Third Party P,0090579668,ASHTON LODGE CARE CENTRE,"4,168.52",26/04/2023,PUBLISH
Delivery Units,Adults and Health,Other Agencies - Third Party P,0090579670,ABBEY RAVENSCROFT PARK NURSING HOME,"3,752.00",26/04/2023,PUBLISH
Delivery Units,Adults and Health,Other Agencies - Third Party P,0090579671,JEWISH CARE,"2,882.48",26/04/2023,PUBLISH
Delivery Units,Adults and Health,Other Agencies - Third Party P,0090579673,APPLE TREE COURT CARE HOME,"3,800.00",26/04/2023,PUBLISH
Delivery Units,Adults and Health,Other Agencies - Third Party P,0090579676,BUPA CARE HOMES,"-6,911.14",26/04/2023,PUBLISH
Delivery Units,Adults and Health,Other Agencies - Third Party P,0090579677,LIFESTYLE CARE PLC,"5,047.08",26/04/2023,PUBLISH
Delivery Units,Adults and Health,Other Agencies - Third Party P,0090579679,FOUR SEASONS HEALTH CARE,"2,831.68",26/04/2023,PUBLISH
Delivery Units,Adults and Health,Other Agencies - Third Party P,0090579680,FOUR SEASONS HEALTH CARE,"2,831.68",26/04/2023,PUBLISH
Delivery Units,Adults and Health,Other Agencies - Third Party P,0090579685,LIFESTYLE CARE PLC,"2,882.36",26/04/2023,PUBLISH
Delivery Units,Adults and Health,Other Agencies - Third Party P,0090579688,SONESTA NURSING HOME LTD.,"2,716.68",26/04/2023,PUBLISH
Delivery Units,Adults and Health,Other Agencies - Third Party P,0090579696,ABBEY RAVENSCROFT PARK NURSING HOME,"3,752.00",26/04/2023,PUBLISH
Delivery Units,Adults and Health,Other Agencies - Third Party P,0090579709,JEWISH CARE,"2,882.48",26/04/2023,PUBLISH
Delivery Units,Adults and Health,Other Agencies - Third Party P,0090579722,JEWISH CARE,"2,882.48",26/04/2023,PUBLISH
Delivery Units,Adults and Health,Other Agencies - Third Party P,0090579723,SONESTA NURSING HOME LTD.,"2,716.68",26/04/2023,PUBLISH
Delivery Units,Adults and Health,Other Agencies - Third Party P,0090579726,APPLE TREE COURT CARE HOME,"3,385.00",26/04/2023,PUBLISH
Delivery Units,Adults and Health,Other Agencies - Third Party P,0090579737,BUPA NURSING HOMES LTD - ARKLEY,"4,046.64",26/04/2023,PUBLISH
Delivery Units,Adults and Health,Other Agencies - Third Party P,0090579740,JEWISH CARE,"2,882.48",26/04/2023,PUBLISH
Delivery Units,Adults and Health,Other Agencies - Third Party P,0090579741,JEWISH CARE,"2,945.48",26/04/2023,PUBLISH
Delivery Units,Adults and Health,Other Agencies - Third Party P,0090579746,FOUR SEASONS HEALTH CARE,"2,831.68",26/04/2023,PUBLISH
Delivery Units,Adults and Health,Other Agencies - Third Party P,0090579748,Aarandale Manor Care Home,"6,400.00",26/04/2023,PUBLISH
Delivery Units,Adults and Health,Other Agencies - Third Party P,0090579749,APPLE TREE COURT CARE HOME,"3,385.00",26/04/2023,PUBLISH
Delivery Units,Adults and Health,Other Agencies - Third Party P,0090579754,LIFESTYLE CARE PLC,"2,882.36",26/04/2023,PUBLISH
Delivery Units,Adults and Health,Other Agencies - Third Party P,0090579755,ABBEY RAVENSCROFT PARK NURSING HOME,"3,752.00",26/04/2023,PUBLISH
Delivery Units,Adults and Health,Other Agencies - Third Party P,0090579761,APPLE TREE COURT CARE HOME,"3,865.80",26/04/2023,PUBLISH
Delivery Units,Adults and Health,Other Agencies - Third Party P,0090579762,ABBEY RAVENSCROFT PARK NURSING HOME,"3,752.00",26/04/2023,PUBLISH
Delivery Units,Adults and Health,Other Agencies - Third Party P,0090579763,LIFESTYLE CARE PLC,"2,882.36",26/04/2023,PUBLISH
Delivery Units,Adults and Health,Other Agencies - Third Party P,0090579767,ASHTON LODGE CARE CENTRE,"4,201.60",26/04/2023,PUBLISH
Delivery Units,Adults and Health,Other Agencies - Third Party P,0090579768,ABBEY RAVENSCROFT PARK NURSING HOME,"3,752.00",26/04/2023,PUBLISH
Delivery Units,Adults and Health,Other Agencies - Third Party P,0090579769,APPLE TREE COURT CARE HOME,"3,800.00",26/04/2023,PUBLISH
Delivery Units,Adults and Health,Other Agencies - Third Party P,0090579775,JEWISH CARE,"2,882.48",26/04/2023,PUBLISH
Delivery Units,Adults and Health,Other Agencies - Third Party P,0090579777,Aarandale Manor Care Home,"4,049.60",26/04/2023,PUBLISH
Delivery Units,Adults and Health,Other Agencies - Third Party P,0090579781,ASHTON LODGE CARE CENTRE,"3,552.00",26/04/2023,PUBLISH
Delivery Units,Adults and Health,Other Agencies - Third Party P,0090579786,Lancam Care Services Limited,"3,900.00",26/04/2023,PUBLISH
Delivery Units,Adults and Health,Other Agencies - Third Party P,0090579788,SAGE NURSING HOME,"4,952.00",26/04/2023,PUBLISH
Delivery Units,Adults and Health,Other Agencies - Third Party P,0090579791,ELEANOR PALMER TRUST NO 2 A/C.,"3,752.00",26/04/2023,PUBLISH
Delivery Units,Adults and Health,Other Agencies - Third Party P,0090579793,JEWISH CARE,"2,945.48",26/04/2023,PUBLISH
Delivery Units,Adults and Health,Other Agencies - Third Party P,0090579800,LIFESTYLE CARE PLC,"2,882.36",26/04/2023,PUBLISH
Delivery Units,Adults and Health,Other Agencies - Third Party P,0090579801,SONESTA NURSING HOME LTD.,"2,716.68",26/04/2023,PUBLISH
Delivery Units,Adults and Health,Other Agencies - Third Party P,0090579802,ASHTON LODGE CARE CENTRE,"3,650.00",26/04/2023,PUBLISH
Delivery Units,Adults and Health,Other Agencies - Third Party P,0090579803,ABBEY RAVENSCROFT PARK NURSING HOME,"4,200.00",26/04/2023,PUBLISH
Delivery Units,Adults and Health,Other Agencies - Third Party P,0090579805,FOUR SEASONS HEALTH CARE,"-15,986.51",26/04/2023,PUBLISH
Delivery Units,Adults and Health,Other Agencies - Third Party P,0090579807,FOUR SEASONS HEALTH CARE,"2,831.68",26/04/2023,PUBLISH
Delivery Units,Adults and Health,Other Agencies - Third Party P,0090579808,ABBEY RAVENSCROFT PARK NURSING HOME,"4,800.00",26/04/2023,PUBLISH
Delivery Units,Adults and Health,Other Agencies - Third Party P,0090579809,ELEANOR PALMER TRUST NO 2 A/C.,"3,800.00",26/04/2023,PUBLISH
Delivery Units,Adults and Health,Other Agencies - Third Party P,0090579817,ELM PARK LODGE,"4,593.20",26/04/2023,PUBLISH
Delivery Units,Adults and Health,Other Agencies - Third Party P,0090579819,ELEANOR PALMER TRUST NO 2 A/C.,"3,272.00",26/04/2023,PUBLISH
Delivery Units,Adults and Health,Other Agencies - Third Party P,0090579820,LIFESTYLE CARE PLC,"2,882.36",26/04/2023,PUBLISH
Delivery Units,Adults and Health,Other Agencies - Third Party P,0090579821,APPLE TREE COURT CARE HOME,"3,385.00",26/04/2023,PUBLISH
Delivery Units,Adults and Health,Other Agencies - Third Party P,0090579824,Aarandale Manor Care Home,"4,049.60",26/04/2023,PUBLISH
Delivery Units,Adults and Health,Other Agencies - Third Party P,0090579827,BUPA NURSING HOMES LTD - ARKLEY,"2,906.64",26/04/2023,PUBLISH
Delivery Units,Adults and Health,Other Agencies - Third Party P,0090579831,SAGE NURSING HOME,"4,400.00",26/04/2023,PUBLISH
Delivery Units,Adults and Health,Other Agencies - Third Party P,0090579841,New Century Care (Finchley),"4,800.00",26/04/2023,PUBLISH
Delivery Units,Adults and Health,Other Agencies - Third Party P,0090579846,ABBEY RAVENSCROFT PARK NURSING HOME,"4,800.00",26/04/2023,PUBLISH
Delivery Units,Adults and Health,Other Agencies - Third Party P,0090579850,JEWISH CARE,"2,946.68",26/04/2023,PUBLISH
Delivery Units,Adults and Health,Other Agencies - Third Party P,0090579852,ELEANOR PALMER TRUST NO 2 A/C.,"3,800.00",26/04/2023,PUBLISH
Delivery Units,Adults and Health,Other Agencies - Third Party P,0090579854,HENRY NIHILL HOUSE,"3,600.00",26/04/2023,PUBLISH
Delivery Units,Adults and Health,Other Agencies - Third Party P,0090579855,BUPA CARE HOMES,"2,906.64",26/04/2023,PUBLISH
Delivery Units,Adults and Health,Other Agencies - Third Party P,0090579856,HENRY NIHILL HOUSE,"3,600.00",26/04/2023,PUBLISH
Delivery Units,Adults and Health,Other Agencies - Third Party P,0090579857,HENRY NIHILL HOUSE,"3,600.00",26/04/2023,PUBLISH
Delivery Units,Adults and Health,Other Agencies - Third Party P,0090579858,APPLE TREE COURT CARE HOME,"3,865.00",26/04/2023,PUBLISH
Delivery Units,Adults and Health,Other Agencies - Third Party P,0090579859,APPLE TREE COURT CARE HOME,"5,723.80",26/04/2023,PUBLISH
Delivery Units,Adults and Health,Other Agencies - Third Party P,0090579865,Aarandale Manor Care Home,"33,738.08",26/04/2023,PUBLISH
Delivery Units,Adults and Health,Other Agencies - Third Party P,0090579866,New Century Care (Finchley),"5,000.00",26/04/2023,PUBLISH
Delivery Units,Adults and Health,Other Agencies - Third Party P,0090579877,BUPA NURSING HOMES LTD - ARKLEY,"3,900.00",26/04/2023,PUBLISH
Delivery Units,Adults and Health,Other Agencies - Third Party P,0090579878,New Century Care (Finchley),"9,704.00",26/04/2023,PUBLISH
Delivery Units,Adults and Health,Other Agencies - Third Party P,0090579879,JEWISH CARE,"2,882.48",26/04/2023,PUBLISH
Delivery Units,Adults and Health,Other Agencies - Third Party P,0090579880,JEWISH CARE,"3,066.98",26/04/2023,PUBLISH
Delivery Units,Adults and Health,Other Agencies - Third Party P,0090579882,ABBEY RAVENSCROFT PARK NURSING HOME,"5,666.65",26/04/2023,PUBLISH
Delivery Units,Adults and Health,Other Agencies - Third Party P,0090579883,SONESTA NURSING HOME LTD.,"6,964.29",26/04/2023,PUBLISH
Delivery Units,Adults and Health,Other Agencies - Third Party P,0090579884,FOUR SEASONS HEALTH CARE,"28,442.86",26/04/2023,PUBLISH
Delivery Units,Adults and Health,Other Agencies - Third Party P,0090579891,LIFESTYLE CARE PLC,"2,882.36",26/04/2023,PUBLISH
Delivery Units,Adults and Health,Other Agencies - Third Party P,0090579894,FOUR SEASONS HEALTH CARE,"2,831.68",26/04/2023,PUBLISH
Delivery Units,Adults and Health,Other Agencies - Third Party P,0090579896,SONESTA NURSING HOME LTD.,"2,716.68",26/04/2023,PUBLISH
Delivery Units,Adults and Health,Other Agencies - Third Party P,0090579898,SAGE NURSING HOME,"4,400.00",26/04/2023,PUBLISH
Delivery Units,Adults and Health,Other Agencies - Third Party P,0090579900,ASHTON LODGE CARE CENTRE,"4,033.16",26/04/2023,PUBLISH
Delivery Units,Adults and Health,Other Agencies - Third Party P,0090579902,ELEANOR PALMER TRUST NO 2 A/C.,"3,802.00",26/04/2023,PUBLISH
Delivery Units,Adults and Health,Other Agencies - Third Party P,0090579904,ABBEY RAVENSCROFT PARK NURSING HOME,"3,752.00",26/04/2023,PUBLISH
Delivery Units,Adults and Health,Other Agencies - Third Party P,0090579908,JEWISH CARE,"8,682.28",26/04/2023,PUBLISH
Delivery Units,Adults and Health,Other Agencies - Third Party P,0090579911,ASHTON LODGE CARE CENTRE,"3,556.52",26/04/2023,PUBLISH
Delivery Units,Adults and Health,Other Agencies - Third Party P,0090579915,BUPA NURSING HOMES LTD - ARKLEY,"5,116.35",26/04/2023,PUBLISH
Delivery Units,Adults and Health,Other Agencies - Third Party P,0090579916,APPLE TREE COURT CARE HOME,0.04,26/04/2023,PUBLISH
Delivery Units,Adults and Health,Other Agencies - Third Party P,0090579917,APPLE TREE COURT CARE HOME,752.11,26/04/2023,PUBLISH
Delivery Units,Adults and Health,Other Agencies - Third Party P,0090579918,FOUR SEASONS HEALTH CARE,"-9,624.67",26/04/2023,PUBLISH
Delivery Units,Adults and Health,Other Agencies - Third Party P,0090579919,FOUR SEASONS HEALTH CARE,"2,831.68",26/04/2023,PUBLISH
Delivery Units,Adults and Health,Other Agencies - Third Party P,0090579920,APPLE TREE COURT CARE HOME,"3,385.00",26/04/2023,PUBLISH
Delivery Units,Adults and Health,Other Agencies - Third Party P,0090579921,BUPA CARE HOMES,"2,906.64",26/04/2023,PUBLISH
Delivery Units,Adults and Health,Other Agencies - Third Party P,0090579926,SONESTA NURSING HOME LTD.,"2,716.68",26/04/2023,PUBLISH
Delivery Units,Adults and Health,Other Agencies - Third Party P,0090579927,JEWISH CARE,"2,882.48",26/04/2023,PUBLISH
Delivery Units,Adults and Health,Other Agencies - Third Party P,0090579931,APPLE TREE COURT CARE HOME,"3,865.80",26/04/2023,PUBLISH
Delivery Units,Adults and Health,Other Agencies - Third Party P,0090579937,FOUR SEASONS HEALTH CARE,"2,831.68",26/04/2023,PUBLISH
Delivery Units,Adults and Health,Other Agencies - Third Party P,0090579938,LIFESTYLE CARE PLC,"2,882.36",26/04/2023,PUBLISH
Delivery Units,Adults and Health,Other Agencies - Third Party P,0090579939,JEWISH CARE,"2,882.48",26/04/2023,PUBLISH
Delivery Units,Adults and Health,Other Agencies - Third Party P,0090579940,APPLE TREE COURT CARE HOME,"4,800.00",26/04/2023,PUBLISH
Delivery Units,Adults and Health,Other Agencies - Third Party P,0090579942,LIFESTYLE CARE PLC,"2,882.36",26/04/2023,PUBLISH
Delivery Units,Adults and Health,Other Agencies - Third Party P,0090579943,ASHTON LODGE CARE CENTRE,"3,952.00",26/04/2023,PUBLISH
Delivery Units,Adults and Health,Other Agencies - Third Party P,0090579944,ASHTON LODGE CARE CENTRE,"4,764.00",26/04/2023,PUBLISH
Delivery Units,Adults and Health,Other Agencies - Third Party P,0090579946,APPLE TREE COURT CARE HOME,"4,049.60",26/04/2023,PUBLISH
Delivery Units,Adults and Health,Other Agencies - Third Party P,0090579951,JEWISH CARE,"14,177.48",26/04/2023,PUBLISH
Delivery Units,Adults and Health,Other Agencies - Third Party P,0090579955,BUPA CARE HOMES,"2,906.64",26/04/2023,PUBLISH
Delivery Units,Adults and Health,Other Agencies - Third Party P,0090579958,SONESTA NURSING HOME LTD.,"2,716.68",26/04/2023,PUBLISH
Delivery Units,Adults and Health,Other Agencies - Third Party P,0090579961,APPLE TREE COURT CARE HOME,"4,498.60",26/04/2023,PUBLISH
Delivery Units,Adults and Health,Other Agencies - Third Party P,0090579962,Aarandale Manor Care Home,"4,049.60",26/04/2023,PUBLISH
Delivery Units,Adults and Health,Other Agencies - Third Party P,0090579963,ABBEY RAVENSCROFT PARK NURSING HOME,"4,552.00",26/04/2023,PUBLISH
Delivery Units,Adults and Health,Other Agencies - Third Party P,0090579966,JEWISH CARE,"2,882.48",26/04/2023,PUBLISH
Delivery Units,Adults and Health,Other Agencies - Third Party P,0090579968,APPLE TREE COURT CARE HOME,"4,898.60",26/04/2023,PUBLISH
Delivery Units,Adults and Health,Other Agencies - Third Party P,0090579972,BUPA CARE HOMES,"2,906.64",26/04/2023,PUBLISH
Delivery Units,Adults and Health,Other Agencies - Third Party P,0090579973,APPLE TREE COURT CARE HOME,"4,400.00",26/04/2023,PUBLISH
Delivery Units,Adults and Health,Other Agencies - Third Party P,0090579974,BUPA CARE HOMES,"2,906.64",26/04/2023,PUBLISH
Delivery Units,Adults and Health,Other Agencies - Third Party P,0090579975,BUPA NURSING HOMES LTD - ARKLEY,"3,800.00",26/04/2023,PUBLISH
Delivery Units,Adults and Health,Other Agencies - Third Party P,0090579976,ASHTON LODGE CARE CENTRE,"4,249.60",26/04/2023,PUBLISH
Delivery Units,Adults and Health,Other Agencies - Third Party P,0090579985,SONESTA NURSING HOME LTD.,"2,716.68",26/04/2023,PUBLISH
Delivery Units,Adults and Health,Other Agencies - Third Party P,0090579987,APPLE TREE COURT CARE HOME,"5,400.00",26/04/2023,PUBLISH
Delivery Units,Adults and Health,Other Agencies - Third Party P,0090579988,New Century Care (Finchley),"4,800.00",26/04/2023,PUBLISH
Delivery Units,Adults and Health,Other Agencies - Third Party P,0090579989,SAGE NURSING HOME,157.14,26/04/2023,PUBLISH
Delivery Units,Adults and Health,Other Agencies - Third Party P,0090579990,ASHTON LODGE CARE CENTRE,"4,163.24",26/04/2023,PUBLISH
Delivery Units,Adults and Health,Other Agencies - Third Party P,0090579992,FOUR SEASONS HEALTH CARE,"3,468.00",26/04/2023,PUBLISH
Delivery Units,Adults and Health,Other Agencies - Third Party P,0090579993,BUPA CARE HOMES,"4,000.00",26/04/2023,PUBLISH
Delivery Units,Adults and Health,Other Agencies - Third Party P,0090579994,FOUR SEASONS HEALTH CARE,"2,831.68",26/04/2023,PUBLISH
Delivery Units,Adults and Health,Other Agencies - Third Party P,0090579995,BUPA CARE HOMES,"3,056.64",26/04/2023,PUBLISH
Delivery Units,Adults and Health,Other Agencies - Third Party P,0090579996,APPLE TREE COURT CARE HOME,"3,865.80",26/04/2023,PUBLISH
Delivery Units,Adults and Health,Other Agencies - Third Party P,0090580000,ABBEY RAVENSCROFT PARK NURSING HOME,"4,000.00",26/04/2023,PUBLISH
Delivery Units,Adults and Health,Other Agencies - Third Party P,0090580001,ABBEY RAVENSCROFT PARK NURSING HOME,"5,666.65",26/04/2023,PUBLISH
Delivery Units,Adults and Health,Other Agencies - Third Party P,0090580002,New Century Care (Finchley),"4,800.00",26/04/2023,PUBLISH
Delivery Units,Adults and Health,Other Agencies - Third Party P,0090580003,HENRY NIHILL HOUSE,"9,114.29",26/04/2023,PUBLISH
Delivery Units,Adults and Health,Other Agencies - Third Party P,0090580015,APPLE TREE COURT CARE HOME,"2,493.08",26/04/2023,PUBLISH
Delivery Units,Adults and Health,Other Agencies - Third Party P,0090580017,Aarandale Manor Care Home,"2,814.76",26/04/2023,PUBLISH
Delivery Units,Adults and Health,Other Agencies - Third Party P,0090580026,ASHTON LODGE CARE CENTRE,"3,574.76",26/04/2023,PUBLISH
Delivery Units,Adults and Health,Other Agencies - Third Party P,0090580029,ELEANOR PALMER TRUST NO 2 A/C.,"3,802.00",26/04/2023,PUBLISH
Delivery Units,Adults and Health,Other Agencies - Third Party P,0090580032,JEWISH CARE,"2,682.48",26/04/2023,PUBLISH
Delivery Units,Adults and Health,Other Agencies - Third Party P,0090580038,APPLE TREE COURT CARE HOME,"3,764.00",26/04/2023,PUBLISH
Delivery Units,Adults and Health,Other Agencies - Third Party P,0090580042,APPLE TREE COURT CARE HOME,"3,385.00",26/04/2023,PUBLISH
Delivery Units,Adults and Health,Other Agencies - Third Party P,0090580043,APPLE TREE COURT CARE HOME,"3,385.00",26/04/2023,PUBLISH
Delivery Units,Adults and Health,Other Agencies - Third Party P,0090580053,LIFESTYLE CARE PLC,"2,882.36",26/04/2023,PUBLISH
Delivery Units,Adults and Health,Other Agencies - Third Party P,0090580055,FOUR SEASONS HEALTH CARE,"2,831.68",26/04/2023,PUBLISH
Delivery Units,Adults and Health,Other Agencies - Third Party P,0090580063,APPLE TREE COURT CARE HOME,"3,385.00",26/04/2023,PUBLISH
Delivery Units,Adults and Health,Other Agencies - Third Party P,0090580064,ABBEY RAVENSCROFT PARK NURSING HOME,"3,752.00",26/04/2023,PUBLISH
Delivery Units,Adults and Health,Other Agencies - Third Party P,0090580065,JEWISH CARE,"2,945.48",26/04/2023,PUBLISH
Delivery Units,Adults and Health,Other Agencies - Third Party P,0090580072,BUPA NURSING HOMES LTD - ARKLEY,"2,906.64",26/04/2023,PUBLISH
Delivery Units,Adults and Health,Other Agencies - Third Party P,0090580073,ASHTON LODGE CARE CENTRE,"4,201.60",26/04/2023,PUBLISH
Delivery Units,Adults and Health,Other Agencies - Third Party P,0090580074,ELEANOR PALMER TRUST NO 2 A/C.,"3,272.00",26/04/2023,PUBLISH
Delivery Units,Adults and Health,Other Agencies - Third Party P,0090580082,Aarandale Manor Care Home,"4,049.60",26/04/2023,PUBLISH
Delivery Units,Adults and Health,Other Agencies - Third Party P,0090580083,LIFESTYLE CARE PLC,"2,882.36",26/04/2023,PUBLISH
Delivery Units,Adults and Health,Other Agencies - Third Party P,0090580084,ELEANOR PALMER TRUST NO 2 A/C.,"4,720.00",26/04/2023,PUBLISH
Delivery Units,Adults and Health,Other Agencies - Third Party P,0090580087,JEWISH CARE,"2,945.48",26/04/2023,PUBLISH
Delivery Units,Adults and Health,Other Agencies - Third Party P,0090580088,ELEANOR PALMER TRUST NO 2 A/C.,"3,752.00",26/04/2023,PUBLISH
Delivery Units,Adults and Health,Other Agencies - Third Party P,0090580089,Lancam Care Services Limited,"3,700.00",26/04/2023,PUBLISH
Delivery Units,Adults and Health,Other Agencies - Third Party P,0090580091,LIFESTYLE CARE PLC,"2,882.36",26/04/2023,PUBLISH
Delivery Units,Adults and Health,Other Agencies - Third Party P,0090580094,SAGE NURSING HOME,"3,040.00",26/04/2023,PUBLISH
Delivery Units,Adults and Health,Other Agencies - Third Party P,0090580095,BUPA NURSING HOMES LTD - ARKLEY,"2,906.64",26/04/2023,PUBLISH
Delivery Units,Adults and Health,Other Agencies - Third Party P,0090580096,JEWISH CARE,"8,263.92",26/04/2023,PUBLISH
Delivery Units,Adults and Health,Other Agencies - Third Party P,0090580097,Lancam Care Services Limited,"3,980.00",26/04/2023,PUBLISH
Delivery Units,Adults and Health,Other Agencies - Third Party P,0090580099,FOUR SEASONS HEALTH CARE,"2,831.68",26/04/2023,PUBLISH
Delivery Units,Adults and Health,Other Agencies - Third Party P,0090580100,Lancam Care Services Limited,"3,980.00",26/04/2023,PUBLISH
Delivery Units,Adults and Health,Other Agencies - Third Party P,0090580101,BUPA CARE HOMES,"2,906.64",26/04/2023,PUBLISH
Delivery Units,Adults and Health,Other Agencies - Third Party P,0090580105,JEWISH CARE,"4,676.00",26/04/2023,PUBLISH
Delivery Units,Adults and Health,Other Agencies - Third Party P,0090580106,JEWISH CARE,"2,882.48",26/04/2023,PUBLISH
Delivery Units,Adults and Health,Other Agencies - Third Party P,0090580108,APPLE TREE COURT CARE HOME,"4,763.24",26/04/2023,PUBLISH
Delivery Units,Adults and Health,Other Agencies - Third Party P,0090580110,New Century Care (Finchley),"4,400.00",26/04/2023,PUBLISH
Delivery Units,Adults and Health,Other Agencies - Third Party P,0090580111,BUPA CARE HOMES,"2,906.64",26/04/2023,PUBLISH
Delivery Units,Adults and Health,Other Agencies - Third Party P,0090580112,ABBEY RAVENSCROFT PARK NURSING HOME,"4,400.00",26/04/2023,PUBLISH
Delivery Units,Adults and Health,Other Agencies - Third Party P,0090580113,APPLE TREE COURT CARE HOME,"3,753.20",26/04/2023,PUBLISH
Delivery Units,Adults and Health,Other Agencies - Third Party P,0090580115,FOUR SEASONS HEALTH CARE,"2,831.68",26/04/2023,PUBLISH
Delivery Units,Adults and Health,Other Agencies - Third Party P,0090580116,LIFESTYLE CARE PLC,"2,882.36",26/04/2023,PUBLISH
Delivery Units,Adults and Health,Other Agencies - Third Party P,0090580117,ABBEY RAVENSCROFT PARK NURSING HOME,"4,800.00",26/04/2023,PUBLISH
Delivery Units,Adults and Health,Other Agencies - Third Party P,0090580118,BUPA NURSING HOMES LTD - ARKLEY,"3,400.00",26/04/2023,PUBLISH
Delivery Units,Adults and Health,Other Agencies - Third Party P,0090580123,APPLE TREE COURT CARE HOME,"4,763.24",26/04/2023,PUBLISH
Delivery Units,Adults and Health,Other Agencies - Third Party P,0090580125,BUPA NURSING HOMES LTD - ARKLEY,"3,900.00",26/04/2023,PUBLISH
Delivery Units,Adults and Health,Other Agencies - Third Party P,0090580126,SONESTA NURSING HOME LTD.,"-3,085.72",26/04/2023,PUBLISH
Delivery Units,Adults and Health,Other Agencies - Third Party P,0090580127,BUPA CARE HOMES,"4,000.00",26/04/2023,PUBLISH
Delivery Units,Adults and Health,Other Agencies - Third Party P,0090580128,SAGE NURSING HOME,"4,400.00",26/04/2023,PUBLISH
Delivery Units,Adults and Health,Other Agencies - Third Party P,0090580129,SONESTA NURSING HOME LTD.,457.14,26/04/2023,PUBLISH
Delivery Units,Adults and Health,Other Agencies - Third Party P,0090580131,BUPA CARE HOMES,"4,906.02",26/04/2023,PUBLISH
Delivery Units,Adults and Health,Other Agencies - Third Party P,0090580132,ABBEY RAVENSCROFT PARK NURSING HOME,"1,100.00",26/04/2023,PUBLISH
Delivery Units,Adults and Health,Other Agencies - Third Party P,0090580133,SONESTA NURSING HOME LTD.,342.86,26/04/2023,PUBLISH
Delivery Units,Adults and Health,Other Agencies - Third Party P,0090580139,APPLE TREE COURT CARE HOME,"4,285.71",26/04/2023,PUBLISH
Delivery Units,Adults and Health,Other Agencies - Third Party P,0090580141,ABBEY RAVENSCROFT PARK NURSING HOME,"16,080.00",26/04/2023,PUBLISH
Delivery Units,Adults and Health,Other Agencies - Third Party P,0090573030,Shenleybury House Ltd,"1,157.14",11/04/2023,PUBLISH
Delivery Units,Adults and Health,Other Agencies - Third Party P,0090573046,GCH (North London) t/a The Tudors,"2,346.00",11/04/2023,PUBLISH
Delivery Units,Adults and Health,Other Agencies - Third Party P,0090573056,LANCASTER COURT,208.70,11/04/2023,PUBLISH
Delivery Units,Adults and Health,Other Agencies - Third Party P,0090573657,Achieve Together Limited,"5,706.40",11/04/2023,PUBLISH
Delivery Units,Adults and Health,Other Agencies - Third Party P,0090573658,Achieve Together Limited,"3,166.64",11/04/2023,PUBLISH
Delivery Units,Adults and Health,Other Agencies - Third Party P,0090573665,Optimum Support Ltd,"4,400.00",11/04/2023,PUBLISH
Delivery Units,Adults and Health,Other Agencies - Third Party P,0090575372,FINBOND LIMITED,"3,542.86",14/04/2023,PUBLISH
Delivery Units,Adults and Health,Other Agencies - Third Party P,0090575378,GCH (North London) t/a The Tudors,"2,346.00",14/04/2023,PUBLISH
Delivery Units,Adults and Health,Other Agencies - Third Party P,0090575420,GCH (North London) t/a The Tudors,"2,346.00",14/04/2023,PUBLISH
Delivery Units,Adults and Health,Other Agencies - Third Party P,0090576436,TENTERDEN HOUSE,-168.28,18/04/2023,PUBLISH
Delivery Units,Adults and Health,Other Agencies - Third Party P,0090577474,TENTERDEN HOUSE,"4,142.19",18/04/2023,PUBLISH
Delivery Units,Adults and Health,Other Agencies - Third Party P,0090577492,Warren Heath Residential Home Ltd,"3,660.00",18/04/2023,PUBLISH
Delivery Units,Adults and Health,Other Agencies - Third Party P,0090577494,SYDMAR LODGE,"5,357.14",18/04/2023,PUBLISH
Delivery Units,Adults and Health,Other Agencies - Third Party P,0090577495,SYDMAR LODGE,"4,212.86",18/04/2023,PUBLISH
Delivery Units,Adults and Health,Other Agencies - Third Party P,0090577497,SYDMAR LODGE,"5,357.14",18/04/2023,PUBLISH
Delivery Units,Adults and Health,Other Agencies - Third Party P,0090577498,SYDMAR LODGE,"5,357.14",18/04/2023,PUBLISH
Delivery Units,Adults and Health,Other Agencies - Third Party P,0090579563,TBG Mosaic,"2,540.00",25/04/2023,PUBLISH
Delivery Units,Adults and Health,Other Agencies - Third Party P,0090579564,TBG Mosaic,-880.56,25/04/2023,PUBLISH
Delivery Units,Adults and Health,Other Agencies - Third Party P,0090579565,TBG Mosaic,"4,612.00",25/04/2023,PUBLISH
Delivery Units,Adults and Health,Other Agencies - Third Party P,0090579566,TBG Mosaic,"27,406.08",25/04/2023,PUBLISH
Delivery Units,Adults and Health,Other Agencies - Third Party P,0090579567,TBG Mosaic,"9,673.20",25/04/2023,PUBLISH
Delivery Units,Adults and Health,Other Agencies - Third Party P,0090579568,TBG Mosaic,"2,676.00",25/04/2023,PUBLISH
Delivery Units,Adults and Health,Other Agencies - Third Party P,0090579569,TBG Mosaic,"2,540.00",25/04/2023,PUBLISH
Delivery Units,Adults and Health,Other Agencies - Third Party P,0090579570,TBG Mosaic,"2,540.00",25/04/2023,PUBLISH
Delivery Units,Adults and Health,Other Agencies - Third Party P,0090579571,TBG Mosaic,"3,000.00",25/04/2023,PUBLISH
Delivery Units,Adults and Health,Other Agencies - Third Party P,0090579572,TBG Mosaic,"-9,162.14",25/04/2023,PUBLISH
Delivery Units,Adults and Health,Other Agencies - Third Party P,0090579573,TBG Mosaic,"2,540.00",25/04/2023,PUBLISH
Delivery Units,Adults and Health,Other Agencies - Third Party P,0090579574,TBG Mosaic,"2,676.00",25/04/2023,PUBLISH
Delivery Units,Adults and Health,Other Agencies - Third Party P,0090579575,TBG Mosaic,"2,676.00",25/04/2023,PUBLISH
Delivery Units,Adults and Health,Other Agencies - Third Party P,0090579576,TBG Mosaic,"2,540.00",25/04/2023,PUBLISH
Delivery Units,Adults and Health,Other Agencies - Third Party P,0090579577,TBG Mosaic,"2,676.00",25/04/2023,PUBLISH
Delivery Units,Adults and Health,Other Agencies - Third Party P,0090579578,TBG Mosaic,"2,676.00",25/04/2023,PUBLISH
Delivery Units,Adults and Health,Other Agencies - Third Party P,0090579579,TBG Mosaic,"2,540.00",25/04/2023,PUBLISH
Delivery Units,Adults and Health,Other Agencies - Third Party P,0090579580,TBG Mosaic,"13,999.20",25/04/2023,PUBLISH
Delivery Units,Adults and Health,Other Agencies - Third Party P,0090579581,TBG Mosaic,"1,338.00",25/04/2023,PUBLISH
Delivery Units,Adults and Health,Other Agencies - Third Party P,0090579582,TBG Mosaic,"2,540.00",25/04/2023,PUBLISH
Delivery Units,Adults and Health,Other Agencies - Third Party P,0090579583,TBG Mosaic,"2,676.00",25/04/2023,PUBLISH
Delivery Units,Adults and Health,Other Agencies - Third Party P,0090579584,TBG Mosaic,"2,540.00",25/04/2023,PUBLISH
Delivery Units,Adults and Health,Other Agencies - Third Party P,0090579585,TBG Mosaic,"2,676.00",25/04/2023,PUBLISH
Delivery Units,Adults and Health,Other Agencies - Third Party P,0090579586,TBG Mosaic,"2,676.00",25/04/2023,PUBLISH
Delivery Units,Adults and Health,Other Agencies - Third Party P,0090579587,TBG Mosaic,"2,540.00",25/04/2023,PUBLISH
Delivery Units,Adults and Health,Other Agencies - Third Party P,0090579588,TBG Mosaic,"2,676.00",25/04/2023,PUBLISH
Delivery Units,Adults and Health,Other Agencies - Third Party P,0090579589,TBG Mosaic,"2,857.92",25/04/2023,PUBLISH
Delivery Units,Adults and Health,Other Agencies - Third Party P,0090579590,TBG Mosaic,"2,540.00",25/04/2023,PUBLISH
Delivery Units,Adults and Health,Other Agencies - Third Party P,0090579591,TBG Mosaic,"2,676.00",25/04/2023,PUBLISH
Delivery Units,Adults and Health,Other Agencies - Third Party P,0090579592,TBG Mosaic,"2,540.00",25/04/2023,PUBLISH
Delivery Units,Adults and Health,Other Agencies - Third Party P,0090579593,TBG Mosaic,"2,676.00",25/04/2023,PUBLISH
Delivery Units,Adults and Health,Other Agencies - Third Party P,0090579594,TBG Mosaic,"2,676.00",25/04/2023,PUBLISH
Delivery Units,Adults and Health,Other Agencies - Third Party P,0090579595,TBG Mosaic,"2,676.00",25/04/2023,PUBLISH
Delivery Units,Adults and Health,Other Agencies - Third Party P,0090579596,TBG Mosaic,"2,676.00",25/04/2023,PUBLISH
Delivery Units,Adults and Health,Other Agencies - Third Party P,0090579597,TBG Mosaic,"2,676.00",25/04/2023,PUBLISH
Delivery Units,Adults and Health,Other Agencies - Third Party P,0090579598,TBG Mosaic,"2,676.00",25/04/2023,PUBLISH
Delivery Units,Adults and Health,Other Agencies - Third Party P,0090579600,TBG Mosaic,"2,540.00",25/04/2023,PUBLISH
Delivery Units,Adults and Health,Other Agencies - Third Party P,0090579602,TBG Mosaic,"2,540.00",25/04/2023,PUBLISH
Delivery Units,Adults and Health,Other Agencies - Third Party P,0090579603,TBG Mosaic,"2,540.00",25/04/2023,PUBLISH
Delivery Units,Adults and Health,Other Agencies - Third Party P,0090579604,TBG Mosaic,"2,540.00",25/04/2023,PUBLISH
Delivery Units,Adults and Health,Other Agencies - Third Party P,0090579605,TBG Mosaic,"4,430.40",25/04/2023,PUBLISH
Delivery Units,Adults and Health,Other Agencies - Third Party P,0090579606,TBG Mosaic,"2,676.00",25/04/2023,PUBLISH
Delivery Units,Adults and Health,Other Agencies - Third Party P,0090579607,TBG Mosaic,95.57,25/04/2023,PUBLISH
Delivery Units,Adults and Health,Other Agencies - Third Party P,0090579608,TBG Mosaic,"2,540.00",25/04/2023,PUBLISH
Delivery Units,Adults and Health,Other Agencies - Third Party P,0090579609,TBG Mosaic,"2,540.00",25/04/2023,PUBLISH
Delivery Units,Adults and Health,Other Agencies - Third Party P,0090579610,TBG Mosaic,"2,540.00",25/04/2023,PUBLISH
Delivery Units,Adults and Health,Other Agencies - Third Party P,0090579612,TBG Mosaic,"2,676.00",25/04/2023,PUBLISH
Delivery Units,Adults and Health,Other Agencies - Third Party P,0090579613,TBG Mosaic,0.04,25/04/2023,PUBLISH
Delivery Units,Adults and Health,Other Agencies - Third Party P,0090579614,TBG Mosaic,"2,676.00",25/04/2023,PUBLISH
Delivery Units,Adults and Health,Other Agencies - Third Party P,0090579615,TBG Mosaic,"-6,212.14",25/04/2023,PUBLISH
Delivery Units,Adults and Health,Other Agencies - Third Party P,0090579616,TBG Mosaic,"2,540.00",25/04/2023,PUBLISH
Delivery Units,Adults and Health,Other Agencies - Third Party P,0090579617,TBG Mosaic,"-6,168.57",25/04/2023,PUBLISH
Delivery Units,Adults and Health,Other Agencies - Third Party P,0090579618,TBG Mosaic,"-2,676.00",25/04/2023,PUBLISH
Delivery Units,Adults and Health,Other Agencies - Third Party P,0090579619,TBG Mosaic,"2,540.00",25/04/2023,PUBLISH
Delivery Units,Adults and Health,Other Agencies - Third Party P,0090579620,TBG Mosaic,"2,540.00",25/04/2023,PUBLISH
Delivery Units,Adults and Health,Other Agencies - Third Party P,0090579621,TBG Mosaic,"2,540.00",25/04/2023,PUBLISH
Delivery Units,Adults and Health,Other Agencies - Third Party P,0090579627,Achieve Together Limited,"3,971.19",25/04/2023,PUBLISH
Delivery Units,Adults and Health,Other Agencies - Third Party P,0090579658,ROSEACRES CARE HOME LIMITED,"3,120.00",26/04/2023,PUBLISH
Delivery Units,Adults and Health,Other Agencies - Third Party P,0090579675,CATHERINE LODGE,607.14,26/04/2023,PUBLISH
Delivery Units,Adults and Health,Other Agencies - Third Party P,0090579684,CATHERINE LODGE,"3,580.00",26/04/2023,PUBLISH
Delivery Units,Adults and Health,Other Agencies - Third Party P,0090579686,CARLTON COURT (TLC GROUP),"5,800.00",26/04/2023,PUBLISH
Delivery Units,Adults and Health,Other Agencies - Third Party P,0090579692,CARLTON COURT (TLC GROUP),"5,400.00",26/04/2023,PUBLISH
Delivery Units,Adults and Health,Other Agencies - Third Party P,0090579707,CATHERINE LODGE,"3,000.00",26/04/2023,PUBLISH
Delivery Units,Adults and Health,Other Agencies - Third Party P,0090579710,ROSEACRES CARE HOME LIMITED,-207.14,26/04/2023,PUBLISH
Delivery Units,Adults and Health,Other Agencies - Third Party P,0090579711,CARLTON COURT (TLC GROUP),"6,376.16",26/04/2023,PUBLISH
Delivery Units,Adults and Health,Other Agencies - Third Party P,0090579715,ROSEACRES CARE HOME LIMITED,"3,120.00",26/04/2023,PUBLISH
Delivery Units,Adults and Health,Other Agencies - Third Party P,0090579743,ROSEACRES CARE HOME LIMITED,"3,400.00",26/04/2023,PUBLISH
Delivery Units,Adults and Health,Other Agencies - Third Party P,0090579750,CATHERINE LODGE,"3,200.00",26/04/2023,PUBLISH
Delivery Units,Adults and Health,Other Agencies - Third Party P,0090579760,ROSEACRES CARE HOME LIMITED,"3,200.00",26/04/2023,PUBLISH
Delivery Units,Adults and Health,Other Agencies - Third Party P,0090579773,CATHERINE LODGE,"3,800.00",26/04/2023,PUBLISH
Delivery Units,Adults and Health,Other Agencies - Third Party P,0090579779,ROSEACRES CARE HOME LIMITED,"2,900.00",26/04/2023,PUBLISH
Delivery Units,Adults and Health,Other Agencies - Third Party P,0090579796,ROSEACRES CARE HOME LIMITED,"3,400.00",26/04/2023,PUBLISH
Delivery Units,Adults and Health,Other Agencies - Third Party P,0090579804,CATHERINE LODGE,"3,800.00",26/04/2023,PUBLISH
Delivery Units,Adults and Health,Other Agencies - Third Party P,0090579818,ROSEACRES CARE HOME LIMITED,"2,900.00",26/04/2023,PUBLISH
Delivery Units,Adults and Health,Other Agencies - Third Party P,0090579830,ROSEACRES CARE HOME LIMITED,"3,400.00",26/04/2023,PUBLISH
Delivery Units,Adults and Health,Other Agencies - Third Party P,0090579839,ROSEACRES CARE HOME LIMITED,"3,600.00",26/04/2023,PUBLISH
Delivery Units,Adults and Health,Other Agencies - Third Party P,0090579843,ROSEACRES CARE HOME LIMITED,"3,800.00",26/04/2023,PUBLISH
Delivery Units,Adults and Health,Other Agencies - Third Party P,0090579844,ROSEACRES CARE HOME LIMITED,"3,800.00",26/04/2023,PUBLISH
Delivery Units,Adults and Health,Other Agencies - Third Party P,0090579848,CATHERINE LODGE,"3,800.00",26/04/2023,PUBLISH
Delivery Units,Adults and Health,Other Agencies - Third Party P,0090579849,CARLTON COURT (TLC GROUP),"6,200.00",26/04/2023,PUBLISH
Delivery Units,Adults and Health,Other Agencies - Third Party P,0090579876,ROSEACRES CARE HOME LIMITED,"2,900.00",26/04/2023,PUBLISH
Delivery Units,Adults and Health,Other Agencies - Third Party P,0090579941,CATHERINE LODGE,"3,800.00",26/04/2023,PUBLISH
Delivery Units,Adults and Health,Other Agencies - Third Party P,0090579952,CATHERINE LODGE,"3,200.00",26/04/2023,PUBLISH
Delivery Units,Adults and Health,Other Agencies - Third Party P,0090579967,ROSEACRES CARE HOME LIMITED,-292.86,26/04/2023,PUBLISH
Delivery Units,Adults and Health,Other Agencies - Third Party P,0090579980,CATHERINE LODGE,"3,800.00",26/04/2023,PUBLISH
Delivery Units,Adults and Health,Other Agencies - Third Party P,0090579997,CARLTON COURT (TLC GROUP),"5,200.00",26/04/2023,PUBLISH
Delivery Units,Adults and Health,Other Agencies - Third Party P,0090579998,CATHERINE LODGE,"2,307.14",26/04/2023,PUBLISH
Delivery Units,Adults and Health,Other Agencies - Third Party P,0090580041,ROSEACRES CARE HOME LIMITED,"3,400.00",26/04/2023,PUBLISH
Delivery Units,Adults and Health,Other Agencies - Third Party P,0090580077,ROSEACRES CARE HOME LIMITED,"3,200.00",26/04/2023,PUBLISH
Delivery Units,Adults and Health,Other Agencies - Third Party P,0090580102,ROSEACRES CARE HOME LIMITED,"3,400.00",26/04/2023,PUBLISH
Delivery Units,Adults and Health,Other Agencies - Third Party P,0090580159,Optimum Support Ltd,"4,400.00",26/04/2023,PUBLISH
Delivery Units,Adults and Health,Other Agencies - Third Party P,0090580160,Shenleybury House Ltd,"3,857.14",26/04/2023,PUBLISH
Delivery Units,Adults and Health,Other Agencies - Third Party P,0090580161,Achieve Together Limited,"3,166.64",26/04/2023,PUBLISH
Delivery Units,Adults and Health,Other Agencies - Third Party P,0090580162,Achieve Together Limited,"11,001.32",26/04/2023,PUBLISH
Delivery Units,Adults and Health,Other Agencies - Third Party P,0090577493,VILLA SCALABRINI,"4,285.71",18/04/2023,PUBLISH
Delivery Units,Adults and Health,Other Agencies - Third Party P,0090577566,LIVABILITY,"4,720.12",20/04/2023,PUBLISH
Delivery Units,Adults and Health,Other Agencies - Third Party P,0090577569,LIVABILITY,"3,740.44",20/04/2023,PUBLISH
Delivery Units,Adults and Health,Other Agencies - Third Party P,0090577570,LIVABILITY,"3,539.35",20/04/2023,PUBLISH
Delivery Units,Adults and Health,Other Agencies - Third Party P,0090580103,WOODFIELD HOUSE,"14,081.60",26/04/2023,PUBLISH
Delivery Units,Adults and Health,Other Transfer Payments to Soc,1023748301,CATALYST HOUSING LTD,"20,318.21",04/04/2023,PUBLISH
Delivery Units,Adults and Health,Other Transfer Payments to Soc,1023748501,CATALYST HOUSING LTD,"129,049.34",04/04/2023,PUBLISH
Delivery Units,Adults and Health,Other Transfer Payments to Soc,1023748901,CATALYST HOUSING LTD,"20,318.21",04/04/2023,PUBLISH
Delivery Units,Adults and Health,Other Transfer Payments to Soc,1023752201,CATALYST HOUSING LTD,"60,910.31",04/04/2023,PUBLISH
Delivery Units,Adults and Health,Other Transfer Payments to Soc,1023752301,CATALYST HOUSING LTD,"20,318.21",04/04/2023,PUBLISH
Delivery Units,Adults and Health,Other Agencies - Third Party P,0090573031,Brownlow Enterprises Ltd,"3,556.14",11/04/2023,PUBLISH
Delivery Units,Adults and Health,Other Agencies - Third Party P,0090573032,Brownlow Enterprises Ltd,"3,212.00",11/04/2023,PUBLISH
Delivery Units,Adults and Health,Other Agencies - Third Party P,0090573033,Brownlow Enterprises Ltd,"2,347.86",11/04/2023,PUBLISH
Delivery Units,Adults and Health,Other Agencies - Third Party P,0090573034,Brownlow Enterprises Ltd,"3,460.00",11/04/2023,PUBLISH
Delivery Units,Adults and Health,Other Agencies - Third Party P,0090573035,Brownlow Enterprises Ltd,"3,232.00",11/04/2023,PUBLISH
Delivery Units,Adults and Health,Other Agencies - Third Party P,0090573036,Brownlow Enterprises Ltd,617.86,11/04/2023,PUBLISH
Delivery Units,Adults and Health,Other Agencies - Third Party P,0090573037,Brownlow Enterprises Ltd,"3,830.71",11/04/2023,PUBLISH
Delivery Units,Adults and Health,Other Agencies - Third Party P,0090573038,Brownlow Enterprises Ltd,"1,285.71",11/04/2023,PUBLISH
Delivery Units,Adults and Health,Other Agencies - Third Party P,0090573039,Brownlow Enterprises Ltd,"3,556.14",11/04/2023,PUBLISH
Delivery Units,Adults and Health,Other Agencies - Third Party P,0090573040,Brownlow Enterprises Ltd,"3,830.71",11/04/2023,PUBLISH
Delivery Units,Adults and Health,Other Agencies - Third Party P,0090573043,Brownlow Enterprises Ltd,"3,578.29",11/04/2023,PUBLISH
Delivery Units,Adults and Health,Other Agencies - Third Party P,0090573044,Brownlow Enterprises Ltd,"3,556.14",11/04/2023,PUBLISH
Delivery Units,Adults and Health,Other Agencies - Third Party P,0090573047,3A Care (London) Ltd,"9,000.00",11/04/2023,PUBLISH
Delivery Units,Adults and Health,Other Agencies - Third Party P,0090573059,NIGHTINGALE HOUSE,"3,428.57",11/04/2023,PUBLISH
Delivery Units,Adults and Health,Other Agencies - Third Party P,0090573060,NIGHTINGALE HOUSE,"3,471.43",11/04/2023,PUBLISH
Delivery Units,Adults and Health,Other Agencies - Third Party P,0090573061,NIGHTINGALE HOUSE,"3,072.01",11/04/2023,PUBLISH
Delivery Units,Adults and Health,Other Agencies - Third Party P,0090573063,THE CHRISTIAN CARE TRUST,"3,899.84",11/04/2023,PUBLISH
Delivery Units,Adults and Health,Other Agencies - Third Party P,0090575374,B & M CARE,"3,764.29",14/04/2023,PUBLISH
Delivery Units,Adults and Health,Other Agencies - Third Party P,0090575375,B & M CARE,"4,207.14",14/04/2023,PUBLISH
Delivery Units,Adults and Health,Other Agencies - Third Party P,0090575376,B & M CARE,"4,295.71",14/04/2023,PUBLISH
Delivery Units,Adults and Health,Other Agencies - Third Party P,0090575379,NIGHTINGALE HOUSE,"3,542.86",14/04/2023,PUBLISH
Delivery Units,Adults and Health,Other Agencies - Third Party P,0090575382,NIGHTINGALE HOUSE,"3,587.14",14/04/2023,PUBLISH
Delivery Units,Adults and Health,Other Agencies - Third Party P,0090575383,NIGHTINGALE HOUSE,"3,587.14",14/04/2023,PUBLISH
Delivery Units,Adults and Health,Other Agencies - Third Party P,0090575396,QUANTUM CARE LIMITED,"4,207.14",14/04/2023,PUBLISH
Delivery Units,Adults and Health,Other Agencies - Third Party P,0090575397,NIGHTINGALE HOUSE,"2,081.04",14/04/2023,PUBLISH
Delivery Units,Adults and Health,Other Agencies - Third Party P,0090575413,Allied Care (MH) Ltd,"5,168.00",14/04/2023,PUBLISH
Delivery Units,Adults and Health,Other Agencies - Third Party P,0090575414,Allied Care (MH) Ltd,"5,168.00",14/04/2023,PUBLISH
Delivery Units,Adults and Health,Other Agencies - Third Party P,0090575415,Agecare MG1 Ltd,"2,514.29",14/04/2023,PUBLISH
Delivery Units,Adults and Health,Other Agencies - Third Party P,0090575425,Hillyfield Rest Home Limited,"4,714.20",14/04/2023,PUBLISH
Delivery Units,Adults and Health,Other Agencies - Third Party P,0090575426,Hillyfield Rest Home Limited,"4,714.20",14/04/2023,PUBLISH
Delivery Units,Adults and Health,Other Agencies - Third Party P,0090575429,TORRINGTON HOMES,"4,071.43",14/04/2023,PUBLISH
Delivery Units,Adults and Health,Other Agencies - Third Party P,0090575431,TORRINGTON HOMES,"2,369.79",14/04/2023,PUBLISH
Delivery Units,Adults and Health,Other Agencies - Third Party P,0090575435,EASTSIDE HOUSE CARE HOME,"3,800.00",14/04/2023,PUBLISH
Delivery Units,Adults and Health,Other Agencies - Third Party P,0090575438,EASTSIDE HOUSE CARE HOME,"3,720.00",14/04/2023,PUBLISH
Delivery Units,Adults and Health,Other Agencies - Third Party P,0090575439,EASTSIDE HOUSE CARE HOME,"3,800.00",14/04/2023,PUBLISH
Delivery Units,Adults and Health,Other Agencies - Third Party P,0090576442,Westbourne Care Home,"5,200.00",17/04/2023,PUBLISH
Delivery Units,Adults and Health,Other Agencies - Third Party P,0090577475,THE WOODSIDE HOME,"2,540.00",18/04/2023,PUBLISH
Delivery Units,Adults and Health,Other Agencies - Third Party P,0090577476,THE WOODSIDE HOME,"2,676.00",18/04/2023,PUBLISH
Delivery Units,Adults and Health,Other Agencies - Third Party P,0090577477,THE WOODSIDE HOME,"2,540.00",18/04/2023,PUBLISH
Delivery Units,Adults and Health,Other Agencies - Third Party P,0090577478,THE WOODSIDE HOME,"2,540.00",18/04/2023,PUBLISH
Delivery Units,Adults and Health,Other Agencies - Third Party P,0090577483,GREEN TREES,"3,642.90",18/04/2023,PUBLISH
Delivery Units,Adults and Health,Other Agencies - Third Party P,0090577484,GREEN TREES,"3,814.20",18/04/2023,PUBLISH
Delivery Units,Adults and Health,Other Agencies - Third Party P,0090577504,Barchester Healthcare,"5,280.00",18/04/2023,PUBLISH
Delivery Units,Adults and Health,Other Agencies - Third Party P,0090577517,Newgrange of Cheshunt Ltd,"3,428.57",18/04/2023,PUBLISH
Delivery Units,Adults and Health,Other Agencies - Third Party P,0090577583,ANASTASIA LODGE,"3,480.00",20/04/2023,PUBLISH
Delivery Units,Adults and Health,Other Agencies - Third Party P,0090578129,EASTSIDE HOUSE CARE HOME,"3,800.00",21/04/2023,PUBLISH
Delivery Units,Adults and Health,Other Agencies - Third Party P,0090578130,EASTSIDE HOUSE CARE HOME,814.29,21/04/2023,PUBLISH
Delivery Units,Adults and Health,Other Agencies - Third Party P,0090578131,EASTSIDE HOUSE CARE HOME,"2,985.71",21/04/2023,PUBLISH
Delivery Units,Adults and Health,Other Agencies - Third Party P,0090578133,MEERA NURSING HOME LIMITED,"3,642.86",21/04/2023,PUBLISH
Delivery Units,Adults and Health,Other Agencies - Third Party P,0090579632,Boughton Lodge Care Home,"3,100.00",25/04/2023,PUBLISH
Delivery Units,Adults and Health,Other Agencies - Third Party P,0090579637,EASTSIDE HOUSE CARE HOME,"3,800.00",25/04/2023,PUBLISH
Delivery Units,Adults and Health,Other Agencies - Third Party P,0090579644,BUPA CARE HOMES,"2,516.00",26/04/2023,PUBLISH
Delivery Units,Adults and Health,Other Agencies - Third Party P,0090579649,ELEANOR PALMER TRUST NO 2 A/C.,"3,280.44",26/04/2023,PUBLISH
Delivery Units,Adults and Health,Other Agencies - Third Party P,0090579652,JEWISH CARE,"4,265.48",26/04/2023,PUBLISH
Delivery Units,Adults and Health,Other Agencies - Third Party P,0090579655,JEWISH CARE,"2,641.80",26/04/2023,PUBLISH
Delivery Units,Adults and Health,Other Agencies - Third Party P,0090579657,JEWISH CARE,"2,801.80",26/04/2023,PUBLISH
Delivery Units,Adults and Health,Other Agencies - Third Party P,0090579667,JEWISH CARE,"4,170.30",26/04/2023,PUBLISH
Delivery Units,Adults and Health,Other Agencies - Third Party P,0090579669,ASHTON LODGE CARE CENTRE,"4,136.52",26/04/2023,PUBLISH
Delivery Units,Adults and Health,Other Agencies - Third Party P,0090579672,JEWISH CARE,"2,801.80",26/04/2023,PUBLISH
Delivery Units,Adults and Health,Other Agencies - Third Party P,0090579674,JEWISH CARE,"2,641.80",26/04/2023,PUBLISH
Delivery Units,Adults and Health,Other Agencies - Third Party P,0090579687,JEWISH CARE,"2,801.80",26/04/2023,PUBLISH
Delivery Units,Adults and Health,Other Agencies - Third Party P,0090579691,JEWISH CARE,"5,070.40",26/04/2023,PUBLISH
Delivery Units,Adults and Health,Other Agencies - Third Party P,0090579693,JEWISH CARE,"2,659.00",26/04/2023,PUBLISH
Delivery Units,Adults and Health,Other Agencies - Third Party P,0090579694,NAZARETH HOUSE,"2,676.00",26/04/2023,PUBLISH
Delivery Units,Adults and Health,Other Agencies - Third Party P,0090579698,LIFESTYLE CARE PLC,"3,200.00",26/04/2023,PUBLISH
Delivery Units,Adults and Health,Other Agencies - Third Party P,0090579699,ELMHURST RESIDENTIAL HOME,"3,800.00",26/04/2023,PUBLISH
Delivery Units,Adults and Health,Other Agencies - Third Party P,0090579704,SAGE NURSING HOME,"2,640.00",26/04/2023,PUBLISH
Delivery Units,Adults and Health,Other Agencies - Third Party P,0090579708,THE LIMES RESIDENTIAL HOME,"2,676.00",26/04/2023,PUBLISH
Delivery Units,Adults and Health,Other Agencies - Third Party P,0090579712,NAZARETH HOUSE,"2,540.00",26/04/2023,PUBLISH
Delivery Units,Adults and Health,Other Agencies - Third Party P,0090579714,THE LIMES RESIDENTIAL HOME,"2,676.00",26/04/2023,PUBLISH
Delivery Units,Adults and Health,Other Agencies - Third Party P,0090579718,SAGE NURSING HOME,"3,040.00",26/04/2023,PUBLISH
Delivery Units,Adults and Health,Other Agencies - Third Party P,0090579721,ELEANOR PALMER TRUST NO 2 A/C.,"3,240.00",26/04/2023,PUBLISH
Delivery Units,Adults and Health,Other Agencies - Third Party P,0090579725,ELEANOR PALMER TRUST NO 2 A/C.,"3,240.00",26/04/2023,PUBLISH
Delivery Units,Adults and Health,Other Agencies - Third Party P,0090579728,JEWISH CARE,"2,659.00",26/04/2023,PUBLISH
Delivery Units,Adults and Health,Other Agencies - Third Party P,0090579729,JEWISH CARE,"2,801.80",26/04/2023,PUBLISH
Delivery Units,Adults and Health,Other Agencies - Third Party P,0090579732,APPLE TREE COURT CARE HOME,"4,400.00",26/04/2023,PUBLISH
Delivery Units,Adults and Health,Other Agencies - Third Party P,0090579733,JEWISH CARE,"2,801.80",26/04/2023,PUBLISH
Delivery Units,Adults and Health,Other Agencies - Third Party P,0090579734,ABBEY RAVENSCROFT PARK NURSING HOME,"4,032.20",26/04/2023,PUBLISH
Delivery Units,Adults and Health,Other Agencies - Third Party P,0090579735,JEWISH CARE,"2,560.00",26/04/2023,PUBLISH
Delivery Units,Adults and Health,Other Agencies - Third Party P,0090579738,JEWISH CARE,"2,801.80",26/04/2023,PUBLISH
Delivery Units,Adults and Health,Other Agencies - Third Party P,0090579739,JEWISH CARE,"2,801.80",26/04/2023,PUBLISH
Delivery Units,Adults and Health,Other Agencies - Third Party P,0090579742,ELEANOR PALMER TRUST NO 2 A/C.,"3,240.00",26/04/2023,PUBLISH
Delivery Units,Adults and Health,Other Agencies - Third Party P,0090579744,BUPA CARE HOMES,"2,760.00",26/04/2023,PUBLISH
Delivery Units,Adults and Health,Other Agencies - Third Party P,0090579745,LIFESTYLE CARE PLC,"3,600.00",26/04/2023,PUBLISH
Delivery Units,Adults and Health,Other Agencies - Third Party P,0090579747,NAZARETH HOUSE,"2,676.00",26/04/2023,PUBLISH
Delivery Units,Adults and Health,Other Agencies - Third Party P,0090579751,BUPA CARE HOMES,"2,884.00",26/04/2023,PUBLISH
Delivery Units,Adults and Health,Other Agencies - Third Party P,0090579752,JEWISH CARE,"2,499.00",26/04/2023,PUBLISH
Delivery Units,Adults and Health,Other Agencies - Third Party P,0090579759,JEWISH CARE,"2,801.80",26/04/2023,PUBLISH
Delivery Units,Adults and Health,Other Agencies - Third Party P,0090579765,NAZARETH HOUSE,"2,676.00",26/04/2023,PUBLISH
Delivery Units,Adults and Health,Other Agencies - Third Party P,0090579766,JEWISH CARE,"2,499.00",26/04/2023,PUBLISH
Delivery Units,Adults and Health,Other Agencies - Third Party P,0090579774,JEWISH CARE,"2,801.80",26/04/2023,PUBLISH
Delivery Units,Adults and Health,Other Agencies - Third Party P,0090579778,BUPA CARE HOMES,"3,361.92",26/04/2023,PUBLISH
Delivery Units,Adults and Health,Other Agencies - Third Party P,0090579780,SAGE NURSING HOME,"3,520.00",26/04/2023,PUBLISH
Delivery Units,Adults and Health,Other Agencies - Third Party P,0090579782,ELEANOR PALMER TRUST NO 2 A/C.,"3,240.00",26/04/2023,PUBLISH
Delivery Units,Adults and Health,Other Agencies - Third Party P,0090579783,JEWISH CARE,"2,801.80",26/04/2023,PUBLISH
Delivery Units,Adults and Health,Other Agencies - Third Party P,0090579784,NAZARETH HOUSE,"2,676.00",26/04/2023,PUBLISH
Delivery Units,Adults and Health,Other Agencies - Third Party P,0090579790,ELMHURST RESIDENTIAL HOME,"3,600.00",26/04/2023,PUBLISH
Delivery Units,Adults and Health,Other Agencies - Third Party P,0090579792,NAZARETH HOUSE,"2,540.00",26/04/2023,PUBLISH
Delivery Units,Adults and Health,Other Agencies - Third Party P,0090579798,APPLE TREE COURT CARE HOME,"3,400.00",26/04/2023,PUBLISH
Delivery Units,Adults and Health,Other Agencies - Third Party P,0090579799,APPLE TREE COURT CARE HOME,"3,400.00",26/04/2023,PUBLISH
Delivery Units,Adults and Health,Other Agencies - Third Party P,0090579811,THE LIMES RESIDENTIAL HOME,"3,500.00",26/04/2023,PUBLISH
Delivery Units,Adults and Health,Other Agencies - Third Party P,0090579813,THE LIMES RESIDENTIAL HOME,"3,400.00",26/04/2023,PUBLISH
Delivery Units,Adults and Health,Other Agencies - Third Party P,0090579816,ELMHURST RESIDENTIAL HOME,"-18,781.71",26/04/2023,PUBLISH
Delivery Units,Adults and Health,Other Agencies - Third Party P,0090579822,ELEANOR PALMER TRUST NO 2 A/C.,"3,240.00",26/04/2023,PUBLISH
Delivery Units,Adults and Health,Other Agencies - Third Party P,0090579825,APPLE TREE COURT CARE HOME,"3,800.00",26/04/2023,PUBLISH
Delivery Units,Adults and Health,Other Agencies - Third Party P,0090579828,LIFESTYLE CARE PLC,"3,400.00",26/04/2023,PUBLISH
Delivery Units,Adults and Health,Other Agencies - Third Party P,0090579829,THE LIMES RESIDENTIAL HOME,"3,200.00",26/04/2023,PUBLISH
Delivery Units,Adults and Health,Other Agencies - Third Party P,0090579836,ELEANOR PALMER TRUST NO 2 A/C.,"3,400.00",26/04/2023,PUBLISH
Delivery Units,Adults and Health,Other Agencies - Third Party P,0090579840,JEWISH CARE,"2,657.00",26/04/2023,PUBLISH
Delivery Units,Adults and Health,Other Agencies - Third Party P,0090579842,LIFESTYLE CARE PLC,"3,600.00",26/04/2023,PUBLISH
Delivery Units,Adults and Health,Other Agencies - Third Party P,0090579845,JEWISH CARE,"2,801.80",26/04/2023,PUBLISH
Delivery Units,Adults and Health,Other Agencies - Third Party P,0090579851,BUPA CARE HOMES,"4,000.00",26/04/2023,PUBLISH
Delivery Units,Adults and Health,Other Agencies - Third Party P,0090579861,APPLE TREE COURT CARE HOME,"8,784.00",26/04/2023,PUBLISH
Delivery Units,Adults and Health,Other Agencies - Third Party P,0090579863,JEWISH CARE,"6,504.18",26/04/2023,PUBLISH
Delivery Units,Adults and Health,Other Agencies - Third Party P,0090579864,BUPA NURSING HOMES LTD - ARKLEY,"38,025.00",26/04/2023,PUBLISH
Delivery Units,Adults and Health,Other Agencies - Third Party P,0090579867,JEWISH CARE,"2,657.00",26/04/2023,PUBLISH
Delivery Units,Adults and Health,Other Agencies - Third Party P,0090579869,APPLE TREE COURT CARE HOME,"4,352.00",26/04/2023,PUBLISH
Delivery Units,Adults and Health,Other Agencies - Third Party P,0090579873,LIFESTYLE CARE PLC,"3,400.00",26/04/2023,PUBLISH
Delivery Units,Adults and Health,Other Agencies - Third Party P,0090579874,Aarandale Manor Care Home,"5,200.00",26/04/2023,PUBLISH
Delivery Units,Adults and Health,Other Agencies - Third Party P,0090579881,BUPA CARE HOMES,"4,000.00",26/04/2023,PUBLISH
Delivery Units,Adults and Health,Other Agencies - Third Party P,0090579886,THE LIMES RESIDENTIAL HOME,"3,400.00",26/04/2023,PUBLISH
Delivery Units,Adults and Health,Other Agencies - Third Party P,0090579897,NAZARETH HOUSE,"2,540.00",26/04/2023,PUBLISH
Delivery Units,Adults and Health,Other Agencies - Third Party P,0090579899,ELM PARK LODGE,"3,168.92",26/04/2023,PUBLISH
Delivery Units,Adults and Health,Other Agencies - Third Party P,0090579901,JEWISH CARE,"2,801.80",26/04/2023,PUBLISH
Delivery Units,Adults and Health,Other Agencies - Third Party P,0090579907,NAZARETH HOUSE,"2,540.00",26/04/2023,PUBLISH
Delivery Units,Adults and Health,Other Agencies - Third Party P,0090579913,THE LIMES RESIDENTIAL HOME,"3,160.00",26/04/2023,PUBLISH
Delivery Units,Adults and Health,Other Agencies - Third Party P,0090579914,JEWISH CARE,"2,659.00",26/04/2023,PUBLISH
Delivery Units,Adults and Health,Other Agencies - Third Party P,0090579923,JEWISH CARE,"2,801.80",26/04/2023,PUBLISH
Delivery Units,Adults and Health,Other Agencies - Third Party P,0090579924,JEWISH CARE,"2,747.48",26/04/2023,PUBLISH
Delivery Units,Adults and Health,Other Agencies - Third Party P,0090579925,JEWISH CARE,"2,801.80",26/04/2023,PUBLISH
Delivery Units,Adults and Health,Other Agencies - Third Party P,0090579928,THE LIMES RESIDENTIAL HOME,"3,120.00",26/04/2023,PUBLISH
Delivery Units,Adults and Health,Other Agencies - Third Party P,0090579929,JEWISH CARE,"2,659.00",26/04/2023,PUBLISH
Delivery Units,Adults and Health,Other Agencies - Third Party P,0090579933,JEWISH CARE,"2,659.00",26/04/2023,PUBLISH
Delivery Units,Adults and Health,Other Agencies - Third Party P,0090579934,ELEANOR PALMER TRUST NO 2 A/C.,"3,240.00",26/04/2023,PUBLISH
Delivery Units,Adults and Health,Other Agencies - Third Party P,0090579935,ELEANOR PALMER TRUST NO 2 A/C.,"3,240.00",26/04/2023,PUBLISH
Delivery Units,Adults and Health,Other Agencies - Third Party P,0090579936,ELEANOR PALMER TRUST NO 2 A/C.,"3,240.00",26/04/2023,PUBLISH
Delivery Units,Adults and Health,Other Agencies - Third Party P,0090579945,Aarandale Manor Care Home,"5,000.00",26/04/2023,PUBLISH
Delivery Units,Adults and Health,Other Agencies - Third Party P,0090579947,JEWISH CARE,"3,504.36",26/04/2023,PUBLISH
Delivery Units,Adults and Health,Other Agencies - Third Party P,0090579949,JEWISH CARE,"2,801.80",26/04/2023,PUBLISH
Delivery Units,Adults and Health,Other Agencies - Third Party P,0090579950,NAZARETH HOUSE,"2,676.00",26/04/2023,PUBLISH
Delivery Units,Adults and Health,Other Agencies - Third Party P,0090579954,BUPA NURSING HOMES LTD - ARKLEY,"2,800.00",26/04/2023,PUBLISH
Delivery Units,Adults and Health,Other Agencies - Third Party P,0090579959,ELM PARK LODGE,"1,768.00",26/04/2023,PUBLISH
Delivery Units,Adults and Health,Other Agencies - Third Party P,0090579964,NAZARETH HOUSE,"2,540.00",26/04/2023,PUBLISH
Delivery Units,Adults and Health,Other Agencies - Third Party P,0090579965,JEWISH CARE,"7,658.40",26/04/2023,PUBLISH
Delivery Units,Adults and Health,Other Agencies - Third Party P,0090579969,ELMHURST RESIDENTIAL HOME,"4,000.00",26/04/2023,PUBLISH
Delivery Units,Adults and Health,Other Agencies - Third Party P,0090579970,APPLE TREE COURT CARE HOME,"3,400.00",26/04/2023,PUBLISH
Delivery Units,Adults and Health,Other Agencies - Third Party P,0090579978,JEWISH CARE,"2,945.48",26/04/2023,PUBLISH
Delivery Units,Adults and Health,Other Agencies - Third Party P,0090579983,NAZARETH HOUSE,"4,471.20",26/04/2023,PUBLISH
Delivery Units,Adults and Health,Other Agencies - Third Party P,0090579984,BUPA CARE HOMES,"4,000.00",26/04/2023,PUBLISH
Delivery Units,Adults and Health,Other Agencies - Third Party P,0090579991,JEWISH CARE,"2,801.80",26/04/2023,PUBLISH
Delivery Units,Adults and Health,Other Agencies - Third Party P,0090580004,NAZARETH HOUSE,"2,796.00",26/04/2023,PUBLISH
Delivery Units,Adults and Health,Other Agencies - Third Party P,0090580028,ELMHURST RESIDENTIAL HOME,"3,000.00",26/04/2023,PUBLISH
Delivery Units,Adults and Health,Other Agencies - Third Party P,0090580030,ELEANOR PALMER TRUST NO 2 A/C.,"3,240.00",26/04/2023,PUBLISH
Delivery Units,Adults and Health,Other Agencies - Third Party P,0090580033,ELMHURST RESIDENTIAL HOME,"2,250.00",26/04/2023,PUBLISH
Delivery Units,Adults and Health,Other Agencies - Third Party P,0090580037,NAZARETH HOUSE,"2,540.00",26/04/2023,PUBLISH
Delivery Units,Adults and Health,Other Agencies - Third Party P,0090580040,JEWISH CARE,"2,801.80",26/04/2023,PUBLISH
Delivery Units,Adults and Health,Other Agencies - Third Party P,0090580044,THE LIMES RESIDENTIAL HOME,"3,120.00",26/04/2023,PUBLISH
Delivery Units,Adults and Health,Other Agencies - Third Party P,0090580046,NAZARETH HOUSE,"2,676.00",26/04/2023,PUBLISH
Delivery Units,Adults and Health,Other Agencies - Third Party P,0090580048,JEWISH CARE,"2,499.00",26/04/2023,PUBLISH
Delivery Units,Adults and Health,Other Agencies - Third Party P,0090580050,NAZARETH HOUSE,"3,800.00",26/04/2023,PUBLISH
Delivery Units,Adults and Health,Other Agencies - Third Party P,0090580051,JEWISH CARE,"2,801.80",26/04/2023,PUBLISH
Delivery Units,Adults and Health,Other Agencies - Third Party P,0090580054,JEWISH CARE,"2,659.00",26/04/2023,PUBLISH
Delivery Units,Adults and Health,Other Agencies - Third Party P,0090580056,NAZARETH HOUSE,"2,540.00",26/04/2023,PUBLISH
Delivery Units,Adults and Health,Other Agencies - Third Party P,0090580058,THE LIMES RESIDENTIAL HOME,"3,120.00",26/04/2023,PUBLISH
Delivery Units,Adults and Health,Other Agencies - Third Party P,0090580059,NAZARETH HOUSE,"2,676.00",26/04/2023,PUBLISH
Delivery Units,Adults and Health,Other Agencies - Third Party P,0090580061,JEWISH CARE,"2,801.80",26/04/2023,PUBLISH
Delivery Units,Adults and Health,Other Agencies - Third Party P,0090580066,NAZARETH HOUSE,"2,540.00",26/04/2023,PUBLISH
Delivery Units,Adults and Health,Other Agencies - Third Party P,0090580067,ELEANOR PALMER TRUST NO 2 A/C.,"3,240.00",26/04/2023,PUBLISH
Delivery Units,Adults and Health,Other Agencies - Third Party P,0090580068,NAZARETH HOUSE,"2,676.00",26/04/2023,PUBLISH
Delivery Units,Adults and Health,Other Agencies - Third Party P,0090580071,THE LIMES RESIDENTIAL HOME,"3,220.00",26/04/2023,PUBLISH
Delivery Units,Adults and Health,Other Agencies - Third Party P,0090580075,NAZARETH HOUSE,"-1,542.14",26/04/2023,PUBLISH
Delivery Units,Adults and Health,Other Agencies - Third Party P,0090580079,NAZARETH HOUSE,"2,676.00",26/04/2023,PUBLISH
Delivery Units,Adults and Health,Other Agencies - Third Party P,0090580080,JEWISH CARE,"2,801.80",26/04/2023,PUBLISH
Delivery Units,Adults and Health,Other Agencies - Third Party P,0090580081,JEWISH CARE,"2,801.80",26/04/2023,PUBLISH
Delivery Units,Adults and Health,Other Agencies - Third Party P,0090580085,ELMHURST RESIDENTIAL HOME,"3,800.00",26/04/2023,PUBLISH
Delivery Units,Adults and Health,Other Agencies - Third Party P,0090580086,NAZARETH HOUSE,"2,676.00",26/04/2023,PUBLISH
Delivery Units,Adults and Health,Other Agencies - Third Party P,0090580090,ELEANOR PALMER TRUST NO 2 A/C.,"3,800.00",26/04/2023,PUBLISH
Delivery Units,Adults and Health,Other Agencies - Third Party P,0090580104,JEWISH CARE,"3,200.00",26/04/2023,PUBLISH
Delivery Units,Adults and Health,Other Agencies - Third Party P,0090580109,APPLE TREE COURT CARE HOME,"5,124.00",26/04/2023,PUBLISH
Delivery Units,Adults and Health,Other Agencies - Third Party P,0090580114,ASHTON LODGE CARE CENTRE,"4,000.00",26/04/2023,PUBLISH
Delivery Units,Adults and Health,Other Agencies - Third Party P,0090580130,THE LIMES RESIDENTIAL HOME,"3,500.00",26/04/2023,PUBLISH
Delivery Units,Adults and Health,Other Agencies - Third Party P,0090580135,JEWISH CARE,"4,196.40",26/04/2023,PUBLISH
Delivery Units,Adults and Health,Other Agencies - Third Party P,0090580140,ELM PARK LODGE,814.29,26/04/2023,PUBLISH
Delivery Units,Adults and Health,Other Agencies - Third Party P,0090580150,B & M CARE,"4,285.71",26/04/2023,PUBLISH
Delivery Units,Adults and Health,Other Agencies - Third Party P,0090580151,B & M CARE,"3,642.86",26/04/2023,PUBLISH
Delivery Units,Adults and Health,Other Agencies - Third Party P,0090580152,B & M CARE,"4,157.14",26/04/2023,PUBLISH
Delivery Units,Adults and Health,Other Agencies - Third Party P,0090580154,B & M CARE,"4,071.43",26/04/2023,PUBLISH
Delivery Units,Adults and Health,Other Agencies - Third Party P,0090580258,EASTSIDE HOUSE CARE HOME,"3,800.00",27/04/2023,PUBLISH
Delivery Units,Adults and Health,Other Agencies - Third Party P,0090573174,Thames Homecare Services Ltd,611.24,11/04/2023,PUBLISH
Delivery Units,Adults and Health,Other Agencies - Third Party P,0090573175,Thames Homecare Services Ltd,183.33,11/04/2023,PUBLISH
Delivery Units,Adults and Health,Other Agencies - Third Party P,0090573176,Thames Homecare Services Ltd,301.22,11/04/2023,PUBLISH
Delivery Units,Adults and Health,Other Agencies - Third Party P,0090573177,Thames Homecare Services Ltd,724.63,11/04/2023,PUBLISH
Delivery Units,Adults and Health,Other Agencies - Third Party P,0090573178,Thames Homecare Services Ltd,794.64,11/04/2023,PUBLISH
Delivery Units,Adults and Health,Other Agencies - Third Party P,0090573179,Thames Homecare Services Ltd,829.56,11/04/2023,PUBLISH
Delivery Units,Adults and Health,Other Agencies - Third Party P,0090573181,Thames Homecare Services Ltd,292.49,11/04/2023,PUBLISH
Delivery Units,Adults and Health,Other Agencies - Third Party P,0090573183,Thames Homecare Services Ltd,654.78,11/04/2023,PUBLISH
Delivery Units,Adults and Health,Other Agencies - Third Party P,0090573184,Thames Homecare Services Ltd,824.99,11/04/2023,PUBLISH
Delivery Units,Adults and Health,Other Agencies - Third Party P,0090573185,Thames Homecare Services Ltd,397.32,11/04/2023,PUBLISH
Delivery Units,Adults and Health,Other Agencies - Third Party P,0090573186,Thames Homecare Services Ltd,231.38,11/04/2023,PUBLISH
Delivery Units,Adults and Health,Other Agencies - Third Party P,0090573187,Thames Homecare Services Ltd,91.70,11/04/2023,PUBLISH
Delivery Units,Adults and Health,Other Agencies - Third Party P,0090573188,Thames Homecare Services Ltd,794.64,11/04/2023,PUBLISH
Delivery Units,Adults and Health,Other Agencies - Third Party P,0090573189,Thames Homecare Services Ltd,323.01,11/04/2023,PUBLISH
Delivery Units,Adults and Health,Other Agencies - Third Party P,0090573190,Thames Homecare Services Ltd,488.88,11/04/2023,PUBLISH
Delivery Units,Adults and Health,Other Agencies - Third Party P,0090573191,Thames Homecare Services Ltd,611.10,11/04/2023,PUBLISH
Delivery Units,Adults and Health,Other Agencies - Third Party P,0090573192,Thames Homecare Services Ltd,489.02,11/04/2023,PUBLISH
Delivery Units,Adults and Health,Other Agencies - Third Party P,0090573193,Thames Homecare Services Ltd,323.06,11/04/2023,PUBLISH
Delivery Units,Adults and Health,Other Agencies - Third Party P,0090573195,Thames Homecare Services Ltd,707.27,11/04/2023,PUBLISH
Delivery Units,Adults and Health,Other Agencies - Third Party P,0090573197,Thames Homecare Services Ltd,908.01,11/04/2023,PUBLISH
Delivery Units,Adults and Health,Other Agencies - Third Party P,0090573198,Thames Homecare Services Ltd,61.11,11/04/2023,PUBLISH
Delivery Units,Adults and Health,Other Agencies - Third Party P,0090573199,Thames Homecare Services Ltd,78.57,11/04/2023,PUBLISH
Delivery Units,Adults and Health,Other Agencies - Third Party P,0090573200,Thames Homecare Services Ltd,716.02,11/04/2023,PUBLISH
Delivery Units,Adults and Health,Other Agencies - Third Party P,0090573201,Thames Homecare Services Ltd,275.03,11/04/2023,PUBLISH
Delivery Units,Adults and Health,Other Agencies - Third Party P,0090573202,Thames Homecare Services Ltd,126.61,11/04/2023,PUBLISH
Delivery Units,Adults and Health,Other Agencies - Third Party P,0090573203,Thames Homecare Services Ltd,248.85,11/04/2023,PUBLISH
Delivery Units,Adults and Health,Other Agencies - Third Party P,0090573205,Thames Homecare Services Ltd,462.69,11/04/2023,PUBLISH
Delivery Units,Adults and Health,Other Agencies - Third Party P,0090573206,Thames Homecare Services Ltd,327.44,11/04/2023,PUBLISH
Delivery Units,Adults and Health,Other Agencies - Third Party P,0090573207,Thames Homecare Services Ltd,91.70,11/04/2023,PUBLISH
Delivery Units,Adults and Health,Other Agencies - Third Party P,0090573208,Thames Homecare Services Ltd,366.80,11/04/2023,PUBLISH
Delivery Units,Adults and Health,Other Agencies - Third Party P,0090573209,Thames Homecare Services Ltd,192.06,11/04/2023,PUBLISH
Delivery Units,Adults and Health,Other Agencies - Third Party P,0090573212,Thames Homecare Services Ltd,261.97,11/04/2023,PUBLISH
Delivery Units,Adults and Health,Other Agencies - Third Party P,0090573213,Thames Homecare Services Ltd,336.14,11/04/2023,PUBLISH
Delivery Units,Adults and Health,Other Agencies - Third Party P,0090573214,Thames Homecare Services Ltd,309.95,11/04/2023,PUBLISH
Delivery Units,Adults and Health,Other Agencies - Third Party P,0090573215,Thames Homecare Services Ltd,305.55,11/04/2023,PUBLISH
Delivery Units,Adults and Health,Other Agencies - Third Party P,0090573217,Thames Homecare Services Ltd,825.16,11/04/2023,PUBLISH
Delivery Units,Adults and Health,Other Agencies - Third Party P,0090573218,Thames Homecare Services Ltd,336.21,11/04/2023,PUBLISH
Delivery Units,Adults and Health,Other Agencies - Third Party P,0090573219,Thames Homecare Services Ltd,733.46,11/04/2023,PUBLISH
Delivery Units,Adults and Health,Other Agencies - Third Party P,0090573221,Thames Homecare Services Ltd,314.32,11/04/2023,PUBLISH
Delivery Units,Adults and Health,Other Agencies - Third Party P,0090573223,Thames Homecare Services Ltd,170.27,11/04/2023,PUBLISH
Delivery Units,Adults and Health,Other Agencies - Third Party P,0090573224,Thames Homecare Services Ltd,113.51,11/04/2023,PUBLISH
Delivery Units,Adults and Health,Other Agencies - Third Party P,0090573226,Thames Homecare Services Ltd,480.22,11/04/2023,PUBLISH
Delivery Units,Adults and Health,Other Agencies - Third Party P,0090573227,Thames Homecare Services Ltd,122.22,11/04/2023,PUBLISH
Delivery Units,Adults and Health,Other Agencies - Third Party P,0090573228,Thames Homecare Services Ltd,213.92,11/04/2023,PUBLISH
Delivery Units,Adults and Health,Other Agencies - Third Party P,0090573229,Thames Homecare Services Ltd,275.03,11/04/2023,PUBLISH
Delivery Units,Adults and Health,Other Agencies - Third Party P,0090573230,Thames Homecare Services Ltd,305.62,11/04/2023,PUBLISH
Delivery Units,Adults and Health,Other Agencies - Third Party P,0090573231,Thames Homecare Services Ltd,336.14,11/04/2023,PUBLISH
Delivery Units,Adults and Health,Other Agencies - Third Party P,0090573233,Thames Homecare Services Ltd,977.76,11/04/2023,PUBLISH
Delivery Units,Adults and Health,Other Agencies - Third Party P,0090573235,Thames Homecare Services Ltd,323.08,11/04/2023,PUBLISH
Delivery Units,Adults and Health,Other Agencies - Third Party P,0090573236,Thames Homecare Services Ltd,227.00,11/04/2023,PUBLISH
Delivery Units,Adults and Health,Other Agencies - Third Party P,0090573237,Thames Homecare Services Ltd,288.16,11/04/2023,PUBLISH
Delivery Units,Adults and Health,Other Agencies - Third Party P,0090573238,Thames Homecare Services Ltd,39.30,11/04/2023,PUBLISH
Delivery Units,Adults and Health,Other Agencies - Third Party P,0090573239,Thames Homecare Services Ltd,183.40,11/04/2023,PUBLISH
Delivery Units,Adults and Health,Other Agencies - Third Party P,0090573240,Thames Homecare Services Ltd,213.92,11/04/2023,PUBLISH
Delivery Units,Adults and Health,Other Agencies - Third Party P,0090573241,Thames Homecare Services Ltd,244.51,11/04/2023,PUBLISH
Delivery Units,Adults and Health,Other Agencies - Third Party P,0090573243,Thames Homecare Services Ltd,602.48,11/04/2023,PUBLISH
Delivery Units,Adults and Health,Other Agencies - Third Party P,0090573244,Thames Homecare Services Ltd,423.51,11/04/2023,PUBLISH
Delivery Units,Adults and Health,Other Agencies - Third Party P,0090573245,Thames Homecare Services Ltd,275.03,11/04/2023,PUBLISH
Delivery Units,Adults and Health,Other Agencies - Third Party P,0090573247,Thames Homecare Services Ltd,52.38,11/04/2023,PUBLISH
Delivery Units,Adults and Health,Other Agencies - Third Party P,0090573248,Thames Homecare Services Ltd,135.32,11/04/2023,PUBLISH
Delivery Units,Adults and Health,Other Agencies - Third Party P,0090573249,Thames Homecare Services Ltd,183.40,11/04/2023,PUBLISH
Delivery Units,Adults and Health,Other Agencies - Third Party P,0090573250,Thames Homecare Services Ltd,174.60,11/04/2023,PUBLISH
Delivery Units,Adults and Health,Other Agencies - Third Party P,0090573251,Thames Homecare Services Ltd,305.62,11/04/2023,PUBLISH
Delivery Units,Adults and Health,Other Agencies - Third Party P,0090573252,Thames Homecare Services Ltd,87.30,11/04/2023,PUBLISH
Delivery Units,Adults and Health,Other Agencies - Third Party P,0090573253,Thames Homecare Services Ltd,183.40,11/04/2023,PUBLISH
Delivery Units,Adults and Health,Other Agencies - Third Party P,0090573254,Thames Homecare Services Ltd,109.16,11/04/2023,PUBLISH
Delivery Units,Adults and Health,Other Agencies - Third Party P,0090573255,Thames Homecare Services Ltd,550.06,11/04/2023,PUBLISH
Delivery Units,Adults and Health,Other Agencies - Third Party P,0090573256,Thames Homecare Services Ltd,227.00,11/04/2023,PUBLISH
Delivery Units,Adults and Health,Other Agencies - Third Party P,0090573257,Thames Homecare Services Ltd,275.03,11/04/2023,PUBLISH
Delivery Units,Adults and Health,Other Agencies - Third Party P,0090573259,Thames Homecare Services Ltd,955.98,11/04/2023,PUBLISH
Delivery Units,Adults and Health,Other Agencies - Third Party P,0090573260,Thames Homecare Services Ltd,397.32,11/04/2023,PUBLISH
Delivery Units,Adults and Health,Other Agencies - Third Party P,0090573261,Thames Homecare Services Ltd,152.81,11/04/2023,PUBLISH
Delivery Units,Adults and Health,Other Agencies - Third Party P,0090573263,Thames Homecare Services Ltd,244.44,11/04/2023,PUBLISH
Delivery Units,Adults and Health,Other Agencies - Third Party P,0090573265,Thames Homecare Services Ltd,61.12,11/04/2023,PUBLISH
Delivery Units,Adults and Health,Other Agencies - Third Party P,0090573266,Thames Homecare Services Ltd,305.55,11/04/2023,PUBLISH
Delivery Units,Adults and Health,Other Agencies - Third Party P,0090573268,Thames Homecare Services Ltd,183.33,11/04/2023,PUBLISH
Delivery Units,Adults and Health,Other Agencies - Third Party P,0090573269,Thames Homecare Services Ltd,859.94,11/04/2023,PUBLISH
Delivery Units,Adults and Health,Other Agencies - Third Party P,0090573270,Thames Homecare Services Ltd,"1,450.00",11/04/2023,PUBLISH
Delivery Units,Adults and Health,Other Agencies - Third Party P,0090573273,Thames Homecare Services Ltd,122.22,11/04/2023,PUBLISH
Delivery Units,Adults and Health,Other Agencies - Third Party P,0090573274,Thames Homecare Services Ltd,91.70,11/04/2023,PUBLISH
Delivery Units,Adults and Health,Other Agencies - Third Party P,0090573275,Thames Homecare Services Ltd,113.53,11/04/2023,PUBLISH
Delivery Units,Adults and Health,Other Agencies - Third Party P,0090573276,Thames Homecare Services Ltd,148.45,11/04/2023,PUBLISH
Delivery Units,Adults and Health,Other Agencies - Third Party P,0090573277,Thames Homecare Services Ltd,65.50,11/04/2023,PUBLISH
Delivery Units,Adults and Health,Other Agencies - Third Party P,0090573278,Thames Homecare Services Ltd,139.68,11/04/2023,PUBLISH
Delivery Units,Adults and Health,Other Agencies - Third Party P,0090573279,Thames Homecare Services Ltd,61.12,11/04/2023,PUBLISH
Delivery Units,Adults and Health,Other Agencies - Third Party P,0090573281,Thames Homecare Services Ltd,427.84,11/04/2023,PUBLISH
Delivery Units,Adults and Health,Other Agencies - Third Party P,0090573282,Thames Homecare Services Ltd,113.50,11/04/2023,PUBLISH
Delivery Units,Adults and Health,Other Agencies - Third Party P,0090573283,Thames Homecare Services Ltd,130.97,11/04/2023,PUBLISH
Delivery Units,Adults and Health,Other Agencies - Third Party P,0090573285,Thames Homecare Services Ltd,231.38,11/04/2023,PUBLISH
Delivery Units,Adults and Health,Other Agencies - Third Party P,0090573287,Thames Homecare Services Ltd,183.40,11/04/2023,PUBLISH
Delivery Units,Adults and Health,Other Agencies - Third Party P,0090573289,Thames Homecare Services Ltd,87.31,11/04/2023,PUBLISH
Delivery Units,Adults and Health,Other Agencies - Third Party P,0090573290,Thames Homecare Services Ltd,122.22,11/04/2023,PUBLISH
Delivery Units,Adults and Health,Other Agencies - Third Party P,0090573291,Thames Homecare Services Ltd,619.90,11/04/2023,PUBLISH
Delivery Units,Adults and Health,Other Agencies - Third Party P,0090573292,Thames Homecare Services Ltd,91.70,11/04/2023,PUBLISH
Delivery Units,Adults and Health,Other Agencies - Third Party P,0090573293,Thames Homecare Services Ltd,200.82,11/04/2023,PUBLISH
Delivery Units,Adults and Health,Other Agencies - Third Party P,0090573295,Thames Homecare Services Ltd,227.02,11/04/2023,PUBLISH
Delivery Units,Adults and Health,Other Agencies - Third Party P,0090573296,Thames Homecare Services Ltd,100.42,11/04/2023,PUBLISH
Delivery Units,Adults and Health,Other Agencies - Third Party P,0090573298,Thames Homecare Services Ltd,152.81,11/04/2023,PUBLISH
Delivery Units,Adults and Health,Other Agencies - Third Party P,0090573299,Thames Homecare Services Ltd,213.92,11/04/2023,PUBLISH
Delivery Units,Adults and Health,Other Agencies - Third Party P,0090573300,Thames Homecare Services Ltd,100.42,11/04/2023,PUBLISH
Delivery Units,Adults and Health,Other Agencies - Third Party P,0090573301,Thames Homecare Services Ltd,152.81,11/04/2023,PUBLISH
Delivery Units,Adults and Health,Other Agencies - Third Party P,0090573302,Thames Homecare Services Ltd,436.50,11/04/2023,PUBLISH
Delivery Units,Adults and Health,Other Agencies - Third Party P,0090573303,Thames Homecare Services Ltd,43.65,11/04/2023,PUBLISH
Delivery Units,Adults and Health,Other Agencies - Third Party P,0090573304,Thames Homecare Services Ltd,248.84,11/04/2023,PUBLISH
Delivery Units,Adults and Health,Other Agencies - Third Party P,0090573305,Thames Homecare Services Ltd,488.88,11/04/2023,PUBLISH
Delivery Units,Adults and Health,Other Agencies - Third Party P,0090573307,Thames Homecare Services Ltd,170.27,11/04/2023,PUBLISH
Delivery Units,Adults and Health,Other Agencies - Third Party P,0090573308,Thames Homecare Services Ltd,488.88,11/04/2023,PUBLISH
Delivery Units,Adults and Health,Other Agencies - Third Party P,0090573309,Thames Homecare Services Ltd,218.25,11/04/2023,PUBLISH
Delivery Units,Adults and Health,Other Agencies - Third Party P,0090573310,Thames Homecare Services Ltd,270.71,11/04/2023,PUBLISH
Delivery Units,Adults and Health,Other Agencies - Third Party P,0090573311,Thames Homecare Services Ltd,244.44,11/04/2023,PUBLISH
Delivery Units,Adults and Health,Other Agencies - Third Party P,0090573312,Thames Homecare Services Ltd,440.96,11/04/2023,PUBLISH
Delivery Units,Adults and Health,Other Agencies - Third Party P,0090573314,Thames Homecare Services Ltd,196.46,11/04/2023,PUBLISH
Delivery Units,Adults and Health,Other Agencies - Third Party P,0090573316,Thames Homecare Services Ltd,384.16,11/04/2023,PUBLISH
Delivery Units,Adults and Health,Other Agencies - Third Party P,0090573317,Thames Homecare Services Ltd,292.49,11/04/2023,PUBLISH
Delivery Units,Adults and Health,Other Agencies - Third Party P,0090573318,Thames Homecare Services Ltd,69.84,11/04/2023,PUBLISH
Delivery Units,Adults and Health,Other Agencies - Third Party P,0090573319,Thames Homecare Services Ltd,200.79,11/04/2023,PUBLISH
Delivery Units,Adults and Health,Other Agencies - Third Party P,0090573321,Thames Homecare Services Ltd,209.55,11/04/2023,PUBLISH
Delivery Units,Adults and Health,Other Agencies - Third Party P,0090573322,Thames Homecare Services Ltd,56.76,11/04/2023,PUBLISH
Delivery Units,Adults and Health,Other Agencies - Third Party P,0090573323,Thames Homecare Services Ltd,427.84,11/04/2023,PUBLISH
Delivery Units,Adults and Health,Other Agencies - Third Party P,0090573324,Thames Homecare Services Ltd,179.02,11/04/2023,PUBLISH
Delivery Units,Adults and Health,Other Agencies - Third Party P,0090573325,Thames Homecare Services Ltd,91.69,11/04/2023,PUBLISH
Delivery Units,Adults and Health,Other Agencies - Third Party P,0090573326,Thames Homecare Services Ltd,122.22,11/04/2023,PUBLISH
Delivery Units,Adults and Health,Other Agencies - Third Party P,0090573327,Thames Homecare Services Ltd,305.60,11/04/2023,PUBLISH
Delivery Units,Adults and Health,Other Agencies - Third Party P,0090573332,Thames Homecare Services Ltd,87.33,11/04/2023,PUBLISH
Delivery Units,Adults and Health,Other Agencies - Third Party P,0090573333,Thames Homecare Services Ltd,275.03,11/04/2023,PUBLISH
Delivery Units,Adults and Health,Other Agencies - Third Party P,0090573335,Thames Homecare Services Ltd,545.66,11/04/2023,PUBLISH
Delivery Units,Adults and Health,Other Agencies - Third Party P,0090573336,Thames Homecare Services Ltd,183.40,11/04/2023,PUBLISH
Delivery Units,Adults and Health,Other Agencies - Third Party P,0090573339,Thames Homecare Services Ltd,152.81,11/04/2023,PUBLISH
Delivery Units,Adults and Health,Other Agencies - Third Party P,0090573340,Thames Homecare Services Ltd,305.62,11/04/2023,PUBLISH
Delivery Units,Adults and Health,Other Agencies - Third Party P,0090573341,Thames Homecare Services Ltd,550.06,11/04/2023,PUBLISH
Delivery Units,Adults and Health,Other Agencies - Third Party P,0090573342,Thames Homecare Services Ltd,213.92,11/04/2023,PUBLISH
Delivery Units,Adults and Health,Other Agencies - Third Party P,0090573344,Thames Homecare Services Ltd,91.70,11/04/2023,PUBLISH
Delivery Units,Adults and Health,Other Agencies - Third Party P,0090573345,Thames Homecare Services Ltd,777.12,11/04/2023,PUBLISH
Delivery Units,Adults and Health,Other Agencies - Third Party P,0090573347,Thames Homecare Services Ltd,488.94,11/04/2023,PUBLISH
Delivery Units,Adults and Health,Other Agencies - Third Party P,0090573352,Thames Homecare Services Ltd,244.44,11/04/2023,PUBLISH
Delivery Units,Adults and Health,Other Agencies - Third Party P,0090573355,Thames Homecare Services Ltd,794.64,11/04/2023,PUBLISH
Delivery Units,Adults and Health,Other Agencies - Third Party P,0090573356,Thames Homecare Services Ltd,183.40,11/04/2023,PUBLISH
Delivery Units,Adults and Health,Other Agencies - Third Party P,0090573357,Thames Homecare Services Ltd,611.24,11/04/2023,PUBLISH
Delivery Units,Adults and Health,Other Agencies - Third Party P,0090573358,Thames Homecare Services Ltd,183.33,11/04/2023,PUBLISH
Delivery Units,Adults and Health,Other Agencies - Third Party P,0090573359,Thames Homecare Services Ltd,301.22,11/04/2023,PUBLISH
Delivery Units,Adults and Health,Other Agencies - Third Party P,0090573360,Thames Homecare Services Ltd,654.84,11/04/2023,PUBLISH
Delivery Units,Adults and Health,Other Agencies - Third Party P,0090573361,Thames Homecare Services Ltd,746.53,11/04/2023,PUBLISH
Delivery Units,Adults and Health,Other Agencies - Third Party P,0090573362,Thames Homecare Services Ltd,829.56,11/04/2023,PUBLISH
Delivery Units,Adults and Health,Other Agencies - Third Party P,0090573364,Thames Homecare Services Ltd,292.49,11/04/2023,PUBLISH
Delivery Units,Adults and Health,Other Agencies - Third Party P,0090573366,Thames Homecare Services Ltd,680.94,11/04/2023,PUBLISH
Delivery Units,Adults and Health,Other Agencies - Third Party P,0090573368,Thames Homecare Services Ltd,528.31,11/04/2023,PUBLISH
Delivery Units,Adults and Health,Other Agencies - Third Party P,0090573369,Thames Homecare Services Ltd,397.32,11/04/2023,PUBLISH
Delivery Units,Adults and Health,Other Agencies - Third Party P,0090573370,Thames Homecare Services Ltd,231.38,11/04/2023,PUBLISH
Delivery Units,Adults and Health,Other Agencies - Third Party P,0090573371,Thames Homecare Services Ltd,82.97,11/04/2023,PUBLISH
Delivery Units,Adults and Health,Other Agencies - Third Party P,0090573372,Thames Homecare Services Ltd,794.64,11/04/2023,PUBLISH
Delivery Units,Adults and Health,Other Agencies - Third Party P,0090573373,Thames Homecare Services Ltd,323.01,11/04/2023,PUBLISH
Delivery Units,Adults and Health,Other Agencies - Third Party P,0090573374,Thames Homecare Services Ltd,484.53,11/04/2023,PUBLISH
Delivery Units,Adults and Health,Other Agencies - Third Party P,0090573375,Thames Homecare Services Ltd,611.10,11/04/2023,PUBLISH
Delivery Units,Adults and Health,Other Agencies - Third Party P,0090573376,Thames Homecare Services Ltd,489.02,11/04/2023,PUBLISH
Delivery Units,Adults and Health,Other Agencies - Third Party P,0090573377,Thames Homecare Services Ltd,323.06,11/04/2023,PUBLISH
Delivery Units,Adults and Health,Other Agencies - Third Party P,0090573379,Thames Homecare Services Ltd,707.27,11/04/2023,PUBLISH
Delivery Units,Adults and Health,Other Agencies - Third Party P,0090573381,Thames Homecare Services Ltd,864.39,11/04/2023,PUBLISH
Delivery Units,Adults and Health,Other Agencies - Third Party P,0090573382,Thames Homecare Services Ltd,61.11,11/04/2023,PUBLISH
Delivery Units,Adults and Health,Other Agencies - Third Party P,0090573383,Thames Homecare Services Ltd,78.57,11/04/2023,PUBLISH
Delivery Units,Adults and Health,Other Agencies - Third Party P,0090573385,Thames Homecare Services Ltd,698.54,11/04/2023,PUBLISH
Delivery Units,Adults and Health,Other Agencies - Third Party P,0090573386,Thames Homecare Services Ltd,275.03,11/04/2023,PUBLISH
Delivery Units,Adults and Health,Other Agencies - Third Party P,0090573387,Thames Homecare Services Ltd,126.61,11/04/2023,PUBLISH
Delivery Units,Adults and Health,Other Agencies - Third Party P,0090573388,Thames Homecare Services Ltd,235.76,11/04/2023,PUBLISH
Delivery Units,Adults and Health,Other Agencies - Third Party P,0090573391,Thames Homecare Services Ltd,458.40,11/04/2023,PUBLISH
Delivery Units,Adults and Health,Other Agencies - Third Party P,0090573392,Thames Homecare Services Ltd,358.01,11/04/2023,PUBLISH
Delivery Units,Adults and Health,Other Agencies - Third Party P,0090573393,Thames Homecare Services Ltd,91.70,11/04/2023,PUBLISH
Delivery Units,Adults and Health,Other Agencies - Third Party P,0090573394,Thames Homecare Services Ltd,366.80,11/04/2023,PUBLISH
Delivery Units,Adults and Health,Other Agencies - Third Party P,0090573395,Thames Homecare Services Ltd,183.33,11/04/2023,PUBLISH
Delivery Units,Adults and Health,Other Agencies - Third Party P,0090573398,Thames Homecare Services Ltd,261.97,11/04/2023,PUBLISH
Delivery Units,Adults and Health,Other Agencies - Third Party P,0090573399,Thames Homecare Services Ltd,336.14,11/04/2023,PUBLISH
Delivery Units,Adults and Health,Other Agencies - Third Party P,0090573400,Thames Homecare Services Ltd,309.95,11/04/2023,PUBLISH
Delivery Units,Adults and Health,Other Agencies - Third Party P,0090573401,Thames Homecare Services Ltd,305.55,11/04/2023,PUBLISH
Delivery Units,Adults and Health,Other Agencies - Third Party P,0090573403,Thames Homecare Services Ltd,825.16,11/04/2023,PUBLISH
Delivery Units,Adults and Health,Other Agencies - Third Party P,0090573404,Thames Homecare Services Ltd,327.45,11/04/2023,PUBLISH
Delivery Units,Adults and Health,Other Agencies - Third Party P,0090573405,Thames Homecare Services Ltd,711.61,11/04/2023,PUBLISH
Delivery Units,Adults and Health,Other Agencies - Third Party P,0090573407,Thames Homecare Services Ltd,314.32,11/04/2023,PUBLISH
Delivery Units,Adults and Health,Other Agencies - Third Party P,0090573409,Thames Homecare Services Ltd,170.27,11/04/2023,PUBLISH
Delivery Units,Adults and Health,Other Agencies - Third Party P,0090573410,Thames Homecare Services Ltd,109.14,11/04/2023,PUBLISH
Delivery Units,Adults and Health,Other Agencies - Third Party P,0090573412,Thames Homecare Services Ltd,480.22,11/04/2023,PUBLISH
Delivery Units,Adults and Health,Other Agencies - Third Party P,0090573413,Thames Homecare Services Ltd,117.86,11/04/2023,PUBLISH
Delivery Units,Adults and Health,Other Agencies - Third Party P,0090573414,Thames Homecare Services Ltd,205.18,11/04/2023,PUBLISH
Delivery Units,Adults and Health,Other Agencies - Third Party P,0090573415,Thames Homecare Services Ltd,275.03,11/04/2023,PUBLISH
Delivery Units,Adults and Health,Other Agencies - Third Party P,0090573416,Thames Homecare Services Ltd,305.62,11/04/2023,PUBLISH
Delivery Units,Adults and Health,Other Agencies - Third Party P,0090573417,Thames Homecare Services Ltd,336.14,11/04/2023,PUBLISH
Delivery Units,Adults and Health,Other Agencies - Third Party P,0090573419,Thames Homecare Services Ltd,977.76,11/04/2023,PUBLISH
Delivery Units,Adults and Health,Other Agencies - Third Party P,0090573421,Thames Homecare Services Ltd,323.08,11/04/2023,PUBLISH
Delivery Units,Adults and Health,Other Agencies - Third Party P,0090573422,Thames Homecare Services Ltd,231.36,11/04/2023,PUBLISH
Delivery Units,Adults and Health,Other Agencies - Third Party P,0090573423,Thames Homecare Services Ltd,288.16,11/04/2023,PUBLISH
Delivery Units,Adults and Health,Other Agencies - Third Party P,0090573424,Thames Homecare Services Ltd,39.30,11/04/2023,PUBLISH
Delivery Units,Adults and Health,Other Agencies - Third Party P,0090573425,Thames Homecare Services Ltd,183.40,11/04/2023,PUBLISH
Delivery Units,Adults and Health,Other Agencies - Third Party P,0090573426,Thames Homecare Services Ltd,213.92,11/04/2023,PUBLISH
Delivery Units,Adults and Health,Other Agencies - Third Party P,0090573427,Thames Homecare Services Ltd,244.51,11/04/2023,PUBLISH
Delivery Units,Adults and Health,Other Agencies - Third Party P,0090573428,Thames Homecare Services Ltd,585.02,11/04/2023,PUBLISH
Delivery Units,Adults and Health,Other Agencies - Third Party P,0090573429,Thames Homecare Services Ltd,423.51,11/04/2023,PUBLISH
Delivery Units,Adults and Health,Other Agencies - Third Party P,0090573430,Thames Homecare Services Ltd,275.03,11/04/2023,PUBLISH
Delivery Units,Adults and Health,Other Agencies - Third Party P,0090573432,Thames Homecare Services Ltd,52.38,11/04/2023,PUBLISH
Delivery Units,Adults and Health,Other Agencies - Third Party P,0090573433,Thames Homecare Services Ltd,130.95,11/04/2023,PUBLISH
Delivery Units,Adults and Health,Other Agencies - Third Party P,0090573434,Thames Homecare Services Ltd,161.53,11/04/2023,PUBLISH
Delivery Units,Adults and Health,Other Agencies - Third Party P,0090573435,Thames Homecare Services Ltd,174.60,11/04/2023,PUBLISH
Delivery Units,Adults and Health,Other Agencies - Third Party P,0090573436,Thames Homecare Services Ltd,305.62,11/04/2023,PUBLISH
Delivery Units,Adults and Health,Other Agencies - Third Party P,0090573437,Thames Homecare Services Ltd,183.40,11/04/2023,PUBLISH
Delivery Units,Adults and Health,Other Agencies - Third Party P,0090573438,Thames Homecare Services Ltd,109.16,11/04/2023,PUBLISH
Delivery Units,Adults and Health,Other Agencies - Third Party P,0090573439,Thames Homecare Services Ltd,550.06,11/04/2023,PUBLISH
Delivery Units,Adults and Health,Other Agencies - Third Party P,0090573440,Thames Homecare Services Ltd,275.03,11/04/2023,PUBLISH
Delivery Units,Adults and Health,Other Agencies - Third Party P,0090573442,Thames Homecare Services Ltd,977.76,11/04/2023,PUBLISH
Delivery Units,Adults and Health,Other Agencies - Third Party P,0090573443,Thames Homecare Services Ltd,397.32,11/04/2023,PUBLISH
Delivery Units,Adults and Health,Other Agencies - Third Party P,0090573444,Thames Homecare Services Ltd,152.81,11/04/2023,PUBLISH
Delivery Units,Adults and Health,Other Agencies - Third Party P,0090573446,Thames Homecare Services Ltd,244.44,11/04/2023,PUBLISH
Delivery Units,Adults and Health,Other Agencies - Third Party P,0090573448,Thames Homecare Services Ltd,48.02,11/04/2023,PUBLISH
Delivery Units,Adults and Health,Other Agencies - Third Party P,0090573449,Thames Homecare Services Ltd,305.55,11/04/2023,PUBLISH
Delivery Units,Adults and Health,Other Agencies - Third Party P,0090573451,Thames Homecare Services Ltd,183.33,11/04/2023,PUBLISH
Delivery Units,Adults and Health,Other Agencies - Third Party P,0090573452,Thames Homecare Services Ltd,859.94,11/04/2023,PUBLISH
Delivery Units,Adults and Health,Other Agencies - Third Party P,0090573453,Thames Homecare Services Ltd,"1,450.00",11/04/2023,PUBLISH
Delivery Units,Adults and Health,Other Agencies - Third Party P,0090573456,Thames Homecare Services Ltd,100.41,11/04/2023,PUBLISH
Delivery Units,Adults and Health,Other Agencies - Third Party P,0090573457,Thames Homecare Services Ltd,91.70,11/04/2023,PUBLISH
Delivery Units,Adults and Health,Other Agencies - Third Party P,0090573458,Thames Homecare Services Ltd,113.53,11/04/2023,PUBLISH
Delivery Units,Adults and Health,Other Agencies - Third Party P,0090573459,Thames Homecare Services Ltd,152.81,11/04/2023,PUBLISH
Delivery Units,Adults and Health,Other Agencies - Third Party P,0090573460,Thames Homecare Services Ltd,69.86,11/04/2023,PUBLISH
Delivery Units,Adults and Health,Other Agencies - Third Party P,0090573461,Thames Homecare Services Ltd,139.68,11/04/2023,PUBLISH
Delivery Units,Adults and Health,Other Agencies - Third Party P,0090573462,Thames Homecare Services Ltd,69.86,11/04/2023,PUBLISH
Delivery Units,Adults and Health,Other Agencies - Third Party P,0090573464,Thames Homecare Services Ltd,344.88,11/04/2023,PUBLISH
Delivery Units,Adults and Health,Other Agencies - Third Party P,0090573465,Thames Homecare Services Ltd,122.22,11/04/2023,PUBLISH
Delivery Units,Adults and Health,Other Agencies - Third Party P,0090573466,Thames Homecare Services Ltd,170.28,11/04/2023,PUBLISH
Delivery Units,Adults and Health,Other Agencies - Third Party P,0090573468,Thames Homecare Services Ltd,231.38,11/04/2023,PUBLISH
Delivery Units,Adults and Health,Other Agencies - Third Party P,0090573470,Thames Homecare Services Ltd,183.40,11/04/2023,PUBLISH
Delivery Units,Adults and Health,Other Agencies - Third Party P,0090573472,Thames Homecare Services Ltd,87.31,11/04/2023,PUBLISH
Delivery Units,Adults and Health,Other Agencies - Third Party P,0090573473,Thames Homecare Services Ltd,122.22,11/04/2023,PUBLISH
Delivery Units,Adults and Health,Other Agencies - Third Party P,0090573474,Thames Homecare Services Ltd,619.90,11/04/2023,PUBLISH
Delivery Units,Adults and Health,Other Agencies - Third Party P,0090573475,Thames Homecare Services Ltd,91.69,11/04/2023,PUBLISH
Delivery Units,Adults and Health,Other Agencies - Third Party P,0090573476,Thames Homecare Services Ltd,209.56,11/04/2023,PUBLISH
Delivery Units,Adults and Health,Other Agencies - Third Party P,0090573478,Thames Homecare Services Ltd,213.92,11/04/2023,PUBLISH
Delivery Units,Adults and Health,Other Agencies - Third Party P,0090573479,Thames Homecare Services Ltd,100.41,11/04/2023,PUBLISH
Delivery Units,Adults and Health,Other Agencies - Third Party P,0090573481,Thames Homecare Services Ltd,152.81,11/04/2023,PUBLISH
Delivery Units,Adults and Health,Other Agencies - Third Party P,0090573482,Thames Homecare Services Ltd,213.92,11/04/2023,PUBLISH
Delivery Units,Adults and Health,Other Agencies - Third Party P,0090573483,Thames Homecare Services Ltd,69.85,11/04/2023,PUBLISH
Delivery Units,Adults and Health,Other Agencies - Third Party P,0090573484,Thames Homecare Services Ltd,152.81,11/04/2023,PUBLISH
Delivery Units,Adults and Health,Other Agencies - Third Party P,0090573485,Thames Homecare Services Ltd,436.50,11/04/2023,PUBLISH
Delivery Units,Adults and Health,Other Agencies - Third Party P,0090573486,Thames Homecare Services Ltd,34.92,11/04/2023,PUBLISH
Delivery Units,Adults and Health,Other Agencies - Third Party P,0090573487,Thames Homecare Services Ltd,248.84,11/04/2023,PUBLISH
Delivery Units,Adults and Health,Other Agencies - Third Party P,0090573488,Thames Homecare Services Ltd,488.88,11/04/2023,PUBLISH
Delivery Units,Adults and Health,Other Agencies - Third Party P,0090573489,Thames Homecare Services Ltd,170.27,11/04/2023,PUBLISH
Delivery Units,Adults and Health,Other Agencies - Third Party P,0090573490,Thames Homecare Services Ltd,488.88,11/04/2023,PUBLISH
Delivery Units,Adults and Health,Other Agencies - Third Party P,0090573491,Thames Homecare Services Ltd,170.24,11/04/2023,PUBLISH
Delivery Units,Adults and Health,Other Agencies - Third Party P,0090573492,Thames Homecare Services Ltd,292.52,11/04/2023,PUBLISH
Delivery Units,Adults and Health,Other Agencies - Third Party P,0090573493,Thames Homecare Services Ltd,244.44,11/04/2023,PUBLISH
Delivery Units,Adults and Health,Other Agencies - Third Party P,0090573494,Thames Homecare Services Ltd,432.27,11/04/2023,PUBLISH
Delivery Units,Adults and Health,Other Agencies - Third Party P,0090573496,Thames Homecare Services Ltd,178.99,11/04/2023,PUBLISH
Delivery Units,Adults and Health,Other Agencies - Third Party P,0090573498,Thames Homecare Services Ltd,309.96,11/04/2023,PUBLISH
Delivery Units,Adults and Health,Other Agencies - Third Party P,0090573499,Thames Homecare Services Ltd,122.23,11/04/2023,PUBLISH
Delivery Units,Adults and Health,Other Agencies - Third Party P,0090573500,Thames Homecare Services Ltd,174.62,11/04/2023,PUBLISH
Delivery Units,Adults and Health,Other Agencies - Third Party P,0090573501,Thames Homecare Services Ltd,200.83,11/04/2023,PUBLISH
Delivery Units,Adults and Health,Other Agencies - Third Party P,0090573502,Thames Homecare Services Ltd,61.11,11/04/2023,PUBLISH
Delivery Units,Adults and Health,Other Agencies - Third Party P,0090573503,Thames Homecare Services Ltd,427.84,11/04/2023,PUBLISH
Delivery Units,Adults and Health,Other Agencies - Third Party P,0090573504,Thames Homecare Services Ltd,183.40,11/04/2023,PUBLISH
Delivery Units,Adults and Health,Other Agencies - Third Party P,0090573505,Thames Homecare Services Ltd,91.70,11/04/2023,PUBLISH
Delivery Units,Adults and Health,Other Agencies - Third Party P,0090573506,Thames Homecare Services Ltd,122.22,11/04/2023,PUBLISH
Delivery Units,Adults and Health,Other Agencies - Third Party P,0090573510,Thames Homecare Services Ltd,82.96,11/04/2023,PUBLISH
Delivery Units,Adults and Health,Other Agencies - Third Party P,0090573511,Thames Homecare Services Ltd,275.03,11/04/2023,PUBLISH
Delivery Units,Adults and Health,Other Agencies - Third Party P,0090573513,Thames Homecare Services Ltd,545.66,11/04/2023,PUBLISH
Delivery Units,Adults and Health,Other Agencies - Third Party P,0090573514,Thames Homecare Services Ltd,183.40,11/04/2023,PUBLISH
Delivery Units,Adults and Health,Other Agencies - Third Party P,0090573517,Thames Homecare Services Ltd,152.81,11/04/2023,PUBLISH
Delivery Units,Adults and Health,Other Agencies - Third Party P,0090573518,Thames Homecare Services Ltd,305.62,11/04/2023,PUBLISH
Delivery Units,Adults and Health,Other Agencies - Third Party P,0090573519,Thames Homecare Services Ltd,550.06,11/04/2023,PUBLISH
Delivery Units,Adults and Health,Other Agencies - Third Party P,0090573520,Thames Homecare Services Ltd,213.92,11/04/2023,PUBLISH
Delivery Units,Adults and Health,Other Agencies - Third Party P,0090573522,Thames Homecare Services Ltd,104.77,11/04/2023,PUBLISH
Delivery Units,Adults and Health,Other Agencies - Third Party P,0090573523,Thames Homecare Services Ltd,794.64,11/04/2023,PUBLISH
Delivery Units,Adults and Health,Other Agencies - Third Party P,0090573524,Thames Homecare Services Ltd,458.47,11/04/2023,PUBLISH
Delivery Units,Adults and Health,Other Agencies - Third Party P,0090573533,Thames Homecare Services Ltd,244.44,11/04/2023,PUBLISH
Delivery Units,Adults and Health,Other Agencies - Third Party P,0090573536,Thames Homecare Services Ltd,790.24,11/04/2023,PUBLISH
Delivery Units,Adults and Health,Other Agencies - Third Party P,0090573537,Thames Homecare Services Ltd,183.40,11/04/2023,PUBLISH
Delivery Units,Adults and Health,Other Agencies - Third Party P,0090573538,Bestchoice Global Ltd,135.52,11/04/2023,PUBLISH
Delivery Units,Adults and Health,Other Agencies - Third Party P,0090573539,Bestchoice Global Ltd,324.28,11/04/2023,PUBLISH
Delivery Units,Adults and Health,Other Agencies - Third Party P,0090573540,Bestchoice Global Ltd,101.64,11/04/2023,PUBLISH
Delivery Units,Adults and Health,Other Agencies - Third Party P,0090573541,Bestchoice Global Ltd,338.80,11/04/2023,PUBLISH
Delivery Units,Adults and Health,Other Agencies - Third Party P,0090573542,Bestchoice Global Ltd,101.64,11/04/2023,PUBLISH
Delivery Units,Adults and Health,Other Agencies - Third Party P,0090573543,Bestchoice Global Ltd,19.36,11/04/2023,PUBLISH
Delivery Units,Adults and Health,Other Agencies - Third Party P,0090573544,Bestchoice Global Ltd,774.40,11/04/2023,PUBLISH
Delivery Units,Adults and Health,Other Agencies - Third Party P,0090573546,Bestchoice Global Ltd,67.76,11/04/2023,PUBLISH
Delivery Units,Adults and Health,Other Agencies - Third Party P,0090573547,Bestchoice Global Ltd,513.04,11/04/2023,PUBLISH
Delivery Units,Adults and Health,Other Agencies - Third Party P,0090573548,Bestchoice Global Ltd,19.36,11/04/2023,PUBLISH
Delivery Units,Adults and Health,Other Agencies - Third Party P,0090573549,Bestchoice Global Ltd,542.08,11/04/2023,PUBLISH
Delivery Units,Adults and Health,Other Agencies - Third Party P,0090573551,Bestchoice Global Ltd,101.64,11/04/2023,PUBLISH
Delivery Units,Adults and Health,Other Agencies - Third Party P,0090573553,Bestchoice Global Ltd,135.52,11/04/2023,PUBLISH
Delivery Units,Adults and Health,Other Agencies - Third Party P,0090573561,Bestchoice Global Ltd,135.52,11/04/2023,PUBLISH
Delivery Units,Adults and Health,Other Agencies - Third Party P,0090573562,Bestchoice Global Ltd,324.28,11/04/2023,PUBLISH
Delivery Units,Adults and Health,Other Agencies - Third Party P,0090573563,Bestchoice Global Ltd,101.64,11/04/2023,PUBLISH
Delivery Units,Adults and Health,Other Agencies - Third Party P,0090573564,Bestchoice Global Ltd,338.80,11/04/2023,PUBLISH
Delivery Units,Adults and Health,Other Agencies - Third Party P,0090573565,Bestchoice Global Ltd,101.64,11/04/2023,PUBLISH
Delivery Units,Adults and Health,Other Agencies - Third Party P,0090573566,Bestchoice Global Ltd,19.36,11/04/2023,PUBLISH
Delivery Units,Adults and Health,Other Agencies - Third Party P,0090573567,Bestchoice Global Ltd,774.40,11/04/2023,PUBLISH
Delivery Units,Adults and Health,Other Agencies - Third Party P,0090573569,Bestchoice Global Ltd,67.76,11/04/2023,PUBLISH
Delivery Units,Adults and Health,Other Agencies - Third Party P,0090573570,Bestchoice Global Ltd,513.04,11/04/2023,PUBLISH
Delivery Units,Adults and Health,Other Agencies - Third Party P,0090573571,Bestchoice Global Ltd,19.36,11/04/2023,PUBLISH
Delivery Units,Adults and Health,Other Agencies - Third Party P,0090573572,Bestchoice Global Ltd,542.08,11/04/2023,PUBLISH
Delivery Units,Adults and Health,Other Agencies - Third Party P,0090573574,Bestchoice Global Ltd,101.64,11/04/2023,PUBLISH
Delivery Units,Adults and Health,Other Agencies - Third Party P,0090573575,Bestchoice Global Ltd,135.52,11/04/2023,PUBLISH
Delivery Units,Adults and Health,Other Agencies - Third Party P,0090573581,Bestchoice Global Ltd,48.40,11/04/2023,PUBLISH
Delivery Units,Adults and Health,Other Agencies - Third Party P,0090573584,Bestchoice Global Ltd,135.52,11/04/2023,PUBLISH
Delivery Units,Adults and Health,Other Agencies - Third Party P,0090573585,Bestchoice Global Ltd,324.28,11/04/2023,PUBLISH
Delivery Units,Adults and Health,Other Agencies - Third Party P,0090573586,Bestchoice Global Ltd,101.64,11/04/2023,PUBLISH
Delivery Units,Adults and Health,Other Agencies - Third Party P,0090573587,Bestchoice Global Ltd,338.80,11/04/2023,PUBLISH
Delivery Units,Adults and Health,Other Agencies - Third Party P,0090573588,Bestchoice Global Ltd,101.64,11/04/2023,PUBLISH
Delivery Units,Adults and Health,Other Agencies - Third Party P,0090573589,Bestchoice Global Ltd,19.36,11/04/2023,PUBLISH
Delivery Units,Adults and Health,Other Agencies - Third Party P,0090573590,Bestchoice Global Ltd,774.40,11/04/2023,PUBLISH
Delivery Units,Adults and Health,Other Agencies - Third Party P,0090573592,Bestchoice Global Ltd,72.60,11/04/2023,PUBLISH
Delivery Units,Adults and Health,Other Agencies - Third Party P,0090573593,Bestchoice Global Ltd,513.04,11/04/2023,PUBLISH
Delivery Units,Adults and Health,Other Agencies - Third Party P,0090573594,Bestchoice Global Ltd,19.36,11/04/2023,PUBLISH
Delivery Units,Adults and Health,Other Agencies - Third Party P,0090573595,Bestchoice Global Ltd,542.08,11/04/2023,PUBLISH
Delivery Units,Adults and Health,Other Agencies - Third Party P,0090573597,Bestchoice Global Ltd,101.64,11/04/2023,PUBLISH
Delivery Units,Adults and Health,Other Agencies - Third Party P,0090573598,Bestchoice Global Ltd,159.72,11/04/2023,PUBLISH
Delivery Units,Adults and Health,Other Agencies - Third Party P,0090573602,Bestchoice Global Ltd,745.36,11/04/2023,PUBLISH
Delivery Units,Adults and Health,Other Agencies - Third Party P,0090573606,Bestchoice Global Ltd,135.52,11/04/2023,PUBLISH
Delivery Units,Adults and Health,Other Agencies - Third Party P,0090573607,Bestchoice Global Ltd,324.28,11/04/2023,PUBLISH
Delivery Units,Adults and Health,Other Agencies - Third Party P,0090573608,Bestchoice Global Ltd,101.64,11/04/2023,PUBLISH
Delivery Units,Adults and Health,Other Agencies - Third Party P,0090573609,Bestchoice Global Ltd,338.80,11/04/2023,PUBLISH
Delivery Units,Adults and Health,Other Agencies - Third Party P,0090573610,Bestchoice Global Ltd,101.64,11/04/2023,PUBLISH
Delivery Units,Adults and Health,Other Agencies - Third Party P,0090573611,Bestchoice Global Ltd,19.36,11/04/2023,PUBLISH
Delivery Units,Adults and Health,Other Agencies - Third Party P,0090573612,Bestchoice Global Ltd,464.64,11/04/2023,PUBLISH
Delivery Units,Adults and Health,Other Agencies - Third Party P,0090573613,Bestchoice Global Ltd,774.40,11/04/2023,PUBLISH
Delivery Units,Adults and Health,Other Agencies - Third Party P,0090573616,Bestchoice Global Ltd,71.63,11/04/2023,PUBLISH
Delivery Units,Adults and Health,Other Agencies - Third Party P,0090573617,Bestchoice Global Ltd,19.36,11/04/2023,PUBLISH
Delivery Units,Adults and Health,Other Agencies - Third Party P,0090573618,Bestchoice Global Ltd,271.04,11/04/2023,PUBLISH
Delivery Units,Adults and Health,Other Agencies - Third Party P,0090573619,Bestchoice Global Ltd,542.08,11/04/2023,PUBLISH
Delivery Units,Adults and Health,Other Agencies - Third Party P,0090573621,Bestchoice Global Ltd,101.64,11/04/2023,PUBLISH
Delivery Units,Adults and Health,Other Agencies - Third Party P,0090573622,Bestchoice Global Ltd,159.72,11/04/2023,PUBLISH
Delivery Units,Adults and Health,Other Agencies - Third Party P,0090573626,Bestchoice Global Ltd,692.12,11/04/2023,PUBLISH
Delivery Units,Adults and Health,Other Agencies - Third Party P,0090573634,Concept Care Solutions Ltd,110.25,11/04/2023,PUBLISH
Delivery Units,Adults and Health,Other Agencies - Third Party P,0090573636,Concept Care Solutions Ltd,154.65,11/04/2023,PUBLISH
Delivery Units,Adults and Health,Other Agencies - Third Party P,0090573642,Homecare Alliance Ltd,498.12,11/04/2023,PUBLISH
Delivery Units,Adults and Health,Other Agencies - Third Party P,0090573646,Navarros Care Ltd,63.00,11/04/2023,PUBLISH
Delivery Units,Adults and Health,Other Agencies - Third Party P,0090573668,MI HOMECARE LIMITED,56.76,11/04/2023,PUBLISH
Delivery Units,Adults and Health,Other Agencies - Third Party P,0090573669,MI HOMECARE LIMITED,165.55,11/04/2023,PUBLISH
Delivery Units,Adults and Health,Other Agencies - Third Party P,0090573670,MI HOMECARE LIMITED,"1,523.06",11/04/2023,PUBLISH
Delivery Units,Adults and Health,Other Agencies - Third Party P,0090573671,MI HOMECARE LIMITED,245.96,11/04/2023,PUBLISH
Delivery Units,Adults and Health,Other Agencies - Third Party P,0090573672,MI HOMECARE LIMITED,"3,178.56",11/04/2023,PUBLISH
Delivery Units,Adults and Health,Other Agencies - Third Party P,0090573673,MI HOMECARE LIMITED,288.53,11/04/2023,PUBLISH
Delivery Units,Adults and Health,Other Agencies - Third Party P,0090573674,MI HOMECARE LIMITED,70.95,11/04/2023,PUBLISH
Delivery Units,Adults and Health,Other Agencies - Third Party P,0090573675,MI HOMECARE LIMITED,193.93,11/04/2023,PUBLISH
Delivery Units,Adults and Health,Other Agencies - Third Party P,0090573678,MI HOMECARE LIMITED,179.74,11/04/2023,PUBLISH
Delivery Units,Adults and Health,Other Agencies - Third Party P,0090573679,MI HOMECARE LIMITED,245.96,11/04/2023,PUBLISH
Delivery Units,Adults and Health,Other Agencies - Third Party P,0090573680,MI HOMECARE LIMITED,85.14,11/04/2023,PUBLISH
Delivery Units,Adults and Health,Other Agencies - Third Party P,0090573682,MI HOMECARE LIMITED,993.30,11/04/2023,PUBLISH
Delivery Units,Adults and Health,Other Agencies - Third Party P,0090573683,MI HOMECARE LIMITED,312.18,11/04/2023,PUBLISH
Delivery Units,Adults and Health,Other Agencies - Third Party P,0090573684,MI HOMECARE LIMITED,132.44,11/04/2023,PUBLISH
Delivery Units,Adults and Health,Other Agencies - Third Party P,0090573685,MI HOMECARE LIMITED,297.99,11/04/2023,PUBLISH
Delivery Units,Adults and Health,Other Agencies - Third Party P,0090573687,MI HOMECARE LIMITED,198.66,11/04/2023,PUBLISH
Delivery Units,Adults and Health,Other Agencies - Third Party P,0090573689,MI HOMECARE LIMITED,293.26,11/04/2023,PUBLISH
Delivery Units,Adults and Health,Other Agencies - Third Party P,0090573690,MI HOMECARE LIMITED,293.26,11/04/2023,PUBLISH
Delivery Units,Adults and Health,Other Agencies - Third Party P,0090573691,MI HOMECARE LIMITED,"1,669.69",11/04/2023,PUBLISH
Delivery Units,Adults and Health,Other Agencies - Third Party P,0090573692,MI HOMECARE LIMITED,297.99,11/04/2023,PUBLISH
Delivery Units,Adults and Health,Other Agencies - Third Party P,0090573693,MI HOMECARE LIMITED,250.69,11/04/2023,PUBLISH
Delivery Units,Adults and Health,Other Agencies - Third Party P,0090573694,MI HOMECARE LIMITED,85.14,11/04/2023,PUBLISH
Delivery Units,Adults and Health,Other Agencies - Third Party P,0090573695,MI HOMECARE LIMITED,482.46,11/04/2023,PUBLISH
Delivery Units,Adults and Health,Other Agencies - Third Party P,0090573696,MI HOMECARE LIMITED,297.99,11/04/2023,PUBLISH
Delivery Units,Adults and Health,Other Agencies - Third Party P,0090573697,MI HOMECARE LIMITED,56.76,11/04/2023,PUBLISH
Delivery Units,Adults and Health,Other Agencies - Third Party P,0090573699,MI HOMECARE LIMITED,70.95,11/04/2023,PUBLISH
Delivery Units,Adults and Health,Other Agencies - Third Party P,0090573701,MI HOMECARE LIMITED,260.15,11/04/2023,PUBLISH
Delivery Units,Adults and Health,Other Agencies - Third Party P,0090573702,MI HOMECARE LIMITED,264.88,11/04/2023,PUBLISH
Delivery Units,Adults and Health,Other Agencies - Third Party P,0090573703,MI HOMECARE LIMITED,66.22,11/04/2023,PUBLISH
Delivery Units,Adults and Health,Other Agencies - Third Party P,0090573704,MI HOMECARE LIMITED,350.02,11/04/2023,PUBLISH
Delivery Units,Adults and Health,Other Agencies - Third Party P,0090573706,MI HOMECARE LIMITED,85.14,11/04/2023,PUBLISH
Delivery Units,Adults and Health,Other Agencies - Third Party P,0090573708,MI HOMECARE LIMITED,132.44,11/04/2023,PUBLISH
Delivery Units,Adults and Health,Other Agencies - Third Party P,0090573709,MI HOMECARE LIMITED,255.42,11/04/2023,PUBLISH
Delivery Units,Adults and Health,Other Agencies - Third Party P,0090573711,MI HOMECARE LIMITED,198.47,11/04/2023,PUBLISH
Delivery Units,Adults and Health,Other Agencies - Third Party P,0090573712,MI HOMECARE LIMITED,193.93,11/04/2023,PUBLISH
Delivery Units,Adults and Health,Other Agencies - Third Party P,0090573715,MI HOMECARE LIMITED,132.44,11/04/2023,PUBLISH
Delivery Units,Adults and Health,Other Agencies - Third Party P,0090573716,MI HOMECARE LIMITED,28.38,11/04/2023,PUBLISH
Delivery Units,Adults and Health,Other Agencies - Third Party P,0090573718,MI HOMECARE LIMITED,279.07,11/04/2023,PUBLISH
Delivery Units,Adults and Health,Other Agencies - Third Party P,0090573720,MI HOMECARE LIMITED,354.75,11/04/2023,PUBLISH
Delivery Units,Adults and Health,Other Agencies - Third Party P,0090573721,MI HOMECARE LIMITED,113.52,11/04/2023,PUBLISH
Delivery Units,Adults and Health,Other Agencies - Third Party P,0090573722,MI HOMECARE LIMITED,690.58,11/04/2023,PUBLISH
Delivery Units,Adults and Health,Other Agencies - Third Party P,0090573723,MI HOMECARE LIMITED,47.30,11/04/2023,PUBLISH
Delivery Units,Adults and Health,Other Agencies - Third Party P,0090573725,MI HOMECARE LIMITED,99.33,11/04/2023,PUBLISH
Delivery Units,Adults and Health,Other Agencies - Third Party P,0090573726,MI HOMECARE LIMITED,66.22,11/04/2023,PUBLISH
Delivery Units,Adults and Health,Other Agencies - Third Party P,0090573727,MI HOMECARE LIMITED,236.50,11/04/2023,PUBLISH
Delivery Units,Adults and Health,Other Agencies - Third Party P,0090573730,MI HOMECARE LIMITED,331.10,11/04/2023,PUBLISH
Delivery Units,Adults and Health,Other Agencies - Third Party P,0090573731,MI HOMECARE LIMITED,297.99,11/04/2023,PUBLISH
Delivery Units,Adults and Health,Other Agencies - Third Party P,0090573732,MI HOMECARE LIMITED,165.55,11/04/2023,PUBLISH
Delivery Units,Adults and Health,Other Agencies - Third Party P,0090573735,MI HOMECARE LIMITED,151.36,11/04/2023,PUBLISH
Delivery Units,Adults and Health,Other Agencies - Third Party P,0090573737,MI HOMECARE LIMITED,118.25,11/04/2023,PUBLISH
Delivery Units,Adults and Health,Other Agencies - Third Party P,0090573738,MI HOMECARE LIMITED,99.33,11/04/2023,PUBLISH
Delivery Units,Adults and Health,Other Agencies - Third Party P,0090573740,MI HOMECARE LIMITED,264.88,11/04/2023,PUBLISH
Delivery Units,Adults and Health,Other Agencies - Third Party P,0090573741,MI HOMECARE LIMITED,184.47,11/04/2023,PUBLISH
Delivery Units,Adults and Health,Other Agencies - Third Party P,0090573742,MI HOMECARE LIMITED,"1,802.13",11/04/2023,PUBLISH
Delivery Units,Adults and Health,Other Agencies - Third Party P,0090573744,MI HOMECARE LIMITED,331.10,11/04/2023,PUBLISH
Delivery Units,Adults and Health,Other Agencies - Third Party P,0090573745,MI HOMECARE LIMITED,425.70,11/04/2023,PUBLISH
Delivery Units,Adults and Health,Other Agencies - Third Party P,0090573746,MI HOMECARE LIMITED,141.90,11/04/2023,PUBLISH
Delivery Units,Adults and Health,Other Agencies - Third Party P,0090573747,MI HOMECARE LIMITED,165.55,11/04/2023,PUBLISH
Delivery Units,Adults and Health,Other Agencies - Third Party P,0090573748,Kaamil Education Ltd,926.50,11/04/2023,PUBLISH
Delivery Units,Adults and Health,Other Agencies - Third Party P,0090573750,MI HOMECARE LIMITED,70.95,11/04/2023,PUBLISH
Delivery Units,Adults and Health,Other Agencies - Third Party P,0090573751,MI HOMECARE LIMITED,283.80,11/04/2023,PUBLISH
Delivery Units,Adults and Health,Other Agencies - Third Party P,0090573752,MI HOMECARE LIMITED,132.44,11/04/2023,PUBLISH
Delivery Units,Adults and Health,Other Agencies - Third Party P,0090573754,MI HOMECARE LIMITED,85.14,11/04/2023,PUBLISH
Delivery Units,Adults and Health,Other Agencies - Third Party P,0090573757,MI HOMECARE LIMITED,85.14,11/04/2023,PUBLISH
Delivery Units,Adults and Health,Other Agencies - Third Party P,0090573758,MI HOMECARE LIMITED,66.22,11/04/2023,PUBLISH
Delivery Units,Adults and Health,Other Agencies - Third Party P,0090573760,MI HOMECARE LIMITED,137.17,11/04/2023,PUBLISH
Delivery Units,Adults and Health,Other Agencies - Third Party P,0090573761,MI HOMECARE LIMITED,231.77,11/04/2023,PUBLISH
Delivery Units,Adults and Health,Other Agencies - Third Party P,0090573762,MI HOMECARE LIMITED,160.82,11/04/2023,PUBLISH
Delivery Units,Adults and Health,Other Agencies - Third Party P,0090573764,MI HOMECARE LIMITED,132.44,11/04/2023,PUBLISH
Delivery Units,Adults and Health,Other Agencies - Third Party P,0090573765,MI HOMECARE LIMITED,99.33,11/04/2023,PUBLISH
Delivery Units,Adults and Health,Other Agencies - Third Party P,0090573767,MI HOMECARE LIMITED,108.79,11/04/2023,PUBLISH
Delivery Units,Adults and Health,Other Agencies - Third Party P,0090573768,MI HOMECARE LIMITED,42.57,11/04/2023,PUBLISH
Delivery Units,Adults and Health,Other Agencies - Third Party P,0090573769,MI HOMECARE LIMITED,80.41,11/04/2023,PUBLISH
Delivery Units,Adults and Health,Other Agencies - Third Party P,0090573770,MI HOMECARE LIMITED,66.22,11/04/2023,PUBLISH
Delivery Units,Adults and Health,Other Agencies - Third Party P,0090573771,MI HOMECARE LIMITED,269.61,11/04/2023,PUBLISH
Delivery Units,Adults and Health,Other Agencies - Third Party P,0090573774,MI HOMECARE LIMITED,331.10,11/04/2023,PUBLISH
Delivery Units,Adults and Health,Other Agencies - Third Party P,0090573775,MI HOMECARE LIMITED,316.91,11/04/2023,PUBLISH
Delivery Units,Adults and Health,Other Agencies - Third Party P,0090573776,MI HOMECARE LIMITED,364.21,11/04/2023,PUBLISH
Delivery Units,Adults and Health,Other Agencies - Third Party P,0090573777,MI HOMECARE LIMITED,756.80,11/04/2023,PUBLISH
Delivery Units,Adults and Health,Other Agencies - Third Party P,0090573779,MI HOMECARE LIMITED,302.72,11/04/2023,PUBLISH
Delivery Units,Adults and Health,Other Agencies - Third Party P,0090573780,MI HOMECARE LIMITED,85.14,11/04/2023,PUBLISH
Delivery Units,Adults and Health,Other Agencies - Third Party P,0090573783,MI HOMECARE LIMITED,42.57,11/04/2023,PUBLISH
Delivery Units,Adults and Health,Other Agencies - Third Party P,0090573784,MI HOMECARE LIMITED,56.76,11/04/2023,PUBLISH
Delivery Units,Adults and Health,Other Agencies - Third Party P,0090573793,MI HOMECARE LIMITED,137.17,11/04/2023,PUBLISH
Delivery Units,Adults and Health,Other Agencies - Third Party P,0090573794,MI HOMECARE LIMITED,335.83,11/04/2023,PUBLISH
Delivery Units,Adults and Health,Other Agencies - Third Party P,0090573797,MI HOMECARE LIMITED,56.76,11/04/2023,PUBLISH
Delivery Units,Adults and Health,Other Agencies - Third Party P,0090573798,MI HOMECARE LIMITED,179.74,11/04/2023,PUBLISH
Delivery Units,Adults and Health,Other Agencies - Third Party P,0090573799,MI HOMECARE LIMITED,"1,521.36",11/04/2023,PUBLISH
Delivery Units,Adults and Health,Other Agencies - Third Party P,0090573800,MI HOMECARE LIMITED,250.69,11/04/2023,PUBLISH
Delivery Units,Adults and Health,Other Agencies - Third Party P,0090573801,MI HOMECARE LIMITED,"3,178.56",11/04/2023,PUBLISH
Delivery Units,Adults and Health,Other Agencies - Third Party P,0090573802,MI HOMECARE LIMITED,283.80,11/04/2023,PUBLISH
Delivery Units,Adults and Health,Other Agencies - Third Party P,0090573803,MI HOMECARE LIMITED,70.95,11/04/2023,PUBLISH
Delivery Units,Adults and Health,Other Agencies - Third Party P,0090573805,MI HOMECARE LIMITED,198.66,11/04/2023,PUBLISH
Delivery Units,Adults and Health,Other Agencies - Third Party P,0090573808,MI HOMECARE LIMITED,179.74,11/04/2023,PUBLISH
Delivery Units,Adults and Health,Other Agencies - Third Party P,0090573809,MI HOMECARE LIMITED,245.96,11/04/2023,PUBLISH
Delivery Units,Adults and Health,Other Agencies - Third Party P,0090573810,MI HOMECARE LIMITED,85.14,11/04/2023,PUBLISH
Delivery Units,Adults and Health,Other Agencies - Third Party P,0090573812,MI HOMECARE LIMITED,988.57,11/04/2023,PUBLISH
Delivery Units,Adults and Health,Other Agencies - Third Party P,0090573813,MI HOMECARE LIMITED,302.72,11/04/2023,PUBLISH
Delivery Units,Adults and Health,Other Agencies - Third Party P,0090573814,MI HOMECARE LIMITED,113.52,11/04/2023,PUBLISH
Delivery Units,Adults and Health,Other Agencies - Third Party P,0090573815,MI HOMECARE LIMITED,297.99,11/04/2023,PUBLISH
Delivery Units,Adults and Health,Other Agencies - Third Party P,0090573817,MI HOMECARE LIMITED,198.66,11/04/2023,PUBLISH
Delivery Units,Adults and Health,Other Agencies - Third Party P,0090573819,MI HOMECARE LIMITED,293.26,11/04/2023,PUBLISH
Delivery Units,Adults and Health,Other Agencies - Third Party P,0090573820,MI HOMECARE LIMITED,293.26,11/04/2023,PUBLISH
Delivery Units,Adults and Health,Other Agencies - Third Party P,0090573821,MI HOMECARE LIMITED,"1,669.69",11/04/2023,PUBLISH
Delivery Units,Adults and Health,Other Agencies - Third Party P,0090573822,MI HOMECARE LIMITED,297.99,11/04/2023,PUBLISH
Delivery Units,Adults and Health,Other Agencies - Third Party P,0090573823,MI HOMECARE LIMITED,255.42,11/04/2023,PUBLISH
Delivery Units,Adults and Health,Other Agencies - Third Party P,0090573824,MI HOMECARE LIMITED,85.14,11/04/2023,PUBLISH
Delivery Units,Adults and Health,Other Agencies - Third Party P,0090573825,MI HOMECARE LIMITED,487.19,11/04/2023,PUBLISH
Delivery Units,Adults and Health,Other Agencies - Third Party P,0090573826,MI HOMECARE LIMITED,302.72,11/04/2023,PUBLISH
Delivery Units,Adults and Health,Other Agencies - Third Party P,0090573828,MI HOMECARE LIMITED,85.14,11/04/2023,PUBLISH
Delivery Units,Adults and Health,Other Agencies - Third Party P,0090573830,MI HOMECARE LIMITED,264.88,11/04/2023,PUBLISH
Delivery Units,Adults and Health,Other Agencies - Third Party P,0090573831,MI HOMECARE LIMITED,250.69,11/04/2023,PUBLISH
Delivery Units,Adults and Health,Other Agencies - Third Party P,0090573832,MI HOMECARE LIMITED,66.22,11/04/2023,PUBLISH
Delivery Units,Adults and Health,Other Agencies - Third Party P,0090573833,MI HOMECARE LIMITED,335.83,11/04/2023,PUBLISH
Delivery Units,Adults and Health,Other Agencies - Third Party P,0090573835,MI HOMECARE LIMITED,85.14,11/04/2023,PUBLISH
Delivery Units,Adults and Health,Other Agencies - Third Party P,0090573837,MI HOMECARE LIMITED,132.44,11/04/2023,PUBLISH
Delivery Units,Adults and Health,Other Agencies - Third Party P,0090573838,MI HOMECARE LIMITED,255.42,11/04/2023,PUBLISH
Delivery Units,Adults and Health,Other Agencies - Third Party P,0090573840,MI HOMECARE LIMITED,212.85,11/04/2023,PUBLISH
Delivery Units,Adults and Health,Other Agencies - Third Party P,0090573841,MI HOMECARE LIMITED,198.66,11/04/2023,PUBLISH
Delivery Units,Adults and Health,Other Agencies - Third Party P,0090573844,MI HOMECARE LIMITED,132.44,11/04/2023,PUBLISH
Delivery Units,Adults and Health,Other Agencies - Third Party P,0090573845,MI HOMECARE LIMITED,28.38,11/04/2023,PUBLISH
Delivery Units,Adults and Health,Other Agencies - Third Party P,0090573847,MI HOMECARE LIMITED,279.07,11/04/2023,PUBLISH
Delivery Units,Adults and Health,Other Agencies - Third Party P,0090573849,MI HOMECARE LIMITED,354.75,11/04/2023,PUBLISH
Delivery Units,Adults and Health,Other Agencies - Third Party P,0090573850,MI HOMECARE LIMITED,288.53,11/04/2023,PUBLISH
Delivery Units,Adults and Health,Other Agencies - Third Party P,0090573851,MI HOMECARE LIMITED,690.58,11/04/2023,PUBLISH
Delivery Units,Adults and Health,Other Agencies - Third Party P,0090573852,MI HOMECARE LIMITED,37.84,11/04/2023,PUBLISH
Delivery Units,Adults and Health,Other Agencies - Third Party P,0090573854,MI HOMECARE LIMITED,99.33,11/04/2023,PUBLISH
Delivery Units,Adults and Health,Other Agencies - Third Party P,0090573855,MI HOMECARE LIMITED,66.22,11/04/2023,PUBLISH
Delivery Units,Adults and Health,Other Agencies - Third Party P,0090573856,MI HOMECARE LIMITED,236.50,11/04/2023,PUBLISH
Delivery Units,Adults and Health,Other Agencies - Third Party P,0090573859,MI HOMECARE LIMITED,331.10,11/04/2023,PUBLISH
Delivery Units,Adults and Health,Other Agencies - Third Party P,0090573860,MI HOMECARE LIMITED,274.34,11/04/2023,PUBLISH
Delivery Units,Adults and Health,Other Agencies - Third Party P,0090573861,MI HOMECARE LIMITED,165.55,11/04/2023,PUBLISH
Delivery Units,Adults and Health,Other Agencies - Third Party P,0090573864,MI HOMECARE LIMITED,132.44,11/04/2023,PUBLISH
Delivery Units,Adults and Health,Other Agencies - Third Party P,0090573866,MI HOMECARE LIMITED,118.25,11/04/2023,PUBLISH
Delivery Units,Adults and Health,Other Agencies - Third Party P,0090573867,MI HOMECARE LIMITED,99.33,11/04/2023,PUBLISH
Delivery Units,Adults and Health,Other Agencies - Third Party P,0090573869,MI HOMECARE LIMITED,255.42,11/04/2023,PUBLISH
Delivery Units,Adults and Health,Other Agencies - Third Party P,0090573870,MI HOMECARE LIMITED,184.47,11/04/2023,PUBLISH
Delivery Units,Adults and Health,Other Agencies - Third Party P,0090573871,MI HOMECARE LIMITED,"1,786.99",11/04/2023,PUBLISH
Delivery Units,Adults and Health,Other Agencies - Third Party P,0090573872,MI HOMECARE LIMITED,113.52,11/04/2023,PUBLISH
Delivery Units,Adults and Health,Other Agencies - Third Party P,0090573874,MI HOMECARE LIMITED,331.10,11/04/2023,PUBLISH
Delivery Units,Adults and Health,Other Agencies - Third Party P,0090573875,MI HOMECARE LIMITED,425.70,11/04/2023,PUBLISH
Delivery Units,Adults and Health,Other Agencies - Third Party P,0090573876,MI HOMECARE LIMITED,146.63,11/04/2023,PUBLISH
Delivery Units,Adults and Health,Other Agencies - Third Party P,0090573877,MI HOMECARE LIMITED,184.47,11/04/2023,PUBLISH
Delivery Units,Adults and Health,Other Agencies - Third Party P,0090573879,MI HOMECARE LIMITED,70.95,11/04/2023,PUBLISH
Delivery Units,Adults and Health,Other Agencies - Third Party P,0090573880,MI HOMECARE LIMITED,297.99,11/04/2023,PUBLISH
Delivery Units,Adults and Health,Other Agencies - Third Party P,0090573881,MI HOMECARE LIMITED,132.44,11/04/2023,PUBLISH
Delivery Units,Adults and Health,Other Agencies - Third Party P,0090573882,MI HOMECARE LIMITED,99.33,11/04/2023,PUBLISH
Delivery Units,Adults and Health,Other Agencies - Third Party P,0090573885,MI HOMECARE LIMITED,14.19,11/04/2023,PUBLISH
Delivery Units,Adults and Health,Other Agencies - Third Party P,0090573886,MI HOMECARE LIMITED,66.22,11/04/2023,PUBLISH
Delivery Units,Adults and Health,Other Agencies - Third Party P,0090573888,MI HOMECARE LIMITED,137.17,11/04/2023,PUBLISH
Delivery Units,Adults and Health,Other Agencies - Third Party P,0090573889,MI HOMECARE LIMITED,227.04,11/04/2023,PUBLISH
Delivery Units,Adults and Health,Other Agencies - Third Party P,0090573890,MI HOMECARE LIMITED,170.28,11/04/2023,PUBLISH
Delivery Units,Adults and Health,Other Agencies - Third Party P,0090573892,MI HOMECARE LIMITED,132.44,11/04/2023,PUBLISH
Delivery Units,Adults and Health,Other Agencies - Third Party P,0090573893,MI HOMECARE LIMITED,99.33,11/04/2023,PUBLISH
Delivery Units,Adults and Health,Other Agencies - Third Party P,0090573895,MI HOMECARE LIMITED,113.52,11/04/2023,PUBLISH
Delivery Units,Adults and Health,Other Agencies - Third Party P,0090573896,MI HOMECARE LIMITED,42.57,11/04/2023,PUBLISH
Delivery Units,Adults and Health,Other Agencies - Third Party P,0090573897,MI HOMECARE LIMITED,37.84,11/04/2023,PUBLISH
Delivery Units,Adults and Health,Other Agencies - Third Party P,0090573898,MI HOMECARE LIMITED,66.22,11/04/2023,PUBLISH
Delivery Units,Adults and Health,Other Agencies - Third Party P,0090573899,MI HOMECARE LIMITED,260.15,11/04/2023,PUBLISH
Delivery Units,Adults and Health,Other Agencies - Third Party P,0090573902,MI HOMECARE LIMITED,321.64,11/04/2023,PUBLISH
Delivery Units,Adults and Health,Other Agencies - Third Party P,0090573903,MI HOMECARE LIMITED,104.06,11/04/2023,PUBLISH
Delivery Units,Adults and Health,Other Agencies - Third Party P,0090573904,MI HOMECARE LIMITED,756.80,11/04/2023,PUBLISH
Delivery Units,Adults and Health,Other Agencies - Third Party P,0090573906,MI HOMECARE LIMITED,302.72,11/04/2023,PUBLISH
Delivery Units,Adults and Health,Other Agencies - Third Party P,0090573907,MI HOMECARE LIMITED,85.14,11/04/2023,PUBLISH
Delivery Units,Adults and Health,Other Agencies - Third Party P,0090573910,MI HOMECARE LIMITED,42.57,11/04/2023,PUBLISH
Delivery Units,Adults and Health,Other Agencies - Third Party P,0090573911,MI HOMECARE LIMITED,56.76,11/04/2023,PUBLISH
Delivery Units,Adults and Health,Other Agencies - Third Party P,0090573922,MI HOMECARE LIMITED,255.42,11/04/2023,PUBLISH
Delivery Units,Adults and Health,Other Agencies - Third Party P,0090573923,MI HOMECARE LIMITED,340.56,11/04/2023,PUBLISH
Delivery Units,Adults and Health,Other Agencies - Third Party P,0090573926,City Homecare Ltd,939.25,11/04/2023,PUBLISH
Delivery Units,Adults and Health,Other Agencies - Third Party P,0090573928,City Homecare Ltd,327.25,11/04/2023,PUBLISH
Delivery Units,Adults and Health,Other Agencies - Third Party P,0090573929,City Homecare Ltd,191.25,11/04/2023,PUBLISH
Delivery Units,Adults and Health,Other Agencies - Third Party P,0090573933,City Homecare Ltd,242.25,11/04/2023,PUBLISH
Delivery Units,Adults and Health,Other Agencies - Third Party P,0090573935,City Homecare Ltd,535.50,11/04/2023,PUBLISH
Delivery Units,Adults and Health,Other Agencies - Third Party P,0090573937,City Homecare Ltd,119.00,11/04/2023,PUBLISH
Delivery Units,Adults and Health,Other Agencies - Third Party P,0090573938,City Homecare Ltd,178.50,11/04/2023,PUBLISH
Delivery Units,Adults and Health,Other Agencies - Third Party P,0090573939,City Homecare Ltd,505.75,11/04/2023,PUBLISH
Delivery Units,Adults and Health,Other Agencies - Third Party P,0090573941,City Homecare Ltd,178.50,11/04/2023,PUBLISH
Delivery Units,Adults and Health,Other Agencies - Third Party P,0090573942,City Homecare Ltd,195.50,11/04/2023,PUBLISH
Delivery Units,Adults and Health,Other Agencies - Third Party P,0090573943,City Homecare Ltd,178.50,11/04/2023,PUBLISH
Delivery Units,Adults and Health,Other Agencies - Third Party P,0090573946,City Homecare Ltd,89.25,11/04/2023,PUBLISH
Delivery Units,Adults and Health,Other Agencies - Third Party P,0090573948,City Homecare Ltd,939.25,11/04/2023,PUBLISH
Delivery Units,Adults and Health,Other Agencies - Third Party P,0090573950,City Homecare Ltd,327.25,11/04/2023,PUBLISH
Delivery Units,Adults and Health,Other Agencies - Third Party P,0090573951,City Homecare Ltd,182.75,11/04/2023,PUBLISH
Delivery Units,Adults and Health,Other Agencies - Third Party P,0090573955,City Homecare Ltd,284.75,11/04/2023,PUBLISH
Delivery Units,Adults and Health,Other Agencies - Third Party P,0090573957,City Homecare Ltd,535.50,11/04/2023,PUBLISH
Delivery Units,Adults and Health,Other Agencies - Third Party P,0090573959,City Homecare Ltd,119.00,11/04/2023,PUBLISH
Delivery Units,Adults and Health,Other Agencies - Third Party P,0090573960,City Homecare Ltd,178.50,11/04/2023,PUBLISH
Delivery Units,Adults and Health,Other Agencies - Third Party P,0090573961,City Homecare Ltd,505.75,11/04/2023,PUBLISH
Delivery Units,Adults and Health,Other Agencies - Third Party P,0090573963,City Homecare Ltd,178.50,11/04/2023,PUBLISH
Delivery Units,Adults and Health,Other Agencies - Third Party P,0090573964,City Homecare Ltd,195.50,11/04/2023,PUBLISH
Delivery Units,Adults and Health,Other Agencies - Third Party P,0090573965,City Homecare Ltd,178.50,11/04/2023,PUBLISH
Delivery Units,Adults and Health,Other Agencies - Third Party P,0090573968,City Homecare Ltd,89.25,11/04/2023,PUBLISH
Delivery Units,Adults and Health,Other Agencies - Third Party P,0090573970,City Homecare Ltd,939.25,11/04/2023,PUBLISH
Delivery Units,Adults and Health,Other Agencies - Third Party P,0090573972,City Homecare Ltd,327.25,11/04/2023,PUBLISH
Delivery Units,Adults and Health,Other Agencies - Third Party P,0090573973,City Homecare Ltd,191.25,11/04/2023,PUBLISH
Delivery Units,Adults and Health,Other Agencies - Third Party P,0090573977,City Homecare Ltd,301.75,11/04/2023,PUBLISH
Delivery Units,Adults and Health,Other Agencies - Third Party P,0090573979,City Homecare Ltd,535.50,11/04/2023,PUBLISH
Delivery Units,Adults and Health,Other Agencies - Third Party P,0090573981,City Homecare Ltd,119.00,11/04/2023,PUBLISH
Delivery Units,Adults and Health,Other Agencies - Third Party P,0090573982,City Homecare Ltd,178.50,11/04/2023,PUBLISH
Delivery Units,Adults and Health,Other Agencies - Third Party P,0090573983,City Homecare Ltd,102.00,11/04/2023,PUBLISH
Delivery Units,Adults and Health,Other Agencies - Third Party P,0090573985,City Homecare Ltd,178.50,11/04/2023,PUBLISH
Delivery Units,Adults and Health,Other Agencies - Third Party P,0090573986,City Homecare Ltd,195.50,11/04/2023,PUBLISH
Delivery Units,Adults and Health,Other Agencies - Third Party P,0090573987,City Homecare Ltd,178.50,11/04/2023,PUBLISH
Delivery Units,Adults and Health,Other Agencies - Third Party P,0090573990,City Homecare Ltd,51.00,11/04/2023,PUBLISH
Delivery Units,Adults and Health,Other Agencies - Third Party P,0090573992,City Homecare Ltd,939.25,11/04/2023,PUBLISH
Delivery Units,Adults and Health,Other Agencies - Third Party P,0090573994,City Homecare Ltd,327.25,11/04/2023,PUBLISH
Delivery Units,Adults and Health,Other Agencies - Third Party P,0090573995,City Homecare Ltd,191.25,11/04/2023,PUBLISH
Delivery Units,Adults and Health,Other Agencies - Third Party P,0090573999,City Homecare Ltd,301.75,11/04/2023,PUBLISH
Delivery Units,Adults and Health,Other Agencies - Third Party P,0090574001,City Homecare Ltd,535.50,11/04/2023,PUBLISH
Delivery Units,Adults and Health,Other Agencies - Third Party P,0090574003,City Homecare Ltd,119.00,11/04/2023,PUBLISH
Delivery Units,Adults and Health,Other Agencies - Third Party P,0090574004,City Homecare Ltd,178.50,11/04/2023,PUBLISH
Delivery Units,Adults and Health,Other Agencies - Third Party P,0090574005,City Homecare Ltd,114.75,11/04/2023,PUBLISH
Delivery Units,Adults and Health,Other Agencies - Third Party P,0090574007,City Homecare Ltd,178.50,11/04/2023,PUBLISH
Delivery Units,Adults and Health,Other Agencies - Third Party P,0090574008,City Homecare Ltd,195.50,11/04/2023,PUBLISH
Delivery Units,Adults and Health,Other Agencies - Third Party P,0090574009,City Homecare Ltd,178.50,11/04/2023,PUBLISH
Delivery Units,Adults and Health,Other Agencies - Third Party P,0090574046,Eleanor Nursing & Social Care Ltd,163.45,12/04/2023,PUBLISH
Delivery Units,Adults and Health,Other Agencies - Third Party P,0090574048,Eleanor Nursing & Social Care Ltd,70.05,12/04/2023,PUBLISH
Delivery Units,Adults and Health,Other Agencies - Third Party P,0090574049,Eleanor Nursing & Social Care Ltd,392.28,12/04/2023,PUBLISH
Delivery Units,Adults and Health,Other Agencies - Third Party P,0090574050,Eleanor Nursing & Social Care Ltd,438.98,12/04/2023,PUBLISH
Delivery Units,Adults and Health,Other Agencies - Third Party P,0090574051,Eleanor Nursing & Social Care Ltd,294.21,12/04/2023,PUBLISH
Delivery Units,Adults and Health,Other Agencies - Third Party P,0090574052,Eleanor Nursing & Social Care Ltd,28.02,12/04/2023,PUBLISH
Delivery Units,Adults and Health,Other Agencies - Third Party P,0090574053,Eleanor Nursing & Social Care Ltd,98.07,12/04/2023,PUBLISH
Delivery Units,Adults and Health,Other Agencies - Third Party P,0090574054,Eleanor Nursing & Social Care Ltd,65.38,12/04/2023,PUBLISH
Delivery Units,Adults and Health,Other Agencies - Third Party P,0090574055,Eleanor Nursing & Social Care Ltd,214.82,12/04/2023,PUBLISH
Delivery Units,Adults and Health,Other Agencies - Third Party P,0090574056,Eleanor Nursing & Social Care Ltd,214.82,12/04/2023,PUBLISH
Delivery Units,Adults and Health,Other Agencies - Third Party P,0090574058,Eleanor Nursing & Social Care Ltd,196.14,12/04/2023,PUBLISH
Delivery Units,Adults and Health,Other Agencies - Third Party P,0090574060,Eleanor Nursing & Social Care Ltd,28.02,12/04/2023,PUBLISH
Delivery Units,Adults and Health,Other Agencies - Third Party P,0090574062,Eleanor Nursing & Social Care Ltd,284.87,12/04/2023,PUBLISH
Delivery Units,Adults and Health,Other Agencies - Third Party P,0090574063,Eleanor Nursing & Social Care Ltd,163.45,12/04/2023,PUBLISH
Delivery Units,Adults and Health,Other Agencies - Third Party P,0090574064,Eleanor Nursing & Social Care Ltd,65.38,12/04/2023,PUBLISH
Delivery Units,Adults and Health,Other Agencies - Third Party P,0090574065,Eleanor Nursing & Social Care Ltd,205.48,12/04/2023,PUBLISH
Delivery Units,Adults and Health,Other Agencies - Third Party P,0090574066,Eleanor Nursing & Social Care Ltd,28.02,12/04/2023,PUBLISH
Delivery Units,Adults and Health,Other Agencies - Third Party P,0090574068,Eleanor Nursing & Social Care Ltd,163.45,12/04/2023,PUBLISH
Delivery Units,Adults and Health,Other Agencies - Third Party P,0090574070,Eleanor Nursing & Social Care Ltd,228.83,12/04/2023,PUBLISH
Delivery Units,Adults and Health,Other Agencies - Third Party P,0090574071,Eleanor Nursing & Social Care Ltd,70.05,12/04/2023,PUBLISH
Delivery Units,Adults and Health,Other Agencies - Third Party P,0090574074,Eleanor Nursing & Social Care Ltd,130.76,12/04/2023,PUBLISH
Delivery Units,Adults and Health,Other Agencies - Third Party P,0090574075,Eleanor Nursing & Social Care Ltd,261.52,12/04/2023,PUBLISH
Delivery Units,Adults and Health,Other Agencies - Third Party P,0090574077,Eleanor Nursing & Social Care Ltd,303.55,12/04/2023,PUBLISH
Delivery Units,Adults and Health,Other Agencies - Third Party P,0090574078,Eleanor Nursing & Social Care Ltd,65.38,12/04/2023,PUBLISH
Delivery Units,Adults and Health,Other Agencies - Third Party P,0090574079,Eleanor Nursing & Social Care Ltd,630.45,12/04/2023,PUBLISH
Delivery Units,Adults and Health,Other Agencies - Third Party P,0090574080,Eleanor Nursing & Social Care Ltd,429.64,12/04/2023,PUBLISH
Delivery Units,Adults and Health,Other Agencies - Third Party P,0090574084,Eleanor Nursing & Social Care Ltd,28.02,12/04/2023,PUBLISH
Delivery Units,Adults and Health,Other Agencies - Third Party P,0090574085,Eleanor Nursing & Social Care Ltd,56.04,12/04/2023,PUBLISH
Delivery Units,Adults and Health,Other Agencies - Third Party P,0090574087,Eleanor Nursing & Social Care Ltd,214.82,12/04/2023,PUBLISH
Delivery Units,Adults and Health,Other Agencies - Third Party P,0090574088,Eleanor Nursing & Social Care Ltd,224.16,12/04/2023,PUBLISH
Delivery Units,Adults and Health,Other Agencies - Third Party P,0090574089,Eleanor Nursing & Social Care Ltd,65.38,12/04/2023,PUBLISH
Delivery Units,Adults and Health,Other Agencies - Third Party P,0090574090,Eleanor Nursing & Social Care Ltd,149.44,12/04/2023,PUBLISH
Delivery Units,Adults and Health,Other Agencies - Third Party P,0090574091,Eleanor Nursing & Social Care Ltd,312.89,12/04/2023,PUBLISH
Delivery Units,Adults and Health,Other Agencies - Third Party P,0090574094,Eleanor Nursing & Social Care Ltd,18.68,12/04/2023,PUBLISH
Delivery Units,Adults and Health,Other Agencies - Third Party P,0090574095,Eleanor Nursing & Social Care Ltd,294.21,12/04/2023,PUBLISH
Delivery Units,Adults and Health,Other Agencies - Third Party P,0090574096,Eleanor Nursing & Social Care Ltd,93.40,12/04/2023,PUBLISH
Delivery Units,Adults and Health,Other Agencies - Third Party P,0090574104,Eleanor Nursing & Social Care Ltd,163.45,12/04/2023,PUBLISH
Delivery Units,Adults and Health,Other Agencies - Third Party P,0090574106,Eleanor Nursing & Social Care Ltd,70.05,12/04/2023,PUBLISH
Delivery Units,Adults and Health,Other Agencies - Third Party P,0090574107,Eleanor Nursing & Social Care Ltd,392.28,12/04/2023,PUBLISH
Delivery Units,Adults and Health,Other Agencies - Third Party P,0090574108,Eleanor Nursing & Social Care Ltd,457.66,12/04/2023,PUBLISH
Delivery Units,Adults and Health,Other Agencies - Third Party P,0090574109,Eleanor Nursing & Social Care Ltd,294.21,12/04/2023,PUBLISH
Delivery Units,Adults and Health,Other Agencies - Third Party P,0090574110,Eleanor Nursing & Social Care Ltd,28.02,12/04/2023,PUBLISH
Delivery Units,Adults and Health,Other Agencies - Third Party P,0090574111,Eleanor Nursing & Social Care Ltd,98.07,12/04/2023,PUBLISH
Delivery Units,Adults and Health,Other Agencies - Third Party P,0090574112,Eleanor Nursing & Social Care Ltd,65.38,12/04/2023,PUBLISH
Delivery Units,Adults and Health,Other Agencies - Third Party P,0090574113,Eleanor Nursing & Social Care Ltd,205.48,12/04/2023,PUBLISH
Delivery Units,Adults and Health,Other Agencies - Third Party P,0090574114,Eleanor Nursing & Social Care Ltd,214.82,12/04/2023,PUBLISH
Delivery Units,Adults and Health,Other Agencies - Third Party P,0090574116,Eleanor Nursing & Social Care Ltd,196.14,12/04/2023,PUBLISH
Delivery Units,Adults and Health,Other Agencies - Third Party P,0090574118,Eleanor Nursing & Social Care Ltd,28.02,12/04/2023,PUBLISH
Delivery Units,Adults and Health,Other Agencies - Third Party P,0090574120,Eleanor Nursing & Social Care Ltd,294.21,12/04/2023,PUBLISH
Delivery Units,Adults and Health,Other Agencies - Third Party P,0090574121,Eleanor Nursing & Social Care Ltd,163.45,12/04/2023,PUBLISH
Delivery Units,Adults and Health,Other Agencies - Third Party P,0090574122,Eleanor Nursing & Social Care Ltd,56.04,12/04/2023,PUBLISH
Delivery Units,Adults and Health,Other Agencies - Third Party P,0090574123,Eleanor Nursing & Social Care Ltd,205.48,12/04/2023,PUBLISH
Delivery Units,Adults and Health,Other Agencies - Third Party P,0090574124,Eleanor Nursing & Social Care Ltd,28.02,12/04/2023,PUBLISH
Delivery Units,Adults and Health,Other Agencies - Third Party P,0090574126,Eleanor Nursing & Social Care Ltd,154.11,12/04/2023,PUBLISH
Delivery Units,Adults and Health,Other Agencies - Third Party P,0090574128,Eleanor Nursing & Social Care Ltd,228.83,12/04/2023,PUBLISH
Delivery Units,Adults and Health,Other Agencies - Third Party P,0090574129,Eleanor Nursing & Social Care Ltd,70.05,12/04/2023,PUBLISH
Delivery Units,Adults and Health,Other Agencies - Third Party P,0090574132,Eleanor Nursing & Social Care Ltd,130.76,12/04/2023,PUBLISH
Delivery Units,Adults and Health,Other Agencies - Third Party P,0090574133,Eleanor Nursing & Social Care Ltd,261.52,12/04/2023,PUBLISH
Delivery Units,Adults and Health,Other Agencies - Third Party P,0090574135,Eleanor Nursing & Social Care Ltd,303.55,12/04/2023,PUBLISH
Delivery Units,Adults and Health,Other Agencies - Third Party P,0090574136,Eleanor Nursing & Social Care Ltd,65.38,12/04/2023,PUBLISH
Delivery Units,Adults and Health,Other Agencies - Third Party P,0090574137,Eleanor Nursing & Social Care Ltd,630.45,12/04/2023,PUBLISH
Delivery Units,Adults and Health,Other Agencies - Third Party P,0090574138,Eleanor Nursing & Social Care Ltd,429.64,12/04/2023,PUBLISH
Delivery Units,Adults and Health,Other Agencies - Third Party P,0090574142,Eleanor Nursing & Social Care Ltd,28.02,12/04/2023,PUBLISH
Delivery Units,Adults and Health,Other Agencies - Third Party P,0090574143,Eleanor Nursing & Social Care Ltd,56.04,12/04/2023,PUBLISH
Delivery Units,Adults and Health,Other Agencies - Third Party P,0090574144,Eleanor Nursing & Social Care Ltd,214.82,12/04/2023,PUBLISH
Delivery Units,Adults and Health,Other Agencies - Third Party P,0090574145,Eleanor Nursing & Social Care Ltd,224.16,12/04/2023,PUBLISH
Delivery Units,Adults and Health,Other Agencies - Third Party P,0090574146,Eleanor Nursing & Social Care Ltd,65.38,12/04/2023,PUBLISH
Delivery Units,Adults and Health,Other Agencies - Third Party P,0090574147,Eleanor Nursing & Social Care Ltd,149.44,12/04/2023,PUBLISH
Delivery Units,Adults and Health,Other Agencies - Third Party P,0090574148,Eleanor Nursing & Social Care Ltd,312.89,12/04/2023,PUBLISH
Delivery Units,Adults and Health,Other Agencies - Third Party P,0090574151,Eleanor Nursing & Social Care Ltd,18.68,12/04/2023,PUBLISH
Delivery Units,Adults and Health,Other Agencies - Third Party P,0090574152,Eleanor Nursing & Social Care Ltd,294.21,12/04/2023,PUBLISH
Delivery Units,Adults and Health,Other Agencies - Third Party P,0090574153,Eleanor Nursing & Social Care Ltd,93.40,12/04/2023,PUBLISH
Delivery Units,Adults and Health,Other Agencies - Third Party P,0090574156,Eleanor Nursing & Social Care Ltd,182.13,12/04/2023,PUBLISH
Delivery Units,Adults and Health,Other Agencies - Third Party P,0090574157,Eleanor Nursing & Social Care Ltd,37.36,12/04/2023,PUBLISH
Delivery Units,Adults and Health,Other Agencies - Third Party P,0090574158,Eleanor Nursing & Social Care Ltd,112.08,12/04/2023,PUBLISH
Delivery Units,Adults and Health,Other Agencies - Third Party P,0090574162,Eleanor Nursing & Social Care Ltd,163.45,12/04/2023,PUBLISH
Delivery Units,Adults and Health,Other Agencies - Third Party P,0090574164,Eleanor Nursing & Social Care Ltd,70.05,12/04/2023,PUBLISH
Delivery Units,Adults and Health,Other Agencies - Third Party P,0090574165,Eleanor Nursing & Social Care Ltd,392.28,12/04/2023,PUBLISH
Delivery Units,Adults and Health,Other Agencies - Third Party P,0090574166,Eleanor Nursing & Social Care Ltd,457.66,12/04/2023,PUBLISH
Delivery Units,Adults and Health,Other Agencies - Third Party P,0090574167,Eleanor Nursing & Social Care Ltd,294.21,12/04/2023,PUBLISH
Delivery Units,Adults and Health,Other Agencies - Third Party P,0090574168,Eleanor Nursing & Social Care Ltd,98.07,12/04/2023,PUBLISH
Delivery Units,Adults and Health,Other Agencies - Third Party P,0090574169,Eleanor Nursing & Social Care Ltd,65.38,12/04/2023,PUBLISH
Delivery Units,Adults and Health,Other Agencies - Third Party P,0090574170,Eleanor Nursing & Social Care Ltd,205.48,12/04/2023,PUBLISH
Delivery Units,Adults and Health,Other Agencies - Third Party P,0090574171,Eleanor Nursing & Social Care Ltd,214.82,12/04/2023,PUBLISH
Delivery Units,Adults and Health,Other Agencies - Third Party P,0090574173,Eleanor Nursing & Social Care Ltd,196.14,12/04/2023,PUBLISH
Delivery Units,Adults and Health,Other Agencies - Third Party P,0090574175,Eleanor Nursing & Social Care Ltd,28.02,12/04/2023,PUBLISH
Delivery Units,Adults and Health,Other Agencies - Third Party P,0090574177,Eleanor Nursing & Social Care Ltd,270.86,12/04/2023,PUBLISH
Delivery Units,Adults and Health,Other Agencies - Third Party P,0090574178,Eleanor Nursing & Social Care Ltd,163.45,12/04/2023,PUBLISH
Delivery Units,Adults and Health,Other Agencies - Third Party P,0090574179,Eleanor Nursing & Social Care Ltd,65.38,12/04/2023,PUBLISH
Delivery Units,Adults and Health,Other Agencies - Third Party P,0090574180,Eleanor Nursing & Social Care Ltd,149.44,12/04/2023,PUBLISH
Delivery Units,Adults and Health,Other Agencies - Third Party P,0090574181,Eleanor Nursing & Social Care Ltd,28.02,12/04/2023,PUBLISH
Delivery Units,Adults and Health,Other Agencies - Third Party P,0090574183,Eleanor Nursing & Social Care Ltd,163.45,12/04/2023,PUBLISH
Delivery Units,Adults and Health,Other Agencies - Third Party P,0090574185,Eleanor Nursing & Social Care Ltd,228.83,12/04/2023,PUBLISH
Delivery Units,Adults and Health,Other Agencies - Third Party P,0090574186,Eleanor Nursing & Social Care Ltd,70.05,12/04/2023,PUBLISH
Delivery Units,Adults and Health,Other Agencies - Third Party P,0090574189,Eleanor Nursing & Social Care Ltd,130.76,12/04/2023,PUBLISH
Delivery Units,Adults and Health,Other Agencies - Third Party P,0090574190,Eleanor Nursing & Social Care Ltd,261.52,12/04/2023,PUBLISH
Delivery Units,Adults and Health,Other Agencies - Third Party P,0090574192,Eleanor Nursing & Social Care Ltd,219.49,12/04/2023,PUBLISH
Delivery Units,Adults and Health,Other Agencies - Third Party P,0090574193,Eleanor Nursing & Social Care Ltd,65.38,12/04/2023,PUBLISH
Delivery Units,Adults and Health,Other Agencies - Third Party P,0090574194,Eleanor Nursing & Social Care Ltd,630.45,12/04/2023,PUBLISH
Delivery Units,Adults and Health,Other Agencies - Third Party P,0090574195,Eleanor Nursing & Social Care Ltd,429.64,12/04/2023,PUBLISH
Delivery Units,Adults and Health,Other Agencies - Third Party P,0090574198,Eleanor Nursing & Social Care Ltd,28.02,12/04/2023,PUBLISH
Delivery Units,Adults and Health,Other Agencies - Third Party P,0090574199,Eleanor Nursing & Social Care Ltd,56.04,12/04/2023,PUBLISH
Delivery Units,Adults and Health,Other Agencies - Third Party P,0090574200,Eleanor Nursing & Social Care Ltd,214.82,12/04/2023,PUBLISH
Delivery Units,Adults and Health,Other Agencies - Third Party P,0090574201,Eleanor Nursing & Social Care Ltd,224.16,12/04/2023,PUBLISH
Delivery Units,Adults and Health,Other Agencies - Third Party P,0090574202,Eleanor Nursing & Social Care Ltd,65.38,12/04/2023,PUBLISH
Delivery Units,Adults and Health,Other Agencies - Third Party P,0090574203,Eleanor Nursing & Social Care Ltd,149.44,12/04/2023,PUBLISH
Delivery Units,Adults and Health,Other Agencies - Third Party P,0090574204,Eleanor Nursing & Social Care Ltd,312.89,12/04/2023,PUBLISH
Delivery Units,Adults and Health,Other Agencies - Third Party P,0090574207,Eleanor Nursing & Social Care Ltd,18.68,12/04/2023,PUBLISH
Delivery Units,Adults and Health,Other Agencies - Third Party P,0090574208,Eleanor Nursing & Social Care Ltd,294.21,12/04/2023,PUBLISH
Delivery Units,Adults and Health,Other Agencies - Third Party P,0090574209,Eleanor Nursing & Social Care Ltd,93.40,12/04/2023,PUBLISH
Delivery Units,Adults and Health,Other Agencies - Third Party P,0090574212,Eleanor Nursing & Social Care Ltd,130.76,12/04/2023,PUBLISH
Delivery Units,Adults and Health,Other Agencies - Third Party P,0090574213,Eleanor Nursing & Social Care Ltd,396.95,12/04/2023,PUBLISH
Delivery Units,Adults and Health,Other Agencies - Third Party P,0090574214,Eleanor Nursing & Social Care Ltd,130.76,12/04/2023,PUBLISH
Delivery Units,Adults and Health,Other Agencies - Third Party P,0090574215,Eleanor Nursing & Social Care Ltd,-23.35,12/04/2023,PUBLISH
Delivery Units,Adults and Health,Other Agencies - Third Party P,0090574217,Eleanor Nursing & Social Care Ltd,-266.19,12/04/2023,PUBLISH
Delivery Units,Adults and Health,Other Agencies - Third Party P,0090574223,Eleanor Nursing & Social Care Ltd,163.45,12/04/2023,PUBLISH
Delivery Units,Adults and Health,Other Agencies - Third Party P,0090574225,Eleanor Nursing & Social Care Ltd,70.05,12/04/2023,PUBLISH
Delivery Units,Adults and Health,Other Agencies - Third Party P,0090574226,Eleanor Nursing & Social Care Ltd,392.28,12/04/2023,PUBLISH
Delivery Units,Adults and Health,Other Agencies - Third Party P,0090574227,Eleanor Nursing & Social Care Ltd,457.66,12/04/2023,PUBLISH
Delivery Units,Adults and Health,Other Agencies - Third Party P,0090574228,Eleanor Nursing & Social Care Ltd,308.22,12/04/2023,PUBLISH
Delivery Units,Adults and Health,Other Agencies - Third Party P,0090574229,Eleanor Nursing & Social Care Ltd,98.07,12/04/2023,PUBLISH
Delivery Units,Adults and Health,Other Agencies - Third Party P,0090574230,Eleanor Nursing & Social Care Ltd,65.38,12/04/2023,PUBLISH
Delivery Units,Adults and Health,Other Agencies - Third Party P,0090574231,Eleanor Nursing & Social Care Ltd,214.82,12/04/2023,PUBLISH
Delivery Units,Adults and Health,Other Agencies - Third Party P,0090574232,Eleanor Nursing & Social Care Ltd,214.82,12/04/2023,PUBLISH
Delivery Units,Adults and Health,Other Agencies - Third Party P,0090574234,Eleanor Nursing & Social Care Ltd,196.14,12/04/2023,PUBLISH
Delivery Units,Adults and Health,Other Agencies - Third Party P,0090574236,Eleanor Nursing & Social Care Ltd,28.02,12/04/2023,PUBLISH
Delivery Units,Adults and Health,Other Agencies - Third Party P,0090574238,Eleanor Nursing & Social Care Ltd,284.87,12/04/2023,PUBLISH
Delivery Units,Adults and Health,Other Agencies - Third Party P,0090574239,Eleanor Nursing & Social Care Ltd,163.45,12/04/2023,PUBLISH
Delivery Units,Adults and Health,Other Agencies - Third Party P,0090574240,Eleanor Nursing & Social Care Ltd,65.38,12/04/2023,PUBLISH
Delivery Units,Adults and Health,Other Agencies - Third Party P,0090574241,Eleanor Nursing & Social Care Ltd,28.02,12/04/2023,PUBLISH
Delivery Units,Adults and Health,Other Agencies - Third Party P,0090574243,Eleanor Nursing & Social Care Ltd,163.45,12/04/2023,PUBLISH
Delivery Units,Adults and Health,Other Agencies - Third Party P,0090574244,Eleanor Nursing & Social Care Ltd,228.83,12/04/2023,PUBLISH
Delivery Units,Adults and Health,Other Agencies - Third Party P,0090574245,Eleanor Nursing & Social Care Ltd,70.05,12/04/2023,PUBLISH
Delivery Units,Adults and Health,Other Agencies - Third Party P,0090574248,Eleanor Nursing & Social Care Ltd,130.76,12/04/2023,PUBLISH
Delivery Units,Adults and Health,Other Agencies - Third Party P,0090574249,Eleanor Nursing & Social Care Ltd,261.52,12/04/2023,PUBLISH
Delivery Units,Adults and Health,Other Agencies - Third Party P,0090574251,Eleanor Nursing & Social Care Ltd,56.04,12/04/2023,PUBLISH
Delivery Units,Adults and Health,Other Agencies - Third Party P,0090574252,Eleanor Nursing & Social Care Ltd,630.45,12/04/2023,PUBLISH
Delivery Units,Adults and Health,Other Agencies - Third Party P,0090574253,Eleanor Nursing & Social Care Ltd,467.00,12/04/2023,PUBLISH
Delivery Units,Adults and Health,Other Agencies - Third Party P,0090574257,Eleanor Nursing & Social Care Ltd,28.02,12/04/2023,PUBLISH
Delivery Units,Adults and Health,Other Agencies - Third Party P,0090574258,Eleanor Nursing & Social Care Ltd,56.04,12/04/2023,PUBLISH
Delivery Units,Adults and Health,Other Agencies - Third Party P,0090574260,Eleanor Nursing & Social Care Ltd,214.82,12/04/2023,PUBLISH
Delivery Units,Adults and Health,Other Agencies - Third Party P,0090574261,Eleanor Nursing & Social Care Ltd,224.16,12/04/2023,PUBLISH
Delivery Units,Adults and Health,Other Agencies - Third Party P,0090574262,Eleanor Nursing & Social Care Ltd,65.38,12/04/2023,PUBLISH
Delivery Units,Adults and Health,Other Agencies - Third Party P,0090574263,Eleanor Nursing & Social Care Ltd,149.44,12/04/2023,PUBLISH
Delivery Units,Adults and Health,Other Agencies - Third Party P,0090574264,Eleanor Nursing & Social Care Ltd,303.55,12/04/2023,PUBLISH
Delivery Units,Adults and Health,Other Agencies - Third Party P,0090574266,Eleanor Nursing & Social Care Ltd,18.68,12/04/2023,PUBLISH
Delivery Units,Adults and Health,Other Agencies - Third Party P,0090574267,Eleanor Nursing & Social Care Ltd,294.21,12/04/2023,PUBLISH
Delivery Units,Adults and Health,Other Agencies - Third Party P,0090574268,Eleanor Nursing & Social Care Ltd,56.04,12/04/2023,PUBLISH
Delivery Units,Adults and Health,Other Agencies - Third Party P,0090574270,Eleanor Nursing & Social Care Ltd,130.76,12/04/2023,PUBLISH
Delivery Units,Adults and Health,Other Agencies - Third Party P,0090574271,Eleanor Nursing & Social Care Ltd,382.94,12/04/2023,PUBLISH
Delivery Units,Adults and Health,Other Agencies - Third Party P,0090574272,Eleanor Nursing & Social Care Ltd,130.76,12/04/2023,PUBLISH
Delivery Units,Adults and Health,Other Agencies - Third Party P,0090574278,Eleanor Nursing & Social Care Ltd,32.69,12/04/2023,PUBLISH
Delivery Units,Adults and Health,Other Agencies - Third Party P,0090574282,Eleanor Nursing & Social Care Ltd,163.45,12/04/2023,PUBLISH
Delivery Units,Adults and Health,Other Agencies - Third Party P,0090574284,Eleanor Nursing & Social Care Ltd,70.05,12/04/2023,PUBLISH
Delivery Units,Adults and Health,Other Agencies - Third Party P,0090574285,Eleanor Nursing & Social Care Ltd,392.28,12/04/2023,PUBLISH
Delivery Units,Adults and Health,Other Agencies - Third Party P,0090574286,Eleanor Nursing & Social Care Ltd,457.66,12/04/2023,PUBLISH
Delivery Units,Adults and Health,Other Agencies - Third Party P,0090574287,Eleanor Nursing & Social Care Ltd,294.21,12/04/2023,PUBLISH
Delivery Units,Adults and Health,Other Agencies - Third Party P,0090574288,Eleanor Nursing & Social Care Ltd,42.03,12/04/2023,PUBLISH
Delivery Units,Adults and Health,Other Agencies - Third Party P,0090574289,Eleanor Nursing & Social Care Ltd,98.07,12/04/2023,PUBLISH
Delivery Units,Adults and Health,Other Agencies - Third Party P,0090574290,Eleanor Nursing & Social Care Ltd,65.38,12/04/2023,PUBLISH
Delivery Units,Adults and Health,Other Agencies - Third Party P,0090574291,Eleanor Nursing & Social Care Ltd,214.82,12/04/2023,PUBLISH
Delivery Units,Adults and Health,Other Agencies - Third Party P,0090574292,Eleanor Nursing & Social Care Ltd,214.82,12/04/2023,PUBLISH
Delivery Units,Adults and Health,Other Agencies - Third Party P,0090574294,Eleanor Nursing & Social Care Ltd,196.14,12/04/2023,PUBLISH
Delivery Units,Adults and Health,Other Agencies - Third Party P,0090574296,Eleanor Nursing & Social Care Ltd,28.02,12/04/2023,PUBLISH
Delivery Units,Adults and Health,Other Agencies - Third Party P,0090574298,Eleanor Nursing & Social Care Ltd,303.55,12/04/2023,PUBLISH
Delivery Units,Adults and Health,Other Agencies - Third Party P,0090574299,Eleanor Nursing & Social Care Ltd,163.45,12/04/2023,PUBLISH
Delivery Units,Adults and Health,Other Agencies - Third Party P,0090574300,Eleanor Nursing & Social Care Ltd,65.38,12/04/2023,PUBLISH
Delivery Units,Adults and Health,Other Agencies - Third Party P,0090574301,Eleanor Nursing & Social Care Ltd,28.02,12/04/2023,PUBLISH
Delivery Units,Adults and Health,Other Agencies - Third Party P,0090574303,Eleanor Nursing & Social Care Ltd,163.45,12/04/2023,PUBLISH
Delivery Units,Adults and Health,Other Agencies - Third Party P,0090574304,Eleanor Nursing & Social Care Ltd,228.83,12/04/2023,PUBLISH
Delivery Units,Adults and Health,Other Agencies - Third Party P,0090574305,Eleanor Nursing & Social Care Ltd,70.05,12/04/2023,PUBLISH
Delivery Units,Adults and Health,Other Agencies - Third Party P,0090574308,Eleanor Nursing & Social Care Ltd,121.42,12/04/2023,PUBLISH
Delivery Units,Adults and Health,Other Agencies - Third Party P,0090574309,Eleanor Nursing & Social Care Ltd,242.84,12/04/2023,PUBLISH
Delivery Units,Adults and Health,Other Agencies - Third Party P,0090574310,Eleanor Nursing & Social Care Ltd,65.38,12/04/2023,PUBLISH
Delivery Units,Adults and Health,Other Agencies - Third Party P,0090574311,Eleanor Nursing & Social Care Ltd,630.45,12/04/2023,PUBLISH
Delivery Units,Adults and Health,Other Agencies - Third Party P,0090574312,Eleanor Nursing & Social Care Ltd,467.00,12/04/2023,PUBLISH
Delivery Units,Adults and Health,Other Agencies - Third Party P,0090574316,Eleanor Nursing & Social Care Ltd,28.02,12/04/2023,PUBLISH
Delivery Units,Adults and Health,Other Agencies - Third Party P,0090574317,Eleanor Nursing & Social Care Ltd,56.04,12/04/2023,PUBLISH
Delivery Units,Adults and Health,Other Agencies - Third Party P,0090574319,Eleanor Nursing & Social Care Ltd,214.82,12/04/2023,PUBLISH
Delivery Units,Adults and Health,Other Agencies - Third Party P,0090574320,Eleanor Nursing & Social Care Ltd,224.16,12/04/2023,PUBLISH
Delivery Units,Adults and Health,Other Agencies - Third Party P,0090574321,Eleanor Nursing & Social Care Ltd,65.38,12/04/2023,PUBLISH
Delivery Units,Adults and Health,Other Agencies - Third Party P,0090574322,Eleanor Nursing & Social Care Ltd,149.44,12/04/2023,PUBLISH
Delivery Units,Adults and Health,Other Agencies - Third Party P,0090574323,Eleanor Nursing & Social Care Ltd,312.89,12/04/2023,PUBLISH
Delivery Units,Adults and Health,Other Agencies - Third Party P,0090574325,Eleanor Nursing & Social Care Ltd,18.68,12/04/2023,PUBLISH
Delivery Units,Adults and Health,Other Agencies - Third Party P,0090574326,Eleanor Nursing & Social Care Ltd,294.21,12/04/2023,PUBLISH
Delivery Units,Adults and Health,Other Agencies - Third Party P,0090574328,Eleanor Nursing & Social Care Ltd,102.74,12/04/2023,PUBLISH
Delivery Units,Adults and Health,Other Agencies - Third Party P,0090574329,Eleanor Nursing & Social Care Ltd,340.91,12/04/2023,PUBLISH
Delivery Units,Adults and Health,Other Agencies - Third Party P,0090574330,Eleanor Nursing & Social Care Ltd,130.76,12/04/2023,PUBLISH
Delivery Units,Adults and Health,Other Agencies - Third Party P,0090574331,Eleanor Nursing & Social Care Ltd,"3,119.56",12/04/2023,PUBLISH
Delivery Units,Adults and Health,Other Agencies - Third Party P,0090574337,Eleanor Nursing & Social Care Ltd,163.45,12/04/2023,PUBLISH
Delivery Units,Adults and Health,Other Agencies - Third Party P,0090574341,Eleanor Nursing & Social Care Ltd,186.80,12/04/2023,PUBLISH
